Workbook

Sheet Cover Sheet
A1: NRS Local Area Migration Spreadsheet - 2024 Update
A2: This spreadsheet contains the data tables and figures on a wide range of migration indicators.
A3: Link to NRS website: Local Area Migration (opens a new window)
A4: Publication date
A5: The data tables in this spreadsheet were originally published at 9.30am on 29 August 2024.
A6: Geographic coverage
A7: Scottish administrative areas.
A8: Time period
A9: 2004 to 2022 (mid-year or calendar year)
A10: Supplier
A11: National Records of Scotland (NRS).
A12: Department
A13: Demographic Statistics and Vital Events.
A14: Data sources
A15: The figures come from a wide range of sources which can be found on the "Information" Sheet under the relevant topic name.
A16: Accessibility
A17: Most tables have been redesigned to improve accessibility, in line with the Governemnt Statistical Service guidelines. However, in order to retain the functionality of the sheets with light purple and dark purple coloured tabs, these sheets have not been altered. All the data is available on an accessible sheet.
A18: Shorthand used in Tables
A19: Some tables use shorthand: [c] = confidential - small number, may be disclosive; [low] = zero due to rounding; [w] = none recorded; [x] = not available; [z] = not applicable.
A20: Website link for UK equivalent data (Discontinued after 2020)
A21: Local Area Migration Indicators for UK (ONS website - opens a new window)
A22: Copyright and reproduction
A23: The content of this spreadsheet is © Crown copyright 2024. You may re-use this information (not including logos) free of charge in any format or medium, under the terms of the Open Government Licence.
A24: View the open government licence at the National Archives (opens a new window).
A25: Contact us
A26: Please get in touch if you need any further information, or have any suggestions for improvement.
A27: E-mail: population.migration@nrscotland.gov.uk
A28: For media enquiries, please contact communications@nrscotland.gov.uk
A29: Go to the Introduction

Sheet Table of Contents
A1: Table of Contents
A2: This worksheet contains one table.
A3: Date published: 29 August 2024
A4: Worksheet Name | B4: Worksheet Information
A5: Cover sheet | B5: Cover sheet
A6: Notes | B6: Notes for tables
A7: Introduction | B7: Introduction - How this spreadsheet works
A8: Information | B8: Provides information on each indicator, data sources and any strengths and weaknesses to be aware of
A9: Comparing Indicators | B9: Allows you to compare up to three indicators for one selected area
A10: Comparing Areas | B10: Allows you to compare up to three Council areas for one selected indicator
A11: Comparing NHS Board Areas | B11: Allows you to compare up to three NHS Board areas for one selected indicator
A12: Total Net Migration | B12: Total net migration
A13: Total net migration for ages 0-15 | B13: Total net migration for ages 0-15
A14: Total net migration for ages 16-64 | B14: Total net migration for ages 16-64
A15: Total net migration for people aged 65+ | B15: Total net migration for people aged 65+
A16: Total in-migration | B16: Total in-migration
A17: Total out-migration | B17: Total out-migration
A18: Within Scotland net migration | B18: Within Scotland net migration
A19: Within Scotland in-migration | B19: Within Scotland in-migration
A20: Within Scotland out-migration | B20: Within Scotland out-migration
A21: Rest of UK net migration | B21: Rest of UK net migration
A22: Rest of UK in-migration | B22: Rest of UK in-migration
A23: Rest of UK out-migration | B23: Rest of UK out-migration
A24: International net migration | B24: International net migration
A25: International in-migration | B25: International in-migration
A26: International out-migration | B26: International out-migration
A27: Census population by country of birth (2011) | B27: Census population by country of birth, 2011
A28: Census population by country of birth (2022) | B28: Census population by country of birth, 2022
A29: Population born outside the UK | B29: Population born outside the UK
A30: Population with non-British nationality | B30: Population with non-British nationality
A31: National Insurance Number (NINo) allocations | B31: National Insurance Number (NINo) allocations
A32: EU Settlement Scheme (EUSS) applications (by nationality) | B32: EU Settlement Scheme (EUSS) applications (by nationality)
A33: EU Settlement Scheme (EUSS) applications (by age group) | B33: EU Settlement Scheme (EUSS) applications (by age group)
A34: EU Settlement Scheme (EUSS) applications (concluded applications) | B34: EU Settlement Scheme (EUSS) applications (concluded applications)
A35: Pupils from a minority ethnic group (2022) | B35: Pupils from a minority ethnic group (2022)
A36: Pupils from a minority ethnic group (time series) | B36: Pupils from a minority ethnic group (time series)
A37: Pupils with English as an additional language | B37: Pupils with English as an additional language
A38: Births to non-UK mothers | B38: Births to non-UK mothers
A39: Births to non-UK mothers as a percentage of total births | B39: Births to non-UK mothers as a percentage of total births
A40: Citizenships | B40: Citizenships

Sheet Notes
A1: Notes related to the data in this spreadsheet
A2: This worksheet contains one table.
A3: Return to front page
A4: Note Number | B4: Note Text | C4: Note Link
A5: Note 1 | B5: Figures include asylum seekers. For 2012 onwards, figures used rebased long-term international migration (LTIM) estimates that includes integrated estimates for asylum seekers and refugees.
A6: Note 2 | B6: Source for data: Migration Flows section of the NRS website. Data from mid-2011 to mid-2021 has been revised following Scotland's Census 2022 and updated long-term international migration data. Totals may not sum due to rounding. | C6: NRS Website - Migration Flows Data
A7: Note 3 | B7: The NHS Board areas used for estimates between 2003-04 and 2010-11 are those that existed between 2006 and 2014. The 2011-12 estimates onwards use the NHS Board areas that came into force in April 2014.
A8: Note 4 | B8: Long-term international migration (LTIM) estimates from 2012 to 2022 are now based on administrative and survey data using a range of data sources, and are part of an ongoing programme of work to transform population and migration statistics. Published Office for National Statistics (ONS) revised LTIM estimates were used to replace and enhance our previous LTIM components which relied more heavily on the International Passenger Survey (IPS). This means that the 2012-2022 figures on international migration may not be comparable with previous estimates produced from the IPS (pre-2012). | C8: NRS Website - Migration Flows Data
A9: Note 5 | B9: Totals have been rounded to the nearest ten at council level, and the nearest hundred at national level. This may result in the sum of council area data differing from the national totals.
A10: Note 6 | B10: In April 2019, a boundary change at Cardowan by Stepps, between Glasgow and North Lanarkshire council areas (Greater Glasgow and Clyde and Lanarkshire health board areas) resulted in approximately 400 people transferring from Glasgow to North Lanarkshire. These moves have been accounted for as migration within Scotland in 2018-19 estimates.
A11: Note 7 | B11: Includes UK (part not specified), Channel Islands, Isle of Man and Ireland (part not specified). 2011 Census data is based on NHS Health Board areas that existed between 2006 and 2014.
A12: Note 8 | B12: Source: Scotland's 2011 Census Standard Outputs file 'KS204SC' | C12: NRS Website - 2011 Census Results
A13: Note 9 | B13: In order to protect against disclosure of personal information, some records have been swapped between different geographic areas. Some cell values will be affected, particularly small values at the most detailed geographies.
A14: Note 10 | B14: A number of census tables including information on country of birth incorrectly classified 1,565 people with country of birth coded as Malta or Cyprus. These people were incorrectly classified as ‘EU countries: member countries in 2001’, and not ‘EU countries: Accession countries April 2001 to March 2011’. Previous versions of this workbook used the incorrect unrevised figures; this has now been corrected.
A15: Note 11 | B15: Source: Scotland's 2022 Census Standard Output file 'UV204' | C15: NRS Website - 2022 Census Results
A16: Note 12 | B16: The data comes from the ONS Annual Population Survey (APS) and Labour Force Survey (LFS). Data are available from 2004 to 2020. From 2020, the LFS has used a new weighting methodology to reflect the change in survey operations during the coronavirus (COVID-19) pandemic and caution should be taken when making comparisons. The Office for National Statistics (ONS) are transforming the way they produce population and migration statistics to make best use of all available data. As part of this transformation journey, they are reviewing the best methods to produce estimates of the population of the UK by country of birth and nationality. Therefore, the population by country of birth and nationality series using the Annual Population Survey (APS), which has been the main data source for these estimates in the past, has been discontinued. ONS are currently working on alternative approaches, including the use of administrative data to replace these APS estimates. | C16: ONS Website - Population born outside UK
A17: Note 13 | B17: Figures are rounded to the nearest thousand and come with confidence intervals, which can be found on the ONS website. Totals may not sum due to rounding. | C17: ONS Website - Population born outside UK
A18: Note 14 | B18: Source: 'Table 1.1' and 'Table 1.2' in the 'Data' file, from the Population by Country of Birth and Nationality section of the NRS website. | C18: NRS Website - Data Source
A19: Note 15 | B19: The publication has been discontinued after June 2021. Therefore, data for 2021 and 2022 are not available. These are shown as [x] = not available for 2021 and 2022.
A20: Note 16 | B20: These statistics are usually updated quarterly. The latest data can be accessed at the GOV.UK website. | C20: GOV.UK Website - Latest NINO Data
A21: Note 17 | B21: Figures are rounded to the nearest ten. Some additional disclosure control has been applied. Totals may not sum due to rounding method used.
A22: Note 18 | B22: Registration date is derived from the date at which a NINo is maintained on the National Insurance Recording & Pay As You Earn System.
A23: Note 19 | B23: NINo operations were paused for the majority of applicants from mid-March 2020 and therefore estimates for 2020 and 2021 should be viewed with caution. The service for EU Nationals was more heavily disrupted than for Non-EU nationals. This was due to the closure of face-to-face services which at the time (prior to the end of the transition period, 31 December 2020) required EU nationals to attend an evidence of identity interview prior to a NINo being allocated. The majority of Non-EU Nationals were able to access the NINo service via a postal process as they would have had their identity verified by another government department, for example through the Home Office visa process. The postal process was reinstated on 1 June 2020, after being suspended in March 2020. Further information about the latest NINo statistics can be found on the GOV.UK website. | C23: GOV.UK Website - NINO allocations to June 2021
A24: Note 20 | B24: Improvements have been made to the allocation of migrants whose residential address is incomplete. Figures reflect the best estimate of an overseas national's locality at the time of registering for a NINo. A very small proportion of NINo registrations are to overseas nationals registering whilst abroad.
A25: Note 21 | B25: Source: Department for Work and Pensions (DWP), National Insurance Number Allocations to Adult Overseas Nationals - data produced using the Stat-Xplore tool at the DWP website. | C25: DWP Website - StatsXplore
A26: Note 22 | B26: These statistics are updated quarterly. The latest data can be accessed at the GOV.UK website. | C26: GOV.UK Website - Latest Settlement Scheme data
A27: Note 23 | B27: Figures in these tables have been derived from live management information systems and are provisional and subject to change. Figures are rounded to the nearest 10, therefore table breakdowns may not match overall totals.
A28: Note 24 | B28: Tables include data since testing of the scheme began on 28 August 2018 through to 31 December 2022.
A29: Note 25 | B29: EEA EFTA (Iceland, Liechtenstein, Norway) plus Swiss nationals were able to apply from 30 March 2019, when the scheme fully launched.
A30: Note 26 | B30: The EU Settlement Scheme allows those currently resident in the UK under EU law to obtain a status under the UK’s Immigration Rules. As such it is open to all those currently here under EU law, which includes eligible non-EEA nationals.
A31: Note 27 | B31: These statistics are released as Experimental Statistics, meaning they are going through development and evaluation.
A32: Note 28 | B32: Applications received by region and local authority exclude a number of records (2.9%) where locational data is not currently in an analysable form from live systems. See Notes for EUSS_01 on the Home Office website. | C32: Home Office website
A33: Note 29 | B33: Applications received by nationality exclude small numbers of records (0.01%), in which nationality is not currently in an analysable form from live systems.
A34: Note 30 | B34: Applications received by age group exclude small numbers of records (0.01%) where age is not currently in an analysable form from live systems.
A35: Note 31 | B35: Other outcomes include withdrawn or void applications, invalid applications and refused applications.
A36: Note 32 | B36: The data in this table are mainly derived from the annual pupil census which takes place in September of the relevant year. Data is from the GOV.SCOT website. | C36: Gov.Scot website - Supplementary Statistics
A37: Note 33 | B37: Grant aided school figures are displayed separately, but are included in the Scotland total. Grant aided school figures exclude grant aided special schools as no ethnicity information is collected for them.
A38: Note 34 | B38: White - British' includes White-Scottish and White - Other British.
A39: Note 35 | B39: 'White - other' includes White - Other, White - Gypsy/Traveller, White - Irish, and White - Polish.
A40: Note 36 | B40: 'Minority ethnic group' includes all known categories other than 'White - British' and 'White other'.
A41: Note 37 | B41: Source: Pupils Census, Scottish Government publication. | C41: Gov.Scot website
A42: Note 38 | B42: Minority ethnic group includes all categories other than 'White - UK' and 'White - other' and 'Unknown/not disclosed' (up to 2010). From 2011, it includes all categories other than 'White - Scottish', 'White - Other British' and 'White - Other'.
A43: Note 39 | B43: Ethnicity figures for 2011 to latest year are not directly comparable to previous years due to the changes in ethnicity categories in 2011. Categories are based on those used in 2011 population census.
A44: Note 40 | B44: The competency levels 'New to English', 'Early Acquisition', 'Developing competence' and 'Competent' have been combined. Totals may not sum due to data being suppressed where the number of pupils is between 1 and 4.
A45: Note 41 | B45: Births to non-UK mothers is the total of all births of mothers not born in the UK, Isle of Man, or the Channel Islands, or where the birth of the mother is not stated. Prior to 2020, the number of 'not stated' was small (below 10) for each year, however, in 2020 there were 263 births without a country of birth of the mother stated, with the majority of these registered in Glasgow City/NHS Greater Glasgow and Clyde. This may have been the result of impacts of the coronavirus (COVID-19) pandemic on birth registrations. The number of 'not stated in 2021 was lower (97) but still higher than usual. he number of 'not stated' in 2022 was back to pre-pandemic levels (<10). The full breakdown of births by mother's country of birth is available in the NRS Vital Events Reference Tables, Table 3.09. | C45: NRS Website - Births to non-UK born Mothers
A46: Note 42 | B46: Source: NRS Vital Events Reference Tables, Table 3.09. NRS Website. | C46: NRS Website - Vital Events
A47: Note 43 | B47: Source: Citizenship data tables immigration statistics, Home Office website. | C47: Home Office Website
A48: Note 44 | B48: Definition of citizenship ceremonies: A ceremony organised by County or Local Authorities for successful applicants over 18 years of age for British citizenship. At the ceremony the applicant takes the Oath or Affirmation of allegiance to Her Majesty the Queen and the Pledge of loyalty to the United Kingdom. Since 1 January 2004 this has been the final stage in the process of attaining British citizenship. The citizenship ceremony is organised by the relevant local authority, and happens after the Home Office have processed the application.
A49: Note 45 | B49: 2004 data reflects ceremonies held only for applications received and decided in that year. Persons granted citizenship who applied before 2004 were not required to attend a ceremony.
A50: Note 46 | B50: Data for 2021 and 2022 are not available. These are shown as [x] = not available.

Sheet Introduction
B5: Local Area Migration
B26: The main worksheets are:
B28: Information on Indicators and Data Sources | E28: Provides information on each indicator, data sources and any strengths and weaknesses to be aware of
B29: Comparing Indicators | E29: Allows you to compare up to three indicators for one selected area
B30: Comparing Areas | E30: Allows you to compare up to three Council areas for one selected indicator
B31: Comparing NHS Board Areas | E31: Allows you to compare up to three NHS Board areas for one selected indicator
B34: Background data and information on the data source is also available:
B36: Total net migration | F36: Information | G36: Data
B37: Total net migration for ages 0-15 | F37: Information | G37: Data
B38: Total net migration for ages 16-64 | F38: Information | G38: Data
B39: Total net migration for people aged 65+ | F39: Information | G39: Data
B40: Total in-migration | F40: Information | G40: Data
B41: Total out-migration | F41: Information | G41: Data
B42: Within Scotland net migration | F42: Information | G42: Data
B43: Within Scotland in-migration | F43: Information | G43: Data
B44: Within Scotland out-migration | F44: Information | G44: Data
B45: Rest of UK net migration | F45: Information | G45: Data
B46: Rest of UK in-migration | F46: Information | G46: Data
B47: Rest of UK out-migration | F47: Information | G47: Data
B48: International net migration | F48: Information | G48: Data
B49: International in-migration | F49: Information | G49: Data
B50: International out-migration | F50: Information | G50: Data
B51: 2011 Census population by country of birth | F51: Information | G51: Data
B52: 2022 Census population by country of birth | F52: Information | G52: Data
B53: Population born outside the UK | F53: Information | G53: Data
B54: Population with non-British nationality | F54: Information | G54: Data
B55: National Insurance Number (NINo) allocations | F55: Information | G55: Data
B56: EU Settlement Scheme (EUSS) applications (by nationality) | F56: Information | G56: Data
B57: EU Settlement Scheme (EUSS) applications (by age group) | F57: Information | G57: Data
B58: EU Settlement Scheme (EUSS) applications (concluded applications) | F58: Information | G58: Data
B59: Pupils from a minority ethnic group (2022) | F59: Information | G59: Data
B60: Pupils from a minority ethnic group (time series) | F60: Information | G60: Data
B61: Pupils with English as an additional language | F61: Information | G61: Data
B62: Births to non-UK mothers | F62: Information | G62: Data
B63: Births to non-UK mothers as a percentage of total births | F63: Information | G63: Data
B64: Citizenships | F64: Information | G64: Data
B65: Data can also be compared using our interactive visualisation app | F65: NRS website (opens in a new window).

Sheet Information
C5: Information on Indicators and Data Sources
C7: This page contains information on the strengths and weaknesses of each indicator. Additional information is provided for some key data sources of migration data, as well as links to further information.
C9: Click on the title to view information on the indicator:
C10: Notes for tables
C11: Total net migration
C12: Total net migration for ages 0-15
C13: Total net migration for ages 16-64
C14: Total net migration for people aged 65+
C15: Total in-migration
C16: Total out-migration
C17: Within Scotland net migration
C18: Within Scotland in-migration
C19: Within Scotland out-migration
C20: Rest of UK net migration
C21: Rest of UK in-migration
C22: Rest of UK out-migration
C23: International net migration
C24: International in-migration
C25: International out-migration
C26: Census population by country of birth
C27: Population born outside the UK
C28: Population with non-British nationality
C29: National Insurance Number (NINo) allocations
C30: EU Settlement Scheme (EUSS) applications
C31: Pupils from a minority ethnic group
C32: Pupils with English as an additional language
C33: Births to non-UK mothers
C34: Citizenships
C36: Additional information on key data sources used for the indicators:
C37: Community Health Index (CHI)
C38: International Migration
C39: National Health Service Central Register (NHSCR)
C40: NRS mid-year population and migration estimates
C42: Total net migration
C43: Indicator of: | D43: Difference between in and out migration for the rest of the UK, within Scotland and internationally.
C44: Information: | D44: These figures are published by NRS and relate to total net migration (difference between immigration and emigration). They include asylum seekers and rounding adjustments. Refugees are also included from 2015-16 onwards. Migration estimates for mid-2012 to mid-2022 have been revised alongside the mid-year population estimates following Scotland’s Census 2022. More information on the methodology for the NRS migration estimates can be found in the Migration section of the most recent Mid-Year Population estimates on the NRS website.
C45: Link: | D45: Mid-Year Population Estimates | National Records of Scotland (nrscotland.gov.uk)
C46: Strengths: | D46: Provides an estimate of all long-term migrants (i.e. those that stay for 12 months or more) at Council and NHS Board area level.
C47: Weaknesses: | D47: Estimates are only produced annually, usually about 10 months after the period to which they refer. They rely on administrative and survey data rather than a comprehensive count of people moving.
C48: Source: | D48: 'Total Migration to or from Scotland' data in the 'Migration Flows' section of the NRS website
C50: Total net migration for ages 0-15
C51: Indicator of: | D51: Difference between in and out migration for the rest of the UK, within Scotland and internationally of people aged 15 and under
C52: Information: | D52: These figures include asylum seekers and rounding adjustments. Refugees are also included from 2015-16 onwards. Migration estimates for mid-2012 to mid-2022 have been revised alongside the mid-year population estimates following Scotland’s Census 2022. More information on the methodology for the NRS migration estimates can be found in the Migration section of the most recent Mid-Year Population estimates on the NRS website.
C53: Link: | D53: Mid-Year Population Estimates | National Records of Scotland (nrscotland.gov.uk)
C54: Strengths: | D54: Provides an estimate of all long-term migrants (i.e. those that stay for 12 months or more) within this age group at Council and NHS Board area level.
C55: Weaknesses: | D55: Estimates are only produced annually, usually about 10 months after the period to which they refer. They rely on administrative and survey data rather than a comprehensive count of people moving.
C56: Source: | D56: 'Total Migration to or from Scotland' data in the 'Migration Flows' section of the NRS website
C58: Total net migration for ages 16-64
C59: Indicator of: | D59: Difference between in and out migration for the rest of the UK, within Scotland and internationally of people aged between 16 and 64
C60: Information: | D60: These figures include asylum seekers and rounding adjustments. Refugees are also included from 2015-16 onwards. Migration estimates for mid-2012 to mid-2022 have been revised alongside the mid-year population estimates following Scotland’s Census 2022. More information on the methodology for the NRS migration estimates can be found in the Migration section of the most recent Mid-Year Population estimates on the NRS website.
C61: Link: | D61: Mid-Year Population Estimates | National Records of Scotland (nrscotland.gov.uk)
C62: Strengths: | D62: Provides an estimate of all long-term migrants (i.e. those that stay for 12 months or more) within this age group at Council and NHS Board area level.
C63: Weaknesses: | D63: Estimates are only produced annually, usually about 10 months after the period to which they refer. They rely on administrative and survey data rather than a comprehensive count of people moving.
C64: Source: | D64: 'Total Migration to or from Scotland' data in the 'Migration Flows' section of the NRS website
C66: Total net migration for ages 65+
C67: Indicator of: | D67: Difference between in and out migration for the rest of the UK, within Scotland and internationally of people aged 65 and over
C68: Information: | D68: These figures include asylum seekers and rounding adjustments. Refugees are also included from 2015-16 onwards. Migration estimates for mid-2012 to mid-2022 have been revised alongside the mid-year population estimates following Scotland’s Census 2022. More information on the methodology for the NRS migration estimates can be found in the Migration section of the most recent Mid-Year Population estimates on the NRS website.
C69: Link: | D69: Mid-Year Population Estimates | National Records of Scotland (nrscotland.gov.uk)
C70: Strengths: | D70: Provides an estimate of all long-term migrants (i.e. those that stay for 12 months or more) within this age group at Council and NHS Board area level.
C71: Weaknesses: | D71: Estimates are only produced annually, usually about 10 months after the period to which they refer. They rely on administrative and survey data rather than a comprehensive count of people moving.
C72: Source: | D72: 'Total Migration to or from Scotland' data in the 'Migration Flows' section of the NRS website
C74: Total in-migration
C75: Indicator of: | D75: Flow of people to administrative areas in Scotland from the rest of the UK, other areas within Scotland and internationally.
C76: Information: | D76: These figures measure total in-migration. Figures include asylum seekers, refugees are also included from 2015-16 onwards. Scotland level estimates cannot be derived by adding together the estimates for individual Council areas or NHS Board areas because administrative area estimates include moves within Scotland. It would not, therefore, be appropriate to compare total in-migration for Scotland with total in-migration for an administrative area. Migration estimates for mid-2012 to mid-2022 have been revised alongside the mid-year population estimates following Scotland’s Census 2022. More information on the methodology for the NRS migration estimates can be found in the Migration section of the most recent Mid-Year Population estimates on the NRS website.
C77: Link: | D77: Mid-Year Population Estimates | National Records of Scotland (nrscotland.gov.uk)
C78: Strengths: | D78: The best available measure of immigration (or inflow) to Scotland.
C79: Weaknesses: | D79: Estimates are only produced annually, usually about 10 months after the period to which they refer. They rely on administrative and survey data rather than a comprehensive count of people moving.
C80: Source: | D80: 'Total Migration to or from Scotland' data in the 'Migration Flows' section of the NRS website
C82: Total out-migration
C83: Indicator of: | D83: Flow of people from administrative areas in Scotland to the rest of the UK, other areas within Scotland and internationally.
C84: Information: | D84: These figures measure total out-migration. Figures include asylum seekers. Scotland level estimates cannot be derived by adding together the estimates for individual Council areas or NHS Board areas because administrative area estimates include moves within Scotland. It would not, therefore, be appropriate to compare total out-migration for Scotland with total out-migration for an administrative area. Migration estimates for mid-2012 to mid-2022 have been revised alongside the mid-year population estimates following Scotland’s Census 2022. More information on the methodology for the NRS migration estimates can be found in the Migration section of the most recent Mid-Year Population estimates on the NRS website.
C85: Link: | D85: Mid-Year Population Estimates | National Records of Scotland (nrscotland.gov.uk)
C86: Strengths: | D86: The best available measure of emigration (or outflow) from Scotland.
C87: Weaknesses: | D87: Estimates are only produced annually, usually about 10 months after the period to which they refer. They rely on administrative and survey data rather than a comprehensive count of people moving.
C88: Source: | D88: 'Total Migration to or from Scotland' data in the 'Migration Flows' section of the NRS website
C90: Within Scotland net migration
C91: Indicator of: | D91: Net migration between administrative areas within Scotland
C92: Information: | D92: Moves within Scotland at Council area level are derived from a combination of the National Health Service Central Register (NHSCR) and the Community Health Index (CHI), and from the NHSCR for NHS Board areas. Migration estimates for mid-2012 to mid-2022 have been revised alongside the mid-year population estimates following Scotland’s Census 2022. More information on the methodology for the NRS migration estimates can be found in the Migration section of the most recent Mid-Year Population estimates on the NRS website.
C93: Link: | D93: Mid-Year Population Estimates | National Records of Scotland (nrscotland.gov.uk)
C94: Strengths: | D94: These estimates are Accredited Official Statistics.
C95: Weaknesses: | D95: Estimates are only produced annually, usually about 10 months after the period to which they refer. They rely on administrative and survey data rather than a comprehensive count of people moving.
C96: Source: | D96: 'Migration within Scotland' data in the 'Migration Flows' section of the NRS website
C98: Within Scotland in-migration
C99: Indicator of: | D99: Flow of people to administrative areas in Scotland from other areas within Scotland
C100: Information: | D100: Moves within Scotland at Council area level are derived from a combination of the National Health Service Central Register (NHSCR) and the Community Health Index (CHI), and from the NHSCR for NHS Board areas. Migration estimates for mid-2012 to mid-2022 have been revised alongside the mid-year population estimates following Scotland’s Census 2022. More information on the methodology for the NRS migration estimates can be found in the Migration section of the most recent Mid-Year Population estimates on the NRS website.
C101: Link: | D101: Mid-Year Population Estimates | National Records of Scotland (nrscotland.gov.uk)
C102: Strengths: | D102: These estimates are Accredited Official Statistics.
C103: Weaknesses: | D103: Estimates are only produced annually, usually about 10 months after the period to which they refer. They rely on administrative and survey data rather than a comprehensive count of people moving.
C104: Source: | D104: 'Migration within Scotland' data in the 'Migration Flows' section of the NRS website
C106: Within Scotland out-migration
C107: Indicator of: | D107: Flow of people from administrative areas in Scotland to other areas within Scotland
C108: Information: | D108: Moves within Scotland at Council area level are derived from a combination of the National Health Service Central Register (NHSCR) and the Community Health Index (CHI), and from the NHSCR for NHS Board areas. Migration estimates for mid-2012 to mid-2022 have been revised alongside the mid-year population estimates following Scotland’s Census 2022. More information on the methodology for the NRS migration estimates can be found in the Migration section of the most recent Mid-Year Population estimates on the NRS website.
C109: Link: | D109: Mid-Year Population Estimates | National Records of Scotland (nrscotland.gov.uk)
C110: Strengths: | D110: These estimates are Accredited Official Statistics.
C111: Weaknesses: | D111: Estimates are only produced annually, usually about 10 months after the period to which they refer. They rely on administrative and survey data rather than a comprehensive count of people moving.
C112: Source: | D112: 'Migration within Scotland' data in the 'Migration Flows' section of the NRS website
C114: Rest of UK net migration
C115: Indicator of: | D115: Net migration between administrative areas in Scotland and the rest of the UK
C116: Information: | D116: These are the NRS National Statistics for rest of UK migration. Moves between Scottish administrative areas and the rest of the UK are derived from General Practitioner (GP) registration information. Moves between Scotland and the rest of the UK used here do not include movements to/from the armed forces. Migration estimates for mid-2012 to mid-2022 have been revised alongside the mid-year population estimates following Scotland’s Census 2022. More information on the methodology for the NRS migration estimates can be found in the Migration section of the most recent Mid-Year Population estimates on the NRS website.
C117: Link: | D117: Mid-Year Population Estimates | National Records of Scotland (nrscotland.gov.uk)
C118: Strengths: | D118: These estimates are Accredited Official Statistics.
C119: Weaknesses: | D119: Estimates are only produced annually, usually about 10 months after the period to which they refer. They rely on administrative and survey data rather than a comprehensive count of people moving.
C120: Source: | D120: 'Migration between Scotland and the Rest of UK' data in the 'Migration Flows' section of the NRS website
C122: Rest of UK in-migration
C123: Indicator of: | D123: Flow of people to administrative areas in Scotland from the rest of the UK
C124: Information: | D124: These are the NRS National Statistics for rest of UK migration. Moves between Scottish administrative areas and the rest of the UK are derived from the National Health Service Central Register (NHSCR) and Community Health Index (CHI). Moves between Scotland and the rest of the UK used here do not include movements to/from the armed forces. Migration estimates for mid-2012 to mid-2022 have been revised alongside the mid-year population estimates following Scotland’s Census 2022. More information on the methodology for the NRS migration estimates can be found in the Migration section of the most recent Mid-Year Population estimates on the NRS website.
C125: Link: | D125: Mid-Year Population Estimates | National Records of Scotland (nrscotland.gov.uk)
C126: Strengths: | D126: These estimates are Accredited Official Statistics.
C127: Weaknesses: | D127: Estimates are only produced annually, usually about 10 months after the period to which they refer. They rely on administrative and survey data rather than a comprehensive count of people moving.
C128: Source: | D128: 'Migration between Scotland and the Rest of UK' data in the 'Migration Flows' section of the NRS website
C130: Rest of UK out-migration
C131: Indicator of: | D131: Flow of people from administrative areas in Scotland to the rest of the UK
C132: Information: | D132: These are the NRS National Statistics for rest of UK migration. Moves between Scottish administrative areas and the rest of the UK are derived from General Practitioner (GP) registration information. Moves between Scotland and the rest of the UK used here do not include movements to/from the armed forces. Migration estimates for mid-2012 to mid-2022 have been revised alongside the mid-year population estimates following Scotland’s Census 2022. More information on the methodology for the NRS migration estimates can be found in the Migration section of the most recent Mid-Year Population estimates on the NRS website.
C133: Link: | D133: Mid-Year Population Estimates | National Records of Scotland (nrscotland.gov.uk)
C134: Strengths: | D134: These estimates are Accredited Official Statistics.
C135: Weaknesses: | D135: Estimates are only produced annually, usually about 10 months after the period to which they refer. They rely on administrative and survey data rather than a comprehensive count of people moving.
C136: Source: | D136: 'Migration between Scotland and the Rest of UK' data in the 'Migration Flows' section of the NRS website
C138: International net migration
C139: Indicator of: | D139: International net migration
C140: Information: | D140: These figures measure international net migration. Long-term international migration (LTIM) estimates from 2012 to 2022 are now based on administrative and survey data using a range of data sources, and are part of an ongoing programme of work to transform population and migration statistics. Published Office for National Statistics (ONS) revised LTIM estimates were used to replace and enhance our previous LTIM components which relied more heavily on the International Passenger Survey (IPS). This means that the 2012-2022 figures on international migration may not be comparable with previous estimates produced from the IPS (pre-2012). More information on ONS' current methods to produce international migration estimates can be found on the ONS website. Asylum seekers are included for all years, refugees are also included from 2012 onwards.
C141: Link: | D141: Mid-Year Population Estimates | National Records of Scotland (nrscotland.gov.uk)
C142: Strengths: | D142: The best available measure of international net migration for Scotland.
C143: Weaknesses: | D143: Estimates are only produced annually, usually about 10 months after the period to which they refer.
C144: Source: | D144: 'International Migration' data in the 'Migration Flows' section of the NRS website
C146: International in-migration
C147: Indicator of: | D147: International in-migration to administrative areas in Scotland.
C148: Information: | D148: These figures measure international net migration. Long-term international migration (LTIM) estimates from 2012 to 2022 are now based on administrative and survey data using a range of data sources, and are part of an ongoing programme of work to transform population and migration statistics. Published Office for National Statistics (ONS) revised LTIM estimates were used to replace and enhance our previous LTIM components which relied more heavily on the International Passenger Survey (IPS). This means that the 2012-2022 figures on international migration may not be comparable with previous estimates produced from the IPS (pre-2012). More information on ONS' current methods to produce international migration estimates can be found on the ONS website. Asylum seekers are included for all years, refugees are also included from 2012 onwards.
C149: Link: | D149: Mid-Year Population Estimates | National Records of Scotland (nrscotland.gov.uk)
C150: Strengths: | D150: The best available measure of international immigration (or inflow).
C151: Weaknesses: | D151: Estimates are only produced annually, usually about 10 months after the period to which they refer.
C152: Source: | D152: 'International Migration' data in the 'Migration Flows' section of the NRS website
C154: International out-migration
C155: Indicator of: | D155: International out-migration from administrative areas in Scotland.
C156: Information: | D156: These figures measure international net migration. Long-term international migration (LTIM) estimates from 2012 to 2022 are now based on administrative and survey data using a range of data sources, and are part of an ongoing programme of work to transform population and migration statistics. Published Office for National Statistics (ONS) revised LTIM estimates were used to replace and enhance our previous LTIM components which relied more heavily on the International Passenger Survey (IPS). This means that the 2012-2022 figures on international migration may not be comparable with previous estimates produced from the IPS (pre-2012). More information on ONS' current methods to produce international migration estimates can be found on the ONS website. Asylum seekers are included for all years, refugees are also included from 2012 onwards.
C157: Link: | D157: Mid-Year Population Estimates | National Records of Scotland (nrscotland.gov.uk)
C158: Strengths: | D158: The best available measure of international emigration (or outflow).
C159: Weaknesses: | D159: Estimates are only produced annually, usually about 10 months after the period to which they refer.
C160: Source: | D160: 'International Migration' data in the 'Migration Flows' section of the NRS website
C162: Population born outside the UK
C163: Indicator of: | D163: Resident population ('stock') of migrants based on those with non-UK country of birth
C164: Information: | D164: The country of birth data from the Annual Population Survey (APS) is used for this indicator. This information gives an estimate of the number of people living in Scotland who were born outside the UK. The data is available from 2004 to 2020, on a calendar year basis. The Office for National Statistics (ONS) are transforming the way they produce population and migration statistics to make best use of all available data. As part of this transformation journey, they are reviewing the best methods to produce estimates of the population of the UK by country of birth and nationality. Therefore, the population by country of birth and nationality series using the Annual Population Survey (APS), which has been the main data source for these estimates in the past, has been discontinued. ONS are currently working on alternative approaches, including the use of administrative data to replace these APS estimates.
C165: Link: | D165: ONS website.
C166: Strengths: | D166: Gives a more robust estimate of change over time than looking at nationality as an individual's nationality can change.
C167: Weaknesses: | D167: LFS excludes most communal establishments and foreign students living in halls of residence, and so the number of foreign born migrants is likely to be under-reported.
D168: For some council areas an estimate cannot be made from the APS as the number of people born outside the UK is too small for the estimate to be reliable.
D169: Some people born outside the UK may have lived in the UK for a long time and are therefore not regarded as migrants.
C170: Source: | D170: 'Population by Country of Birth and Nationality' section of the NRS website
C172: Population with non-British nationality
C173: Indicator of: | D173: Resident population ('stock') of migrants based on those with non-British nationality
C174: Information: | D174: Nationality data from the Annual Population Survey (APS) is used for this indicator. This information gives an estimate of the number of people living in Scotland who were born outside the UK. The data is available from 2004 to 2020, on a calendar year basis. The Office for National Statistics (ONS) are transforming the way they produce population and migration statistics to make best use of all available data. As part of this transformation journey, they are reviewing the best methods to produce estimates of the population of the UK by country of birth and nationality. Therefore, the population by country of birth and nationality series using the Annual Population Survey (APS), which has been the main data source for these estimates in the past, will be discontinued. ONS are currently working on alternative approaches, including the use of administrative data to replace these APS estimates.
C175: Link: | D175: ONS website.
C176: Strengths: | D176: Gives a more up to date look at migration than country of birth data, as people who were born outside the UK but have lived here for many years are not regarded as migrants.
C177: Weaknesses: | D177: LFS excludes most communal establishments and foreign students living in halls of residence, and so the number of foreign born migrants is likely to be under-reported.
D178: For some council areas an estimate cannot be made from the APS as the number of people born outside the UK is too small for the estimate to be reliable.
D179: An individuals nationality can change, meaning time series are less robust than for country of birth data.
C180: Source: | D180: 'Population by Country of Birth and Nationality' section of the NRS website
C182: National Insurance Number (NINo) allocations to adult overseas nationals entering the UK
C183: Indicator of: | D183: Inflow of overseas nationals, looking to work or claim benefits
C184: Information: | D184: These data have been obtained using the Stat-Xplore tool on the DWP website, which has annual Council area data. Data used here is on a calendar year basis up until 2022.
C185: Strengths: | D185: Includes any overseas national looking to work or claim benefits/tax credits in the UK, self-employed or students working part-time.
D186: Provides Council area level data.
D187: Location data relates to the residence of the individual, not their employer.
C188: Weaknesses: | D188: Based on the date of registration not the date of arrival, and the lag between the two can often be a year or even longer. Random adjustments have been applied to the data to avoid the disclosure of confidential information.
D189: Excludes those not working, nor planning to work or claim benefits, so children and students that don't work are not included.
D190: Excludes returning UK nationals.
D191: Does not provide any outflow information or overall stock.
D192: Includes migrants staying less than one month as there is no minimum stay for registration.
D193: Data reflects the migrant's first destination or location at registration, not where migrants settle nor does it reflect the stock of migrants nationally.
C194: Source: | D194: Department for Work and Pensions - Stat-Xplore
C196: EU Settlement Scheme (EUSS) applications
C197: Indicator of: | D197: Number of people who have applied to remain in the UK following Brexit. The EU Settlement Scheme (EUSS) enables resident EU, other EEA and Swiss citizens, and their family members, to obtain a UK immigration status.
C198: Information: | D198: These data come from the Home Office and are updated quarterly. They include applications by nationality, age group and outcome.
C199: Strengths: | D199: Detailed and timely information based on administrative data.
C200: Weaknesses: | D200: These data are classed as experimental statistics. They do not indicate how many people are eligible to apply to the scheme nor how many EU citizens live in the UK. They measure applications rather than applicants; one individual may need to apply multiple times (for example, to gain pre-settled and then settled status) and this will be recorded as separate applications.
D201: Data come from a live operational database to which revisions may be made.
C202: Source: | D202: 'EU Settlement Scheme' section of the UK government website
C204: Pupils from a minority ethnic group
C205: Indicator of: | D205: School aged children by ethnicity
C206: Information: | D206: These figures come from the Pupil Census which is collected by the Scottish Government through the ScotXed programme, and are available annually from 2003. The Pupil Census covers all publicly funded schools in Scotland (local authority and grant-aided). It is conducted in September and the data is published in December on the Scottish Government website, with supplementary data being published in March.
C207: Strengths: | D207: Data is reasonably current.
D208: Can provide an indication of where migrant families with school aged children live, rather than work.
C209: Weaknesses: | D209: Provides no information about migrants without school aged children.
D210: Although over 97.5 per cent of pupils disclosed their ethnic background, some pupils' ethnicity was in the 'unknown' category.
D211: No specific nationality data.
D212: Only includes children in publicly funded schools.
D213: Non-migrants may be from a minority ethnic group.
C214: Source: | D214: Pupil Census, Scottish Government
C216: Pupils with English as an additional language
C217: Indicator of: | D217: Migrants from non-English speaking countries with school aged children
C218: Information: | D218: These figures come from the Pupil Census which is collected by the Scottish Government through the ScotXed programme, and are available annually from 2003. The Pupil Census covers all publicly funded schools in Scotland (local authority and grant-aided). It is conducted in September and the data is published in December on the Scottish Government website, with supplementary data being published in March the following year.
C219: Strengths: | D219: Data is reasonably current.
D220: Can provide an indication of where migrant families with school aged children live, rather than work.
C221: Weaknesses: | D221: Provides no information about migrants without school aged children.
D222: No specific nationality data.
D223: Only includes children in publicly funded schools.
D224: Excludes migrants from English speaking countries (whose first language is English) and those fluent in English.
D225: Includes non-recent migrants still speaking a different home language if pupils have English as an additional language.
C226: Source: | D226: Pupil Census, Scottish Government
C228: Births to non-UK mothers
C229: Indicator of: | D229: Number of babies born each year to mothers who had a non-UK country of birth
... 41 more rows

Sheet Info lookup (hidden)
C2: Indicator of: | D2: Information: | E2: Strengths: | F2: Weaknesses: | G2: Source:
A3: 1 | B3: Not specified | C3: ~ | D3: ~ | E3: ~ | F3: ~ | G3: ~
A4: 2 | B4: Total net migration | C4: =Information!D43 -> Difference between in and out migration for the rest of the UK, within Scotland and internationally. | D4: =Information!D44 -> These figures are published by NRS and relate to total net migration (difference between immigration and emigration). They include asylum seekers and rounding adjustments. Refugees are also included from 2015-16 onwards. Migration estimates for mid-2012 to mid-2022 have been revised alongside the mid-year population estimates following Scotland’s Census 2022. More information on the methodology for the NRS migration estimates can be found in the Migration section of the most recent Mid-Year Population estimates on the NRS website. | E4: =Information!D46 -> Provides an estimate of all long-term migrants (i.e. those that stay for 12 months or more) at Council and NHS Board area level. | F4: =CONCATENATE(Information!D47) -> Estimates are only produced annually, usually about 10 months after the period to which they refer. They rely on administrative and survey data rather than a comprehensive count of people moving. | G4: =Information!D48 -> 'Total Migration to or from Scotland' data in the 'Migration Flows' section of the NRS website
A5: 3 | B5: Total net migration for ages 0-15 | C5: =Information!D51 -> Difference between in and out migration for the rest of the UK, within Scotland and internationally of people aged 15 and under | D5: =Information!D52 -> These figures include asylum seekers and rounding adjustments. Refugees are also included from 2015-16 onwards. Migration estimates for mid-2012 to mid-2022 have been revised alongside the mid-year population estimates following Scotland’s Census 2022. More information on the methodology for the NRS migration estimates can be found in the Migration section of the most recent Mid-Year Population estimates on the NRS website. | E5: =Information!D54 -> Provides an estimate of all long-term migrants (i.e. those that stay for 12 months or more) within this age group at Council and NHS Board area level. | F5: =CONCATENATE(Information!D55) -> Estimates are only produced annually, usually about 10 months after the period to which they refer. They rely on administrative and survey data rather than a comprehensive count of people moving. | G5: =Information!D56 -> 'Total Migration to or from Scotland' data in the 'Migration Flows' section of the NRS website
A6: 4 | B6: Total net migration for ages 16 - 64 | C6: =Information!D59 -> Difference between in and out migration for the rest of the UK, within Scotland and internationally of people aged between 16 and 64 | D6: =Information!D60 -> These figures include asylum seekers and rounding adjustments. Refugees are also included from 2015-16 onwards. Migration estimates for mid-2012 to mid-2022 have been revised alongside the mid-year population estimates following Scotland’s Census 2022. More information on the methodology for the NRS migration estimates can be found in the Migration section of the most recent Mid-Year Population estimates on the NRS website. | E6: =Information!D62 -> Provides an estimate of all long-term migrants (i.e. those that stay for 12 months or more) within this age group at Council and NHS Board area level. | F6: =CONCATENATE(Information!D63) -> Estimates are only produced annually, usually about 10 months after the period to which they refer. They rely on administrative and survey data rather than a comprehensive count of people moving. | G6: =Information!D64 -> 'Total Migration to or from Scotland' data in the 'Migration Flows' section of the NRS website
A7: 5 | B7: Total net migration for people aged 65+ | C7: =Information!D67 -> Difference between in and out migration for the rest of the UK, within Scotland and internationally of people aged 65 and over | D7: =Information!D68 -> These figures include asylum seekers and rounding adjustments. Refugees are also included from 2015-16 onwards. Migration estimates for mid-2012 to mid-2022 have been revised alongside the mid-year population estimates following Scotland’s Census 2022. More information on the methodology for the NRS migration estimates can be found in the Migration section of the most recent Mid-Year Population estimates on the NRS website. | E7: =Information!D70 -> Provides an estimate of all long-term migrants (i.e. those that stay for 12 months or more) within this age group at Council and NHS Board area level. | F7: =CONCATENATE(Information!D71) -> Estimates are only produced annually, usually about 10 months after the period to which they refer. They rely on administrative and survey data rather than a comprehensive count of people moving. | G7: =Information!D72 -> 'Total Migration to or from Scotland' data in the 'Migration Flows' section of the NRS website
A8: 6 | B8: Total in-migration | C8: =Information!D75 -> Flow of people to administrative areas in Scotland from the rest of the UK, other areas within Scotland and internationally. | D8: =Information!D76 -> These figures measure total in-migration. Figures include asylum seekers, refugees are also included from 2015-16 onwards. Scotland level estimates cannot be derived by adding together the estimates for individual Council areas or NHS Board areas because administrative area estimates include moves within Scotland. It would not, therefore, be appropriate to compare total in-migration for Scotland with total in-migration for an administrative area. Migration estimates for mid-2012 to mid-2022 have been revised alongside the mid-year population estimates following Scotland’s Census 2022. More information on the methodology for the NRS migration estimates can be found in the Migration section of the most recent Mid-Year Population estimates on the NRS website. | E8: =Information!D78 -> The best available measure of immigration (or inflow) to Scotland. | F8: =Information!D79 -> Estimates are only produced annually, usually about 10 months after the period to which they refer. They rely on administrative and survey data rather than a comprehensive count of people moving. | G8: =Information!D80 -> 'Total Migration to or from Scotland' data in the 'Migration Flows' section of the NRS website
A9: 7 | B9: Total out-migration | C9: =Information!D83 -> Flow of people from administrative areas in Scotland to the rest of the UK, other areas within Scotland and internationally. | D9: =Information!D84 -> These figures measure total out-migration. Figures include asylum seekers. Scotland level estimates cannot be derived by adding together the estimates for individual Council areas or NHS Board areas because administrative area estimates include moves within Scotland. It would not, therefore, be appropriate to compare total out-migration for Scotland with total out-migration for an administrative area. Migration estimates for mid-2012 to mid-2022 have been revised alongside the mid-year population estimates following Scotland’s Census 2022. More information on the methodology for the NRS migration estimates can be found in the Migration section of the most recent Mid-Year Population estimates on the NRS website. | E9: =Information!D86 -> The best available measure of emigration (or outflow) from Scotland. | F9: =Information!D87 -> Estimates are only produced annually, usually about 10 months after the period to which they refer. They rely on administrative and survey data rather than a comprehensive count of people moving. | G9: =Information!D88 -> 'Total Migration to or from Scotland' data in the 'Migration Flows' section of the NRS website
A10: 8 | B10: Within Scotland net migration | C10: =Information!D91 -> Net migration between administrative areas within Scotland | D10: =Information!D92 -> Moves within Scotland at Council area level are derived from a combination of the National Health Service Central Register (NHSCR) and the Community Health Index (CHI), and from the NHSCR for NHS Board areas. Migration estimates for mid-2012 to mid-2022 have been revised alongside the mid-year population estimates following Scotland’s Census 2022. More information on the methodology for the NRS migration estimates can be found in the Migration section of the most recent Mid-Year Population estimates on the NRS website. | E10: =Information!D94 -> These estimates are Accredited Official Statistics. | F10: =Information!D95 -> Estimates are only produced annually, usually about 10 months after the period to which they refer. They rely on administrative and survey data rather than a comprehensive count of people moving. | G10: =Information!D96 -> 'Migration within Scotland' data in the 'Migration Flows' section of the NRS website
A11: 9 | B11: Within Scotland in-migration | C11: =Information!D99 -> Flow of people to administrative areas in Scotland from other areas within Scotland | D11: =Information!D100 -> Moves within Scotland at Council area level are derived from a combination of the National Health Service Central Register (NHSCR) and the Community Health Index (CHI), and from the NHSCR for NHS Board areas. Migration estimates for mid-2012 to mid-2022 have been revised alongside the mid-year population estimates following Scotland’s Census 2022. More information on the methodology for the NRS migration estimates can be found in the Migration section of the most recent Mid-Year Population estimates on the NRS website. | E11: =Information!D102 -> These estimates are Accredited Official Statistics. | F11: =Information!D103 -> Estimates are only produced annually, usually about 10 months after the period to which they refer. They rely on administrative and survey data rather than a comprehensive count of people moving. | G11: =Information!D104 -> 'Migration within Scotland' data in the 'Migration Flows' section of the NRS website
A12: 10 | B12: Within Scotland out-migration | C12: =Information!D107 -> Flow of people from administrative areas in Scotland to other areas within Scotland | D12: =Information!D108 -> Moves within Scotland at Council area level are derived from a combination of the National Health Service Central Register (NHSCR) and the Community Health Index (CHI), and from the NHSCR for NHS Board areas. Migration estimates for mid-2012 to mid-2022 have been revised alongside the mid-year population estimates following Scotland’s Census 2022. More information on the methodology for the NRS migration estimates can be found in the Migration section of the most recent Mid-Year Population estimates on the NRS website. | E12: =Information!D110 -> These estimates are Accredited Official Statistics. | F12: =Information!D111 -> Estimates are only produced annually, usually about 10 months after the period to which they refer. They rely on administrative and survey data rather than a comprehensive count of people moving. | G12: =Information!D112 -> 'Migration within Scotland' data in the 'Migration Flows' section of the NRS website
A13: 11 | B13: Rest of UK net migration | C13: =Information!D115 -> Net migration between administrative areas in Scotland and the rest of the UK | D13: =Information!D116 -> These are the NRS National Statistics for rest of UK migration. Moves between Scottish administrative areas and the rest of the UK are derived from General Practitioner (GP) registration information. Moves between Scotland and the rest of the UK used here do not include movements to/from the armed forces. Migration estimates for mid-2012 to mid-2022 have been revised alongside the mid-year population estimates following Scotland’s Census 2022. More information on the methodology for the NRS migration estimates can be found in the Migration section of the most recent Mid-Year Population estimates on the NRS website. | E13: =Information!D118 -> These estimates are Accredited Official Statistics. | F13: =CONCATENATE(Information!D119) -> Estimates are only produced annually, usually about 10 months after the period to which they refer. They rely on administrative and survey data rather than a comprehensive count of people moving. | G13: =Information!D120 -> 'Migration between Scotland and the Rest of UK' data in the 'Migration Flows' section of the NRS website
A14: 12 | B14: Rest of UK in-migration | C14: =Information!D123 -> Flow of people to administrative areas in Scotland from the rest of the UK | D14: =Information!D124 -> These are the NRS National Statistics for rest of UK migration. Moves between Scottish administrative areas and the rest of the UK are derived from the National Health Service Central Register (NHSCR) and Community Health Index (CHI). Moves between Scotland and the rest of the UK used here do not include movements to/from the armed forces. Migration estimates for mid-2012 to mid-2022 have been revised alongside the mid-year population estimates following Scotland’s Census 2022. More information on the methodology for the NRS migration estimates can be found in the Migration section of the most recent Mid-Year Population estimates on the NRS website. | E14: =Information!D126 -> These estimates are Accredited Official Statistics. | F14: =CONCATENATE(Information!D127) -> Estimates are only produced annually, usually about 10 months after the period to which they refer. They rely on administrative and survey data rather than a comprehensive count of people moving. | G14: =Information!D128 -> 'Migration between Scotland and the Rest of UK' data in the 'Migration Flows' section of the NRS website
A15: 13 | B15: Rest of UK out-migration | C15: =Information!D131 -> Flow of people from administrative areas in Scotland to the rest of the UK | D15: =Information!D132 -> These are the NRS National Statistics for rest of UK migration. Moves between Scottish administrative areas and the rest of the UK are derived from General Practitioner (GP) registration information. Moves between Scotland and the rest of the UK used here do not include movements to/from the armed forces. Migration estimates for mid-2012 to mid-2022 have been revised alongside the mid-year population estimates following Scotland’s Census 2022. More information on the methodology for the NRS migration estimates can be found in the Migration section of the most recent Mid-Year Population estimates on the NRS website. | E15: =Information!D134 -> These estimates are Accredited Official Statistics. | F15: =CONCATENATE(Information!D135) -> Estimates are only produced annually, usually about 10 months after the period to which they refer. They rely on administrative and survey data rather than a comprehensive count of people moving. | G15: =Information!D136 -> 'Migration between Scotland and the Rest of UK' data in the 'Migration Flows' section of the NRS website
A16: 14 | B16: International net migration | C16: =Information!D139 -> International net migration | D16: =Information!D140 -> These figures measure international net migration. Long-term international migration (LTIM) estimates from 2012 to 2022 are now based on administrative and survey data using a range of data sources, and are part of an ongoing programme of work to transform population and migration statistics. Published Office for National Statistics (ONS) revised LTIM estimates were used to replace and enhance our previous LTIM components which relied more heavily on the International Passenger Survey (IPS). This means that the 2012-2022 figures on international migration may not be comparable with previous estimates produced from the IPS (pre-2012). More information on ONS' current methods to produce international migration estimates can be found on the ONS website. Asylum seekers are included for all years, refugees are also included from 2012 onwards. | E16: =Information!D142 -> The best available measure of international net migration for Scotland. | F16: =CONCATENATE(Information!D143) -> Estimates are only produced annually, usually about 10 months after the period to which they refer. | G16: =Information!D144 -> 'International Migration' data in the 'Migration Flows' section of the NRS website
A17: 15 | B17: International in-migration | C17: =Information!D147 -> International in-migration to administrative areas in Scotland. | D17: =Information!D148 -> These figures measure international net migration. Long-term international migration (LTIM) estimates from 2012 to 2022 are now based on administrative and survey data using a range of data sources, and are part of an ongoing programme of work to transform population and migration statistics. Published Office for National Statistics (ONS) revised LTIM estimates were used to replace and enhance our previous LTIM components which relied more heavily on the International Passenger Survey (IPS). This means that the 2012-2022 figures on international migration may not be comparable with previous estimates produced from the IPS (pre-2012). More information on ONS' current methods to produce international migration estimates can be found on the ONS website. Asylum seekers are included for all years, refugees are also included from 2012 onwards. | E17: =Information!D150 -> The best available measure of international immigration (or inflow). | F17: =CONCATENATE(Information!D151) -> Estimates are only produced annually, usually about 10 months after the period to which they refer. | G17: =Information!D152 -> 'International Migration' data in the 'Migration Flows' section of the NRS website
A18: 16 | B18: International out-migration | C18: =Information!D155 -> International out-migration from administrative areas in Scotland. | D18: =Information!D156 -> These figures measure international net migration. Long-term international migration (LTIM) estimates from 2012 to 2022 are now based on administrative and survey data using a range of data sources, and are part of an ongoing programme of work to transform population and migration statistics. Published Office for National Statistics (ONS) revised LTIM estimates were used to replace and enhance our previous LTIM components which relied more heavily on the International Passenger Survey (IPS). This means that the 2012-2022 figures on international migration may not be comparable with previous estimates produced from the IPS (pre-2012). More information on ONS' current methods to produce international migration estimates can be found on the ONS website. Asylum seekers are included for all years, refugees are also included from 2012 onwards. | E18: =Information!D158 -> The best available measure of international emigration (or outflow). | F18: =CONCATENATE(Information!D159) -> Estimates are only produced annually, usually about 10 months after the period to which they refer. | G18: =Information!D160 -> 'International Migration' data in the 'Migration Flows' section of the NRS website
A19: 17 | B19: National Insurance Number (NINo) allocations to adult overseas nationals entering the UK | C19: =Information!D183 -> Inflow of overseas nationals, looking to work or claim benefits | D19: =Information!D184 -> These data have been obtained using the Stat-Xplore tool on the DWP website, which has annual Council area data. Data used here is on a calendar year basis up until 2022. | E19: =CONCATENATE(Information!D185,Information!D186,Information!D187) -> Includes any overseas national looking to work or claim benefits/tax credits in the UK, self-employed or students working part-time. Provides Council area level data. Location data relates to the residence of the individual, not their employer. | F19: =CONCATENATE(Information!D188,Information!D189,Information!D190,Information!D191,Information!D192,Information!D193) -> Based on the date of registration not the date of arrival, and the lag between the two can often be a year or even longer. Random adjustments have been applied to the data to avoid the disclosure of confidential information. Excludes those not working, nor planning to work or claim benefits, so children and students that don't work are not included. Excludes returning UK nationals. Does not provide any outflow information or overall stock. Includes migrants staying less than one month as there is no minimum stay for registration. Data reflects the migrant's first destination or location at registration, not where migrants settle nor does it reflect the stock of migrants nationally. | G19: =Information!D194 -> Department for Work and Pensions - Stat-Xplore
A20: 18 | B20: Births to non-UK mothers | C20: =Information!D229 -> Number of babies born each year to mothers who had a non-UK country of birth | D20: =Information!D230 -> This data comes from the NRS Vital Events branch and is collected when the birth is registered. This data is published annually on a calendar year basis. Data is available back to 1996. | E20: =Information!D231 -> Gives an indication of migrants choosing to have children, potentially indicating a desire to settle in an area. | F20: =Information!D232 -> Only gives information on a very specific group of migrants (i.e. mothers having children). | G20: =Information!D233 -> 'Births' section of the Vital Events Reference Tables on the NRS website
A21: 19 | B21: Pupils from a minority ethnic group | C21: =Information!D205 -> School aged children by ethnicity | D21: =Information!D206 -> These figures come from the Pupil Census which is collected by the Scottish Government through the ScotXed programme, and are available annually from 2003. The Pupil Census covers all publicly funded schools in Scotland (local authority and grant-aided). It is conducted in September and the data is published in December on the Scottish Government website, with supplementary data being published in March. | E21: =CONCATENATE(Information!D207,Information!D208) -> Data is reasonably current. Can provide an indication of where migrant families with school aged children live, rather than work. | F21: =CONCATENATE(Information!D209,Information!D210,Information!D211,Information!D212,Information!D213) -> Provides no information about migrants without school aged children. Although over 97.5 per cent of pupils disclosed their ethnic background, some pupils' ethnicity was in the 'unknown' category. No specific nationality data. Only includes children in publicly funded schools. Non-migrants may be from a minority ethnic group. | G21: =Information!D214 -> Pupil Census, Scottish Government
A22: 20 | B22: Pupils with English as an additional language | C22: =Information!D217 -> Migrants from non-English speaking countries with school aged children | D22: =Information!D218 -> These figures come from the Pupil Census which is collected by the Scottish Government through the ScotXed programme, and are available annually from 2003. The Pupil Census covers all publicly funded schools in Scotland (local authority and grant-aided). It is conducted in September and the data is published in December on the Scottish Government website, with supplementary data being published in March the following year. | E22: =CONCATENATE(Information!D219,Information!D220) -> Data is reasonably current. Can provide an indication of where migrant families with school aged children live, rather than work. | F22: =CONCATENATE(Information!D221,Information!D222,Information!D223,Information!D224,Information!D225) -> Provides no information about migrants without school aged children. No specific nationality data. Only includes children in publicly funded schools. Excludes migrants from English speaking countries (whose first language is English) and those fluent in English. Includes non-recent migrants still speaking a different home language if pupils have English as an additional language. | G22: =Information!D226 -> Pupil Census, Scottish Government
A23: 21 | B23: Population born outside the UK | C23: =Information!D163 -> Resident population ('stock') of migrants based on those with non-UK country of birth | D23: =CONCATENATE(Information!D164,Information!D165) -> The country of birth data from the Annual Population Survey (APS) is used for this indicator. This information gives an estimate of the number of people living in Scotland who were born outside the UK. The data is available from 2004 to 2020, on a calendar year basis. The Office for National Statistics (ONS) are transforming the way they produce population and migration statistics to make best use of all available data. As part of this transformation journey, they are reviewing the best methods to produce estimates of the population of the UK by country of birth and nationality. Therefore, the population by country of birth and nationality series using the Annual Population Survey (APS), which has been the main data source for these estimates in the past, has been discontinued. ONS are currently working on alternative approaches, including the use of administrative data to replace these APS estimates. ONS website. | E23: =Information!D166 -> Gives a more robust estimate of change over time than looking at nationality as an individual's nationality can change. | F23: =CONCATENATE(Information!D167,Information!D168,Information!D169) -> LFS excludes most communal establishments and foreign students living in halls of residence, and so the number of foreign born migrants is likely to be under-reported. For some council areas an estimate cannot be made from the APS as the number of people born outside the UK is too small for the estimate to be reliable. Some people born outside the UK may have lived in the UK for a long time and are therefore not regarded as migrants. | G23: =Information!D170 -> 'Population by Country of Birth and Nationality' section of the NRS website
A24: 22 | B24: Population with non-British nationality | C24: =Information!D173 -> Resident population ('stock') of migrants based on those with non-British nationality | D24: =CONCATENATE(Information!D174,Information!D175) -> Nationality data from the Annual Population Survey (APS) is used for this indicator. This information gives an estimate of the number of people living in Scotland who were born outside the UK. The data is available from 2004 to 2020, on a calendar year basis. The Office for National Statistics (ONS) are transforming the way they produce population and migration statistics to make best use of all available data. As part of this transformation journey, they are reviewing the best methods to produce estimates of the population of the UK by country of birth and nationality. Therefore, the population by country of birth and nationality series using the Annual Population Survey (APS), which has been the main data source for these estimates in the past, will be discontinued. ONS are currently working on alternative approaches, including the use of administrative data to replace these APS estimates. ONS website. | E24: =Information!D176 -> Gives a more up to date look at migration than country of birth data, as people who were born outside the UK but have lived here for many years are not regarded as migrants. | F24: =CONCATENATE(Information!D177,Information!D178,Information!D179) -> LFS excludes most communal establishments and foreign students living in halls of residence, and so the number of foreign born migrants is likely to be under-reported. For some council areas an estimate cannot be made from the APS as the number of people born outside the UK is too small for the estimate to be reliable. An individuals nationality can change, meaning time series are less robust than for country of birth data. | G24: =Information!D180 -> 'Population by Country of Birth and Nationality' section of the NRS website
A25: 23 | B25: Citizenships | C25: =Information!D236 -> Overseas nationals gaining UK citizenship | D25: =Information!D237 -> The data is available from 2004 to 2020. Definition of citizenship ceremonies: A ceremony organised by County or Local Authorities for successful applicants over 18 years of age for British citizenship. At the ceremony the applicant takes the Oath or Affirmation of allegiance to Her Majesty the Queen and the Pledge of loyalty to the United Kingdom. Since 1 January 2004 this has been the final stage in the process of attaining British citizenship. The citizenship ceremony is organised by the relevant local authority, and happens after the Home Office have processed the application. | E25: =Information!D238 -> Shows the number of people aged 18 and over that have become British citizens. | F25: =Information!D239 -> Citizenship is a complicated subject, and people will gain British Citizenship for a variety of different reasons. | G25: =Information!D240 -> Home Office Immigration Statistics

Sheet Comparing Indicators
S1: Geography | U1: Indicator | V1: Timing | Y1: Value | AA1: Timing of Indicator data
R2: Code - Geography | S2: 1 | T2: Ind1 | U2: 1 | X2: Code - count/rate | Y2: 1 | AB2: =I15 -> 2016 | AC2: =J15 -> 2017 | AD2: 2018 | AE2: 2019 | AF2: 2020 | AG2: 2021 | AH2: 2022
R3: 1 | S3: Not specified | T3: Ind2 | U3: 1 | V3: 1 | W3: Mid-year | AA3: =VLOOKUP($E$16,$U$7:$V$29,2,FALSE) -> 0 | AB3: =IF((VLOOKUP($S$2,INDIRECT("Data"&AB2),$U$2+2,FALSE))="",NA(),(VLOOKUP($S$2,INDIRECT("Data"&AB2),$U$2+2,FALSE))) ->  | AG3: =IF((VLOOKUP($S$2,INDIRECT("Data"&AG2),$U$2+2,FALSE))="",NA(),(VLOOKUP($S$2,INDIRECT("Data"&AG2),$U$2+2,FALSE))) ->  | AH3: =IF((VLOOKUP($S$2,INDIRECT("Data"&AH2),$U$2+2,FALSE))="",NA(),(VLOOKUP($S$2,INDIRECT("Data"&AH2),$U$2+2,FALSE))) -> 
R4: 2 | S4: SCOTLAND | T4: Ind3 | U4: 1 | V4: 2 | W4: Calendar year
R5: 3 | S5: Aberdeen City | AA5: =VLOOKUP($E$18,$U$7:$V$29,2,FALSE) -> 0 | AB5: =IF((VLOOKUP($S$2,INDIRECT("Data"&AB2),$U$3+2,FALSE))="",NA(),(VLOOKUP($S$2,INDIRECT("Data"&AB2),$U$3+2,FALSE))) ->  | AC5: =IF((VLOOKUP($S$2,INDIRECT("Data"&AC2),$U$3+2,FALSE))="",NA(),(VLOOKUP($S$2,INDIRECT("Data"&AC2),$U$3+2,FALSE))) -> 
R6: 4 | S6: Aberdeenshire
C7: Comparing Indicators | R7: 5 | S7: Angus | T7: 1 | U7: Not specified | X7: 1 | Y7: Count | AA7: =VLOOKUP($E$20,$U$7:$V$29,2,FALSE) -> 0 | AB7: =IF((VLOOKUP($S$2,INDIRECT("Data"&AB2),$U$4+2,FALSE))="",NA(),(VLOOKUP($S$2,INDIRECT("Data"&AB2),$U$4+2,FALSE))) ->  | AC7: =IF((VLOOKUP($S$2,INDIRECT("Data"&AC2),$U$4+2,FALSE))="",NA(),(VLOOKUP($S$2,INDIRECT("Data"&AC2),$U$4+2,FALSE))) -> 
R8: 6 | S8: Argyll and Bute | T8: 2 | U8: Total net migration | V8: 1 | X8: 2 | Y8: Rate per 1000
R9: 7 | S9: City of Edinburgh | T9: 3 | U9: Total net migration for ages 0-15 | V9: 1
R10: 8 | S10: Clackmannanshire | T10: 4 | U10: Total net migration for ages 16-64 | V10: 1
C11: Geography | E11: =VLOOKUP($S$2,$R$3:$S$36,2) -> Not specified | R11: 9 | S11: Dumfries and Galloway | T11: 5 | U11: Total net migration for people aged 65+ | V11: 1
R12: 10 | S12: Dundee City | T12: 6 | U12: Total in-migration | V12: 1
C13: Value | E13: =VLOOKUP($Y$2,$X$7:$Y$8,2) -> Count | R13: 11 | S13: East Ayrshire | T13: 7 | U13: Total out-migration | V13: 1 | AB13: =I15 -> 2016 | AC13: 2017 | AD13: 2018 | AE13: 2019 | AF13: 2020 | AG13: 2021 | AH13: 2022
R14: 12 | S14: East Dunbartonshire | T14: 8 | U14: Within Scotland net migration | V14: 1 | AB14: =IF((VLOOKUP($S$2,INDIRECT("Rate"&AB13),$U$2+2,FALSE))="",NA(),(VLOOKUP($S$2,INDIRECT("Rate"&AB13),$U$2+2,FALSE))) -> 
G15: Timing of data | I15: 2016 | J15: 2017 | K15: 2018 | L15: 2019 | M15: 2020 | N15: 2021 | O15: 2022 | R15: 13 | S15: East Lothian | T15: 9 | U15: Within Scotland in-migration | V15: 1
C16: Indicator | E16: =VLOOKUP($U$2,$T$7:$U$29,2) -> Not specified | G16: =VLOOKUP(AA3,$V$3:$W$4,2) ->  | I16: =IF($Y$2=1,AB3,AB14) ->  | N16: =IF($Y$2=1,AG3,AG14) ->  | R16: 14 | S16: East Renfrewshire | T16: 10 | U16: Within Scotland out-migration | V16: 1 | AB16: =IF((VLOOKUP($S$2,INDIRECT("Rate"&AB13),$U$3+2,FALSE))="",NA(),(VLOOKUP($S$2,INDIRECT("Rate"&AB13),$U$3+2,FALSE))) ->  | AC16: =IF((VLOOKUP($S$2,INDIRECT("Rate"&AC2),$U$3+2,FALSE))="",NA(),(VLOOKUP($S$2,INDIRECT("Rate"&AC2),$U$3+2,FALSE))) -> 
R17: 15 | S17: Falkirk | T17: 11 | U17: Rest of UK net migration | V17: 1
C18: Indicator | E18: =VLOOKUP($U$3,$T$7:$U$29,2) -> Not specified | G18: =VLOOKUP(AA5,$V$2:$W$4,2) ->  | I18: =IF($Y$2=1,AB5,AB16) ->  | O18: =IF($Y$2=1,AH5,AH16) ->  | R18: 16 | S18: Fife | T18: 12 | U18: Rest of UK in-migration | V18: 1 | AB18: =IF((VLOOKUP($S$2,INDIRECT("Rate"&AB13),$U$4+2,FALSE))="",NA(),(VLOOKUP($S$2,INDIRECT("Rate"&AB13),$U$4+2,FALSE))) ->  | AC18: =IF((VLOOKUP($S$2,INDIRECT("Rate"&AC2),$U$4+2,FALSE))="",NA(),(VLOOKUP($S$2,INDIRECT("Rate"&AC2),$U$4+2,FALSE))) ->  | AG18: =IF((VLOOKUP($S$2,INDIRECT("Rate"&AG2),$U$4+2,FALSE))="",NA(),(VLOOKUP($S$2,INDIRECT("Rate"&AG2),$U$4+2,FALSE))) -> 
R19: 17 | S19: Glasgow City | T19: 13 | U19: Rest of UK out-migration | V19: 1
C20: Indicator | E20: =VLOOKUP($U$4,$T$7:$U$29,2) -> Not specified | G20: =VLOOKUP($AA$7,$V$3:$W$4,2) ->  | I20: =IF($Y$2=1,AB7,AB18) ->  | O20: =IF($Y$2=1,AH7,AH18) ->  | R20: 18 | S20: Highland | T20: 14 | U20: International net migration | V20: 1
R21: 19 | S21: Inverclyde | T21: 15 | U21: International in-migration | V21: 1
R22: 20 | S22: Midlothian | T22: 16 | U22: International out-migration | V22: 1
R23: 21 | S23: Moray | T23: 17 | U23: NINo Allocation | V23: 2
R24: 22 | S24: Na h-Eileanan Siar | T24: 18 | U24: Births to non-UK mothers | V24: 2
R25: 23 | S25: North Ayrshire | T25: 19 | U25: Pupils from a minority ethnic group | V25: 2
R26: 24 | S26: North Lanarkshire | T26: 20 | U26: Pupils with English as an additional language | V26: 2
R27: 25 | S27: Orkney Islands | T27: 21 | U27: Population born outside the UK | V27: 2
R28: 26 | S28: Perth and Kinross | T28: 22 | U28: Population with non-British nationality | V28: 2
R29: 27 | S29: Renfrewshire | T29: 23 | U29: Citizenships | V29: 2
R30: 28 | S30: Scottish Borders
R31: 29 | S31: Shetland Islands
R32: 30 | S32: South Ayrshire
R33: 31 | S33: South Lanarkshire
R34: 32 | S34: Stirling
R35: 33 | S35: West Dunbartonshire
R36: 34 | S36: West Lothian
B43: Information on Indicators
B45: =VLOOKUP($U$2,'Info lookup'!$A$3:$B$25,2) -> Not specified
B46: Indicator of: | D46: =VLOOKUP($U$2,'Info lookup'!$A$2:$F$25,3) -> ~
B47: Information: | D47: =VLOOKUP($U$2,'Info lookup'!$A$2:$F$25,4) -> ~
B48: Strengths: | D48: =VLOOKUP($U$2,'Info lookup'!$A$2:$F$25,5) -> ~
B49: Weaknesses: | D49: =VLOOKUP($U$2,'Info lookup'!$A$2:$F$25,6) -> ~
B50: Source: | D50: =VLOOKUP($U$2,'Info lookup'!$A$2:$G$25,7) -> ~
B52: =VLOOKUP($U$3,'Info lookup'!$A$3:$F$25,2) -> Not specified
B53: Indicator of: | D53: =VLOOKUP($U$3,'Info lookup'!$A$2:$F$25,3) -> ~
B54: Information: | D54: =VLOOKUP($U$3,'Info lookup'!$A$2:$F$25,4) -> ~
B55: Strengths: | D55: =VLOOKUP($U$3,'Info lookup'!$A$2:$F$25,5) -> ~
B56: Weaknesses: | D56: =VLOOKUP($U$3,'Info lookup'!$A$2:$F$25,6) -> ~
B57: Source: | D57: =VLOOKUP($U$3,'Info lookup'!$A$2:$G$25,7) -> ~
B59: =VLOOKUP($U$4,'Info lookup'!$A$3:$F$25,2) -> Not specified
B60: Indicator of: | D60: =VLOOKUP($U$4,'Info lookup'!$A$2:$F$25,3) -> ~
B61: Information: | D61: =VLOOKUP($U$4,'Info lookup'!$A$2:$F$25,4) -> ~
B62: Strengths: | D62: =VLOOKUP($U$4,'Info lookup'!$A$2:$F$25,5) -> ~
B63: Weaknesses: | D63: =VLOOKUP($U$4,'Info lookup'!$A$2:$F$25,6) -> ~
B64: Source: | D64: =VLOOKUP($U$4,'Info lookup'!$A$2:$G$25,7) -> ~
B66: © Crown Copyright 2024

Sheet Comparing Areas
S1: Geography | U1: Indicator | V1: Timing | X1: Value
R2: Code - Geography 1 | S2: 1 | T2: Code - indicator | U2: 1 | V2: Code | W2: 1 | X2: Code - count/rate | Y2: 1
R3: Code - Geography 2 | S3: 1 | V3: 1 | W3: Mid-year | X3: 1 | Y3: Count
R4: Code - Geography 3 | S4: 1 | V4: 2 | W4: Calendar year | X4: 2 | Y4: Rate per 1000 | Z4: Count
Z5: =I15 -> 2016 | AA5: 2017 | AB5: 2018 | AC5: 2019 | AD5: 2020 | AE5: 2021 | AF5: 2022
Z6: =IF((VLOOKUP($S$2,INDIRECT("Data"&Z5),$U$2+2,FALSE))="",NA(),(VLOOKUP($S$2,INDIRECT("Data"&Z5),$U$2+2,FALSE))) ->  | AA6: =IF((VLOOKUP($S$2,INDIRECT("Data"&AA5),$U$2+2,FALSE))="",NA(),(VLOOKUP($S$2,INDIRECT("Data"&AA5),$U$2+2,FALSE))) -> 
B7: Comparing Areas | Z7: =IF((VLOOKUP($S$3,INDIRECT("Data"&Z5),$U$2+2,FALSE))="",NA(),(VLOOKUP($S$3,INDIRECT("Data"&Z5),$U$2+2,FALSE))) ->  | AA7: =IF((VLOOKUP($S$3,INDIRECT("Data"&AA5),$U$2+2,FALSE))="",NA(),(VLOOKUP($S$3,INDIRECT("Data"&AA5),$U$2+2,FALSE))) -> 
Z8: =IF((VLOOKUP($S$4,INDIRECT("Data"&Z5),$U$2+2,FALSE))="",NA(),(VLOOKUP($S$4,INDIRECT("Data"&Z5),$U$2+2,FALSE))) ->  | AA8: =IF((VLOOKUP($S$4,INDIRECT("Data"&AA5),$U$2+2,FALSE))="",NA(),(VLOOKUP($S$4,INDIRECT("Data"&AA5),$U$2+2,FALSE))) -> 
Z10: Rate
C11: Indicator | E11: =VLOOKUP($U$2,$T$14:$U$36,2) -> Not specified | U11: Calendar/mid-year code | V11: =VLOOKUP(U2,T14:V34,3) -> 1 | Z11: =I15 -> 2016 | AA11: 2017 | AB11: 2018 | AC11: 2019 | AD11: 2020 | AE11: 2021 | AF11: =O15 -> 2022
Z12: =IF((VLOOKUP($S$2,INDIRECT("Rate"&Z11),$U$2+2,FALSE))="",NA(),(VLOOKUP($S$2,INDIRECT("Rate"&Z11),$U$2+2,FALSE))) -> 
C13: Value | E13: =VLOOKUP($Y$2,$X$3:$Y$4,2) -> Count | L13: =VLOOKUP($V$11,$V$3:$W$4,2) -> Mid-year | Z13: =IF((VLOOKUP($S$3,INDIRECT("Rate"&Z11),$U$2+2,FALSE))="",NA(),(VLOOKUP($S$3,INDIRECT("Rate"&Z11),$U$2+2,FALSE))) ->  | AA13: =IF((VLOOKUP($S$3,INDIRECT("Rate"&AA11),$U$2+2,FALSE))="",NA(),(VLOOKUP($S$3,INDIRECT("Rate"&AA11),$U$2+2,FALSE))) -> 
R14: 1 | S14: Not specified | T14: 1 | U14: Not specified | V14: 1 | Z14: =IF((VLOOKUP($S$4,INDIRECT("Rate"&Z11),$U$2+2,FALSE))="",NA(),(VLOOKUP($S$4,INDIRECT("Rate"&Z11),$U$2+2,FALSE))) -> 
I15: 2016 | J15: 2017 | K15: 2018 | L15: 2019 | M15: 2020 | N15: 2021 | O15: 2022 | R15: 2 | S15: SCOTLAND | T15: 2 | U15: ='Comparing Indicators'!U8 -> Total net migration | V15: 1
C16: Geography | E16: =VLOOKUP($S$2,$R$14:$S$47,2) -> Not specified | I16: =IF($Y$2=1, Z6, Z12) ->  | J16: =IF($Y$2=1,AA6,AA12) ->  | R16: 3 | S16: Aberdeen City | T16: 3 | U16: ='Comparing Indicators'!U9 -> Total net migration for ages 0-15 | V16: 1
R17: 4 | S17: Aberdeenshire | T17: 4 | U17: ='Comparing Indicators'!U10 -> Total net migration for ages 16-64 | V17: 1
C18: Geography | E18: =VLOOKUP($S$3,$R$14:$S$47,2) -> Not specified | I18: =IF($Y$2=1,Z7,Z13) ->  | J18: =IF($Y$2=1,AA7,AA13) ->  | R18: 5 | S18: Angus | T18: 5 | U18: ='Comparing Indicators'!U11 -> Total net migration for people aged 65+ | V18: 1
R19: 6 | S19: Argyll and Bute | T19: 6 | U19: ='Comparing Indicators'!U12 -> Total in-migration | V19: 1
C20: Geography | E20: =VLOOKUP($S$4,$R$14:$S$47,2) -> Not specified | I20: =IF($Y$2=1,Z8,Z14) ->  | J20: =IF($Y$2=1,AA8,AA14) ->  | R20: 7 | S20: City of Edinburgh | T20: 7 | U20: ='Comparing Indicators'!U13 -> Total out-migration | V20: 1
R21: 8 | S21: Clackmannanshire | T21: 8 | U21: ='Comparing Indicators'!U14 -> Within Scotland net migration | V21: 1
R22: 9 | S22: Dumfries and Galloway | T22: 9 | U22: ='Comparing Indicators'!U15 -> Within Scotland in-migration | V22: 1
R23: 10 | S23: Dundee City | T23: 10 | U23: ='Comparing Indicators'!U16 -> Within Scotland out-migration | V23: 1
R24: 11 | S24: East Ayrshire | T24: 11 | U24: ='Comparing Indicators'!U17 -> Rest of UK net migration | V24: 1
R25: 12 | S25: East Dunbartonshire | T25: 12 | U25: ='Comparing Indicators'!U18 -> Rest of UK in-migration | V25: 1
R26: 13 | S26: East Lothian | T26: 13 | U26: ='Comparing Indicators'!U19 -> Rest of UK out-migration | V26: 1
R27: 14 | S27: East Renfrewshire | T27: 14 | U27: ='Comparing Indicators'!U20 -> International net migration | V27: 1
R28: 15 | S28: Falkirk | T28: 15 | U28: ='Comparing Indicators'!U21 -> International in-migration | V28: 1
R29: 16 | S29: Fife | T29: 16 | U29: ='Comparing Indicators'!U22 -> International out-migration | V29: 1
R30: 17 | S30: Glasgow City | T30: 17 | U30: ='Comparing Indicators'!U23 -> NINo Allocation | V30: 2
R31: 18 | S31: Highland | T31: 18 | U31: ='Comparing Indicators'!U24 -> Births to non-UK mothers | V31: 2
R32: 19 | S32: Inverclyde | T32: 19 | U32: ='Comparing Indicators'!U25 -> Pupils from a minority ethnic group | V32: 2
R33: 20 | S33: Midlothian | T33: 20 | U33: ='Comparing Indicators'!U26 -> Pupils with English as an additional language | V33: 2
R34: 21 | S34: Moray | T34: 21 | U34: ='Comparing Indicators'!U27 -> Population born outside the UK | V34: 2
R35: 22 | S35: Na h-Eileanan Siar | T35: 22 | U35: ='Comparing Indicators'!U28 -> Population with non-British nationality | V35: 2
R36: 23 | S36: North Ayrshire | T36: 23 | U36: ='Comparing Indicators'!U29 -> Citizenships | V36: 2
R37: 24 | S37: North Lanarkshire
R38: 25 | S38: Orkney Islands
R39: 26 | S39: Perth and Kinross
R40: 27 | S40: Renfrewshire
R41: 28 | S41: Scottish Borders
R42: 29 | S42: Shetland Islands
B43: =VLOOKUP($U$2,'Info lookup'!$A$3:$F$25,2) -> Not specified | R43: 30 | S43: South Ayrshire
B44: Indicator of: | D44: =VLOOKUP($U$2,'Info lookup'!$A$4:$F$25,3) ->  | R44: 31 | S44: South Lanarkshire
B45: Information: | D45: =VLOOKUP($U$2,'Info lookup'!$A$4:$F$25,4) ->  | R45: 32 | S45: Stirling
B46: Strengths: | D46: =VLOOKUP($U$2,'Info lookup'!$A$4:$F$25,5) ->  | R46: 33 | S46: West Dunbartonshire
B47: Weaknesses: | D47: =VLOOKUP($U$2,'Info lookup'!$A$4:$F$25,6) ->  | R47: 34 | S47: West Lothian
B48: Source: | D48: =VLOOKUP($U$2,'Info lookup'!$A$4:$G$25,7) -> 
B50: © Crown Copyright 2024

Sheet Comparing NHS Board Areas
S1: Health Board Areas | W1: Indicator
S2: HB area 1 | T2: 1 | V2: Ind | W2: 1
S3: HB area 2 | T3: 1
S4: HB area 3 | T4: 1
Y6: Timing | AB6: Value | AF6: Count
B7: Comparing NHS Board Areas | T7: 1 | V7: 1 | W7: 1 | Y7: Code | Z7: =VLOOKUP($W$2,$V$11:$X$27,3) -> 0 | AD7: 1 | AF7: =I15 -> 2016 | AG7: 2017 | AH7: 2018 | AI7: 2019 | AJ7: 2020 | AK7: 2021 | AL7: 2022
T8: 1 | AF8: =IF((VLOOKUP(($T$2+34),INDIRECT("Data"&AF7),$W$2+2,FALSE))="",NA(),(VLOOKUP($T$2+34,INDIRECT("Data"&AF7),$W$2+2,FALSE))) -> 
T9: 1 | AF9: =IF((VLOOKUP(($T$3+34),INDIRECT("Data"&AF7),$W$2+2,FALSE))="",NA(),(VLOOKUP($T$3+34,INDIRECT("Data"&AF7),$W$2+2,FALSE))) -> 
X10: Timing codes | AF10: =IF((VLOOKUP(($T$4+34),INDIRECT("Data"&AF7),$W$2+2,FALSE))="",NA(),(VLOOKUP($T$4+34,INDIRECT("Data"&AF7),$W$2+2,FALSE))) -> 
C11: Indicator | E11: =VLOOKUP($W$2,HBIndicatorCode,2) -> Not specified | S11: 1 | T11: Not specified | V11: 1 | W11: Not specified | Y11: 1 | Z11: Mid-year | AB11: 1 | AC11: Count
S12: 2 | T12: SCOTLAND | V12: 2 | W12: Total net migration | X12: 1 | Y12: 2 | Z12: Calendar year | AB12: 2 | AC12: Rate per 1000 | AF12: Rate
C13: Value | E13: =VLOOKUP($AD$7,$AB$11:$AC$12,2) -> Count | K13: =VLOOKUP($Z$7,TimingCode,2) ->  | S13: 3 | T13: Ayrshire and Arran | V13: 3 | W13: Total net migration for ages 0-15 | X13: 1 | AF13: =I15 -> 2016 | AG13: 2017 | AH13: 2018 | AI13: 2019 | AJ13: 2020 | AK13: 2021 | AL13: 2022
S14: 4 | T14: Borders | V14: 4 | W14: Total net migration for ages 16-64 | X14: 1 | AF14: =IF((VLOOKUP(($T$2+34),INDIRECT("Rate"&AF13),$W$2+2,FALSE))="",NA(),(VLOOKUP($T$2+34,INDIRECT("Rate"&AF13),$W$2+2,FALSE))) -> 
I15: 2016 | J15: 2017 | K15: 2018 | L15: 2019 | M15: 2020 | N15: 2021 | O15: 2022 | S15: 5 | T15: Dumfries and Galloway | V15: 5 | W15: Total net migration for people aged 65+ | X15: 1 | AF15: =IF((VLOOKUP(($T$3+34),INDIRECT("Rate"&AF13),$W$2+2,FALSE))="",NA(),(VLOOKUP($T$3+34,INDIRECT("Rate"&AF13),$W$2+2,FALSE))) -> 
C16: Geography | E16: =VLOOKUP($T$2,HBCode,2) -> Not specified | I16: =IF($AD$7=1,AF8,AF14) ->  | S16: 6 | T16: Fife | V16: 6 | W16: Total in-migration | X16: 1 | AF16: =IF((VLOOKUP(($T$4+34),INDIRECT("Rate"&AF13),$W$2+2,FALSE))="",NA(),(VLOOKUP($T$4+34,INDIRECT("Rate"&AF13),$W$2+2,FALSE))) -> 
S17: 7 | T17: Forth Valley | V17: 7 | W17: Total out-migration | X17: 1
C18: Geography | E18: =VLOOKUP($T$3,HBCode,2) -> Not specified | I18: =IF($AD$7=1,AF9,AF15) ->  | S18: 8 | T18: Grampian | V18: 8 | W18: Within Scotland net migration | X18: 1
S19: 9 | T19: Greater Glasgow and Clyde | V19: 9 | W19: Within Scotland in-migration | X19: 1
C20: Geography | E20: =VLOOKUP($T$4,HBCode,2) -> Not specified | I20: =IF($AD$7=1,AF10,AF16) ->  | S20: 10 | T20: Highland | V20: 10 | W20: Within Scotland out-migration | X20: 1
S21: 11 | T21: Lanarkshire | V21: 11 | W21: Rest of UK net migration | X21: 1
S22: 12 | T22: Lothian | V22: 12 | W22: Rest of UK in-migration | X22: 1
S23: 13 | T23: Orkney | V23: 13 | W23: Rest of UK out-migration | X23: 1
S24: 14 | T24: Shetland | V24: 14 | W24: International net migration | X24: 1
S25: 15 | T25: Tayside | V25: 15 | W25: International in-migration | X25: 1
S26: 16 | T26: Western Isles | V26: 16 | W26: International out-migration | X26: 1
W29: (Set code in column X to 1 if data is at mid-year, 2 if data is for calendar year.)
B43: =VLOOKUP('Comparing NHS Board Areas'!$W$2,'Info lookup'!$A$3:$F$23,2) -> Not specified
B44: Indicator of: | D44: =VLOOKUP($W$2,'Info lookup'!$A$4:$F$23,3) -> 
B45: Information: | D45: =VLOOKUP($W$2,'Info lookup'!$A$4:$F$23,4) -> 
B46: Strengths: | D46: =VLOOKUP($W$2,'Info lookup'!$A$4:$F$23,5) -> 
B47: Weaknesses: | D47: =VLOOKUP($W$2,'Info lookup'!$A$4:$F$23,6) -> 
B48: Source: | D48: =VLOOKUP($W$2,'Info lookup'!$A$4:$G$23,7) -> 
B51: © Crown Copyright 2024

Sheet Total net migration
A1: Total net migration
A2: This worksheet contains two tables, presented next to each other vertically with one blank row between the tables.
A3: See notes [1], [2], [3], [4], [5] which are explained in the Notes worksheet.
A4: Return to front page
A5: Council Area | B5: 2003-04 | C5: 2004-05 | D5: 2005-06 | E5: 2006-07 | F5: 2007-08 | G5: 2008-09 | H5: 2009-10 | I5: 2010-11 | J5: 2011-12 | K5: 2012-13 | L5: 2013-14 | M5: 2014-15 | N5: 2015-16 | O5: 2016-17 | P5: 2017-18 | Q5: 2018-19 | R5: 2019-20 | S5: 2020-21 | T5: 2021-22
A6: Scotland | B6: 18600 | C6: 25300 | D6: 18800 | E6: 33000 | F6: 26400 | G6: 24400 | H6: 26100 | I6: 30200 | J6: 10400 | K6: 7700 | L6: 15600 | M6: 25400 | N6: 26600 | O6: 22500 | P6: 15900 | Q6: 28100 | R6: 16100 | S6: 22200 | T6: 48800
A7: Aberdeen City | B7: -1190 | C7: 1110 | D7: 1140 | E7: 2950 | F7: 1650 | G7: 2970 | H7: 2750 | I7: 3080 | J7: 820 | K7: 560 | L7: 310 | M7: 30 | N7: -1910 | O7: -1950 | P7: -1890 | Q7: 200 | R7: -40 | S7: -2070 | T7: 2960
A8: Aberdeenshire | B8: 3230 | C8: 2780 | D8: 3070 | E8: 2680 | F8: 1880 | G8: 1510 | H8: 1690 | I8: 1380 | J8: 1590 | K8: 1860 | L8: 2550 | M8: 1510 | N8: -350 | O8: -750 | P8: -910 | Q8: -380 | R8: -20 | S8: 2010 | T8: 1140
A9: Angus | B9: 1340 | C9: 1070 | D9: 950 | E9: 760 | F9: 650 | G9: 150 | H9: 360 | I9: 120 | J9: 260 | K9: 200 | L9: 700 | M9: 800 | N9: 160 | O9: 160 | P9: 120 | Q9: 410 | R9: 260 | S9: 750 | T9: 420
A10: Argyll and Bute | B10: 930 | C10: 440 | D10: 200 | E10: 380 | F10: -40 | G10: -30 | H10: 290 | I10: 300 | J10: -10 | K10: 80 | L10: 60 | M10: -90 | N10: 320 | O10: 300 | P10: -70 | Q10: 60 | R10: 110 | S10: 1200 | T10: 440
A11: City of Edinburgh | B11: 2230 | C11: 5320 | D11: 3410 | E11: 4920 | F11: 3360 | G11: 5860 | H11: 8070 | I11: 8040 | J11: 2010 | K11: 670 | L11: 1080 | M11: 5380 | N11: 5560 | O11: 3970 | P11: 2850 | Q11: 4210 | R11: 1790 | S11: -3680 | T11: 7970
A12: Clackmannanshire | B12: 550 | C12: 570 | D12: 300 | E12: 740 | F12: 400 | G12: 40 | H12: -80 | I12: -10 | J12: -170 | K12: -20 | L12: -10 | M12: 160 | N12: 10 | O12: 130 | P12: -60 | Q12: 130 | R12: 100 | S12: 250 | T12: 260
A13: Dumfries and Galloway | B13: 1180 | C13: 1190 | D13: 470 | E13: 710 | F13: 810 | G13: 300 | H13: 120 | I13: 380 | J13: -190 | K13: -30 | L13: 300 | M13: 100 | N13: 220 | O13: 210 | P13: 110 | Q13: 590 | R13: 320 | S13: 1300 | T13: 660
A14: Dundee City | B14: -740 | C14: 570 | D14: -110 | E14: 270 | F14: 610 | G14: 920 | H14: 980 | I14: 1430 | J14: 230 | K14: -100 | L14: -370 | M14: 40 | N14: -50 | O14: 670 | P14: 220 | Q14: 740 | R14: 100 | S14: -870 | T14: 1890
A15: East Ayrshire | B15: 370 | C15: 40 | D15: 90 | E15: 330 | F15: 550 | G15: 380 | H15: 30 | I15: 30 | J15: -110 | K15: -60 | L15: -80 | M15: -30 | N15: 60 | O15: -30 | P15: 100 | Q15: 430 | R15: 40 | S15: 750 | T15: 630
A16: East Dunbartonshire | B16: -460 | C16: -480 | D16: -450 | E16: -290 | F16: -180 | G16: -80 | H16: -70 | I16: -110 | J16: 320 | K16: 240 | L16: 1040 | M16: 740 | N16: 650 | O16: 770 | P16: 340 | Q16: 490 | R16: 590 | S16: 470 | T16: 390
A17: East Lothian | B17: 430 | C17: 500 | D17: 930 | E17: 1560 | F17: 1640 | G17: 710 | H17: 600 | I17: 450 | J17: 1000 | K17: 840 | L17: 1010 | M17: 1260 | N17: 990 | O17: 1010 | P17: 1230 | Q17: 1460 | R17: 1220 | S17: 2040 | T17: 1370
A18: East Renfrewshire | B18: -100 | C18: -20 | D18: -210 | E18: 50 | F18: -70 | G18: 70 | H18: 370 | I18: 270 | J18: 230 | K18: 680 | L18: 910 | M18: 700 | N18: 770 | O18: 980 | P18: 430 | Q18: 410 | R18: 680 | S18: 630 | T18: 1110
A19: Falkirk | B19: 1510 | C19: 1640 | D19: 940 | E19: 940 | F19: 660 | G19: 570 | H19: 460 | I19: 1020 | J19: 280 | K19: 430 | L19: 470 | M19: 720 | N19: 950 | O19: 900 | P19: 250 | Q19: 740 | R19: 200 | S19: 380 | T19: 180
A20: Fife | B20: 2350 | C20: 2660 | D20: 1560 | E20: 1890 | F20: 1630 | G20: 1550 | H20: 1810 | I20: 2080 | J20: 670 | K20: 230 | L20: 600 | M20: 1300 | N20: 1520 | O20: 1320 | P20: 970 | Q20: 2310 | R20: 1300 | S20: 1610 | T20: 2250
A21: Glasgow City | B21: -3420 | C21: -1560 | D21: -1990 | E21: 2300 | F21: 2930 | G21: 3990 | H21: 3050 | I21: 5370 | J21: 310 | K21: -900 | L21: 370 | M21: 3130 | N21: 5920 | O21: 4100 | P21: 5120 | Q21: 4930 | R21: 2060 | S21: 100 | T21: 11840
A22: Highland | B22: 2850 | C22: 2860 | D22: 2050 | E22: 2680 | F22: 2110 | G22: 990 | H22: 990 | I22: 900 | J22: 380 | K22: 300 | L22: 360 | M22: 1110 | N22: 1200 | O22: 840 | P22: 530 | Q22: 820 | R22: 390 | S22: 2900 | T22: 1030
A23: Inverclyde | B23: -600 | C23: -130 | D23: -350 | E23: -320 | F23: -200 | G23: -360 | H23: -230 | I23: -290 | J23: -80 | K23: -10 | L23: -210 | M23: -40 | N23: -20 | O23: 30 | P23: -110 | Q23: 140 | R23: 0 | S23: 180 | T23: 260
A24: Midlothian | B24: -260 | C24: -320 | D24: -260 | E24: 110 | F24: 430 | G24: 470 | H24: 240 | I24: 520 | J24: 740 | K24: 860 | L24: 1290 | M24: 1180 | N24: 1140 | O24: 1390 | P24: 1130 | Q24: 1080 | R24: 780 | S24: 1430 | T24: 1330
A25: Moray | B25: 980 | C25: 690 | D25: 460 | E25: 530 | F25: 330 | G25: 400 | H25: -10 | I25: -160 | J25: 270 | K25: 570 | L25: 460 | M25: 490 | N25: 460 | O25: 0 | P25: -90 | Q25: 240 | R25: 20 | S25: 560 | T25: 330
A26: Na h-Eileanan Siar | B26: 250 | C26: 270 | D26: 130 | E26: 70 | F26: 20 | G26: 70 | H26: 170 | I26: 20 | J26: 10 | K26: -10 | L26: -80 | M26: -40 | N26: -90 | O26: 130 | P26: -20 | Q26: 20 | R26: -30 | S26: 310 | T26: 220
A27: North Ayrshire | B27: 210 | C27: 100 | D27: -20 | E27: 430 | F27: 330 | G27: -120 | H27: -170 | I27: 140 | J27: -350 | K27: -220 | L27: -110 | M27: -20 | N27: 40 | O27: 330 | P27: -80 | Q27: 110 | R27: 130 | S27: 690 | T27: 490
A28: North Lanarkshire | B28: 230 | C28: 330 | D28: 300 | E28: 850 | F28: 530 | G28: 90 | H28: -420 | I28: -60 | J28: -130 | K28: -180 | L28: 160 | M28: 220 | N28: 990 | O28: 790 | P28: 510 | Q28: 1320 | R28: 600 | S28: 840 | T28: 550
A29: Orkney Islands | B29: 260 | C29: 140 | D29: 200 | E29: 140 | F29: 100 | G29: 90 | H29: 160 | I29: 100 | J29: 110 | K29: 80 | L29: 70 | M29: 60 | N29: 180 | O29: 170 | P29: 200 | Q29: 130 | R29: 160 | S29: 180 | T29: 120
A30: Perth and Kinross | B30: 1670 | C30: 2060 | D30: 2020 | E30: 2440 | F30: 2400 | G30: 1800 | H30: 1860 | I30: 1830 | J30: 720 | K30: 340 | L30: 1290 | M30: 1210 | N30: 1250 | O30: 1140 | P30: 550 | Q30: 1070 | R30: 740 | S30: 2240 | T30: 1330
A31: Renfrewshire | B31: -270 | C31: -290 | D31: -340 | E31: 270 | F31: 400 | G31: 160 | H31: 440 | I31: 590 | J31: 70 | K31: 160 | L31: 860 | M31: 1020 | N31: 1920 | O31: 1570 | P31: 1550 | Q31: 1910 | R31: 1280 | S31: 1580 | T31: 2360
A32: Scottish Borders | B32: 1390 | C32: 1000 | D32: 840 | E32: 1490 | F32: 1300 | G32: 420 | H32: 290 | I32: 490 | J32: 290 | K32: 590 | L32: 550 | M32: 620 | N32: 800 | O32: 900 | P32: 740 | Q32: 720 | R32: 510 | S32: 1260 | T32: 540
A33: Shetland Islands | B33: 70 | C33: 90 | D33: -110 | E33: 50 | F33: 30 | G33: 200 | H33: 160 | I33: 60 | J33: -70 | K33: -70 | L33: 110 | M33: 40 | N33: -130 | O33: -130 | P33: -80 | Q33: -100 | R33: 0 | S33: 150 | T33: 110
A34: South Ayrshire | B34: 680 | C34: 430 | D34: 370 | E34: 580 | F34: 400 | G34: 170 | H34: 440 | I34: 600 | J34: 400 | K34: 350 | L34: 260 | M34: 340 | N34: 500 | O34: 760 | P34: 340 | Q34: 620 | R34: 420 | S34: 1110 | T34: 1010
A35: South Lanarkshire | B35: 2130 | C35: 1080 | D35: 1330 | E35: 1650 | F35: 740 | G35: 640 | H35: 810 | I35: 590 | J35: 1010 | K35: 1310 | L35: 1150 | M35: 1640 | N35: 1420 | O35: 1910 | P35: 1580 | Q35: 2400 | R35: 1710 | S35: 2980 | T35: 3020
A36: Stirling | B36: -10 | C36: 660 | D36: 700 | E36: 480 | F36: 240 | G36: 310 | H36: 1010 | I36: 1020 | J36: 300 | K36: -70 | L36: 110 | M36: 940 | N36: 880 | O36: 360 | P36: 420 | Q36: 480 | R36: 370 | S36: -130 | T36: 1420
A37: West Dunbartonshire | B37: -370 | C37: -330 | D37: -110 | E37: -30 | F37: -210 | G37: -60 | H37: -290 | I37: -170 | J37: -250 | K37: -380 | L37: -60 | M37: 120 | N37: 280 | O37: -40 | P37: -260 | Q37: -30 | R37: -240 | S37: -140 | T37: 50
A38: West Lothian | B38: 1210 | C38: 840 | D38: 1320 | E38: 1460 | F38: 1000 | G38: 230 | H38: 200 | I38: 220 | J38: -280 | K38: -660 | L38: 410 | M38: 730 | N38: 980 | O38: 580 | P38: 150 | Q38: 440 | R38: 570 | S38: 1220 | T38: 1170
A40: NHS Board Areas | B40: 2003-04 | C40: 2004-05 | D40: 2005-06 | E40: 2006-07 | F40: 2007-08 | G40: 2008-09 | H40: 2009-10 | I40: 2010-11 | J40: 2011-12 | K40: 2012-13 | L40: 2013-14 | M40: 2014-15 | N40: 2015-16 | O40: 2016-17 | P40: 2017-18 | Q40: 2018-19 | R40: 2019-20 | S40: 2020-21 | T40: 2021-22
A41: Scotland | B41: 18600 | C41: 25300 | D41: 18800 | E41: 33000 | F41: 26400 | G41: 24400 | H41: 26100 | I41: 30200 | J41: 10400 | K41: 7700 | L41: 15600 | M41: 25400 | N41: 26600 | O41: 22500 | P41: 15900 | Q41: 28100 | R41: 16100 | S41: 22200 | T41: 48800
A42: Ayrshire and Arran | B42: 1260 | C42: 560 | D42: 440 | E42: 1330 | F42: 1280 | G42: 440 | H42: 310 | I42: 760 | J42: -70 | K42: 80 | L42: 60 | M42: 290 | N42: 600 | O42: 1060 | P42: 360 | Q42: 1160 | R42: 590 | S42: 2540 | T42: 2130
A43: Borders | B43: 1390 | C43: 1000 | D43: 840 | E43: 1490 | F43: 1300 | G43: 420 | H43: 290 | I43: 490 | J43: 290 | K43: 590 | L43: 550 | M43: 620 | N43: 800 | O43: 900 | P43: 740 | Q43: 720 | R43: 510 | S43: 1260 | T43: 540
A44: Dumfries and Galloway | B44: 1180 | C44: 1190 | D44: 470 | E44: 710 | F44: 810 | G44: 300 | H44: 120 | I44: 380 | J44: -190 | K44: -30 | L44: 300 | M44: 100 | N44: 220 | O44: 210 | P44: 110 | Q44: 590 | R44: 320 | S44: 1300 | T44: 660
A45: Fife | B45: 2350 | C45: 2660 | D45: 1560 | E45: 1890 | F45: 1620 | G45: 1550 | H45: 1810 | I45: 2070 | J45: 670 | K45: 230 | L45: 600 | M45: 1300 | N45: 1520 | O45: 1320 | P45: 970 | Q45: 2310 | R45: 1300 | S45: 1610 | T45: 2250
A46: Forth Valley | B46: 2050 | C46: 2870 | D46: 1940 | E46: 2150 | F46: 1300 | G46: 910 | H46: 1390 | I46: 2030 | J46: 400 | K46: 340 | L46: 570 | M46: 1820 | N46: 1840 | O46: 1390 | P46: 620 | Q46: 1340 | R46: 670 | S46: 500 | T46: 1870
A47: Grampian | B47: 3020 | C47: 4580 | D47: 4670 | E47: 6160 | F47: 3860 | G47: 4890 | H47: 4440 | I47: 4300 | J47: 2690 | K47: 2990 | L47: 3320 | M47: 2020 | N47: -1800 | O47: -2700 | P47: -2890 | Q47: 60 | R47: -40 | S47: 500 | T47: 4430
A48: Greater Glasgow and Clyde | B48: -4560 | C48: -2420 | D48: -2800 | E48: 2710 | F48: 2890 | G48: 4120 | H48: 3860 | I48: 5780 | J48: 610 | K48: -210 | L48: 2910 | M48: 5670 | N48: 9520 | O48: 7420 | P48: 7060 | Q48: 7850 | R48: 4370 | S48: 2820 | T48: 16010
A49: Highland | B49: 3780 | C49: 3300 | D49: 2250 | E49: 3060 | F49: 2070 | G49: 960 | H49: 1280 | I49: 1200 | J49: 360 | K49: 380 | L49: 410 | M49: 1020 | N49: 1520 | O49: 1140 | P49: 460 | Q49: 890 | R49: 500 | S49: 4100 | T49: 1460
A50: Lanarkshire | B50: 1700 | C50: 1020 | D50: 980 | E50: 1770 | F50: 1050 | G50: 330 | H50: -200 | I50: 420 | J50: 880 | K50: 1130 | L50: 1310 | M50: 1860 | N50: 2410 | O50: 2700 | P50: 2100 | Q50: 3730 | R50: 2300 | S50: 3820 | T50: 3570
A51: Lothian | B51: 3620 | C51: 6340 | D51: 5400 | E51: 8050 | F51: 6410 | G51: 7270 | H51: 9100 | I51: 9230 | J51: 3470 | K51: 1700 | L51: 3790 | M51: 8550 | N51: 8670 | O51: 6950 | P51: 5370 | Q51: 7200 | R51: 4370 | S51: 1000 | T51: 11830
A52: Orkney | B52: 260 | C52: 140 | D52: 200 | E52: 140 | F52: 100 | G52: 90 | H52: 160 | I52: 100 | J52: 110 | K52: 80 | L52: 70 | M52: 60 | N52: 180 | O52: 170 | P52: 200 | Q52: 130 | R52: 160 | S52: 180 | T52: 120
A53: Shetland | B53: 70 | C53: 90 | D53: -110 | E53: 50 | F53: 30 | G53: 200 | H53: 160 | I53: 60 | J53: -70 | K53: -70 | L53: 110 | M53: 40 | N53: -130 | O53: -130 | P53: -80 | Q53: -100 | R53: 0 | S53: 150 | T53: 110
A54: Tayside | B54: 2270 | C54: 3710 | D54: 2870 | E54: 3460 | F54: 3670 | G54: 2870 | H54: 3190 | I54: 3370 | J54: 1210 | K54: 440 | L54: 1620 | M54: 2050 | N54: 1360 | O54: 1970 | P54: 900 | Q54: 2220 | R54: 1100 | S54: 2120 | T54: 3640
A55: Western Isles | B55: 250 | C55: 270 | D55: 130 | E55: 70 | F55: 20 | G55: 70 | H55: 170 | I55: 20 | J55: 10 | K55: -10 | L55: -80 | M55: -40 | N55: -90 | O55: 130 | P55: -20 | Q55: 20 | R55: -30 | S55: 310 | T55: 220

Sheet Total net migration 0-15
A1: Total net migration for ages 0-15
A2: This worksheet contains two tables, presented next to each other vertically with one blank row between the tables.
A3: See notes [1], [2], [3], [4] which are explained in the Notes worksheet.
A4: Return to front page
A5: Council Area | B5: 2003-04 | C5: 2004-05 | D5: 2005-06 | E5: 2006-07 | F5: 2007-08 | G5: 2008-09 | H5: 2009-10 | I5: 2010-11 | J5: 2011-12 | K5: 2012-13 | L5: 2013-14 | M5: 2014-15 | N5: 2015-16 | O5: 2016-17 | P5: 2017-18 | Q5: 2018-19 | R5: 2019-20 | S5: 2020-21 | T5: 2021-22
A6: Scotland | B6: 3430 | C6: 4434 | D6: 2416 | E6: 5380 | F6: 4287 | G6: 3522 | H6: 2883 | I6: 3490 | J6: 2371 | K6: 3101 | L6: 4371 | M6: 4767 | N6: 6595 | O6: 5120 | P6: 3717 | Q6: 6744 | R6: 3185 | S6: 5260 | T6: 5739
A7: Aberdeen City | B7: -347 | C7: 212 | D7: -6 | E7: 333 | F7: 180 | G7: 42 | H7: 162 | I7: 307 | J7: 403 | K7: 82 | L7: 85 | M7: -135 | N7: -112 | O7: -212 | P7: -212 | Q7: 121 | R7: 41 | S7: 59 | T7: 265
A8: Aberdeenshire | B8: 991 | C8: 831 | D8: 828 | E8: 692 | F8: 569 | G8: 579 | H8: 496 | I8: 453 | J8: 420 | K8: 617 | L8: 781 | M8: 401 | N8: 97 | O8: 181 | P8: 131 | Q8: 339 | R8: 367 | S8: 659 | T8: 917
A9: Angus | B9: 337 | C9: 348 | D9: 276 | E9: 166 | F9: 170 | G9: 116 | H9: 165 | I9: 93 | J9: -37 | K9: 43 | L9: 156 | M9: 188 | N9: 74 | O9: 120 | P9: 125 | Q9: 175 | R9: 131 | S9: 158 | T9: 176
A10: Argyll and Bute | B10: 150 | C10: 129 | D10: 41 | E10: 123 | F10: -28 | G10: 56 | H10: 110 | I10: 135 | J10: -132 | K10: -12 | L10: 22 | M10: 5 | N10: 121 | O10: 115 | P10: 71 | Q10: 120 | R10: 40 | S10: 213 | T10: 146
A11: City of Edinburgh | B11: -782 | C11: -65 | D11: -280 | E11: -86 | F11: -124 | G11: 208 | H11: 200 | I11: 239 | J11: 857 | K11: 690 | L11: 289 | M11: 221 | N11: 765 | O11: 113 | P11: -280 | Q11: 170 | R11: -449 | S11: -599 | T11: -828
A12: Clackmannanshire | B12: 97 | C12: 156 | D12: 97 | E12: 224 | F12: 139 | G12: -21 | H12: 10 | I12: 1 | J12: -86 | K12: 14 | L12: -19 | M12: -3 | N12: 73 | O12: 30 | P12: -16 | Q12: 55 | R12: 66 | S12: 81 | T12: 46
A13: Dumfries and Galloway | B13: 258 | C13: 276 | D13: 100 | E13: 195 | F13: 165 | G13: 170 | H13: 4 | I13: 113 | J13: -185 | K13: -131 | L13: 68 | M13: -29 | N13: 96 | O13: 77 | P13: 59 | Q13: 148 | R13: 157 | S13: 321 | T13: 130
A14: Dundee City | B14: -294 | C14: 45 | D14: -142 | E14: -16 | F14: 65 | G14: -11 | H14: -111 | I14: -91 | J14: 182 | K14: 270 | L14: 143 | M14: 119 | N14: 128 | O14: 93 | P14: 32 | Q14: 0 | R14: -119 | S14: -125 | T14: -94
A15: East Ayrshire | B15: 204 | C15: 59 | D15: 37 | E15: 80 | F15: 165 | G15: 63 | H15: 33 | I15: 25 | J15: -52 | K15: -43 | L15: -35 | M15: 27 | N15: 72 | O15: -10 | P15: 45 | Q15: 15 | R15: 10 | S15: 114 | T15: 116
A16: East Dunbartonshire | B16: 260 | C16: 225 | D16: 266 | E16: 206 | F16: 238 | G16: 220 | H16: 270 | I16: 234 | J16: 346 | K16: 243 | L16: 452 | M16: 506 | N16: 493 | O16: 492 | P16: 386 | Q16: 436 | R16: 449 | S16: 442 | T16: 458
A17: East Lothian | B17: 170 | C17: 143 | D17: 229 | E17: 346 | F17: 233 | G17: 232 | H17: 131 | I17: 191 | J17: 232 | K17: 201 | L17: 257 | M17: 295 | N17: 202 | O17: 260 | P17: 471 | Q17: 452 | R17: 326 | S17: 441 | T17: 429
A18: East Renfrewshire | B18: 201 | C18: 274 | D18: 244 | E18: 180 | F18: 255 | G18: 281 | H18: 325 | I18: 418 | J18: 234 | K18: 529 | L18: 604 | M18: 536 | N18: 629 | O18: 674 | P18: 591 | Q18: 542 | R18: 604 | S18: 632 | T18: 659
A19: Falkirk | B19: 271 | C19: 201 | D19: 90 | E19: 108 | F19: 59 | G19: 10 | H19: 50 | I19: 92 | J19: -128 | K19: 7 | L19: 54 | M19: 89 | N19: 154 | O19: 87 | P19: -53 | Q19: 97 | R19: 53 | S19: 12 | T19: -62
A20: Fife | B20: 453 | C20: 429 | D20: 196 | E20: 368 | F20: 278 | G20: 282 | H20: 256 | I20: 330 | J20: -71 | K20: 83 | L20: 113 | M20: 262 | N20: 358 | O20: 303 | P20: 259 | Q20: 524 | R20: 293 | S20: 434 | T20: 243
A21: Glasgow City | B21: -1535 | C21: -1394 | D21: -1413 | E21: -550 | F21: -648 | G21: -406 | H21: -871 | I21: -488 | J21: -6 | K21: 53 | L21: -214 | M21: -338 | N21: 197 | O21: -87 | P21: -155 | Q21: -252 | R21: -1153 | S21: -1359 | T21: -850
A22: Highland | B22: 743 | C22: 596 | D22: 418 | E22: 499 | F22: 451 | G22: 271 | H22: 242 | I22: 170 | J22: -180 | K22: 6 | L22: -29 | M22: 210 | N22: 252 | O22: 62 | P22: 173 | Q22: 268 | R22: 94 | S22: 337 | T22: 315
A23: Inverclyde | B23: -69 | C23: -4 | D23: -74 | E23: -49 | F23: -7 | G23: -3 | H23: -16 | I23: -34 | J23: -22 | K23: 11 | L23: -29 | M23: -31 | N23: 37 | O23: -21 | P23: 0 | Q23: 85 | R23: 20 | S23: 71 | T23: 49
A24: Midlothian | B24: -55 | C24: -33 | D24: -66 | E24: 32 | F24: 121 | G24: 161 | H24: 62 | I24: 174 | J24: 172 | K24: 152 | L24: 252 | M24: 214 | N24: 222 | O24: 246 | P24: 198 | Q24: 253 | R24: 150 | S24: 221 | T24: 293
A25: Moray | B25: 150 | C25: 39 | D25: -25 | E25: 86 | F25: 77 | G25: 142 | H25: -4 | I25: -76 | J25: 127 | K25: 116 | L25: 91 | M25: 138 | N25: 153 | O25: 55 | P25: -8 | Q25: 207 | R25: 119 | S25: 217 | T25: 290
A26: Na h-Eileanan Siar | B26: 87 | C26: 104 | D26: 41 | E26: 11 | F26: 40 | G26: 48 | H26: 45 | I26: 9 | J26: -7 | K26: -29 | L26: -7 | M26: 11 | N26: -1 | O26: 69 | P26: 5 | Q26: 19 | R26: -4 | S26: 31 | T26: 52
A27: North Ayrshire | B27: 137 | C27: 49 | D27: 45 | E27: 103 | F27: 127 | G27: 58 | H27: 1 | I27: 64 | J27: -79 | K27: -71 | L27: 45 | M27: 65 | N27: 130 | O27: 129 | P27: 67 | Q27: 102 | R27: 78 | S27: 63 | T27: 181
A28: North Lanarkshire | B28: 18 | C28: 137 | D28: 21 | E28: 377 | F28: 218 | G28: 79 | H28: -46 | I28: 39 | J28: -15 | K28: 35 | L28: 48 | M28: 28 | N28: 355 | O28: 186 | P28: 232 | Q28: 381 | R28: 247 | S28: 229 | T28: 160
A29: Orkney Islands | B29: 96 | C29: 63 | D29: 32 | E29: 40 | F29: 45 | G29: 41 | H29: 37 | I29: 5 | J29: 34 | K29: 32 | L29: 39 | M29: 25 | N29: 56 | O29: 41 | P29: 39 | Q29: 78 | R29: 28 | S29: 53 | T29: 59
A30: Perth and Kinross | B30: 526 | C30: 373 | D30: 369 | E30: 436 | F30: 391 | G30: 341 | H30: 417 | I30: 390 | J30: 192 | K30: 126 | L30: 378 | M30: 442 | N30: 345 | O30: 461 | P30: 341 | Q30: 543 | R30: 362 | S30: 596 | T30: 528
A31: Renfrewshire | B31: -14 | C31: 105 | D31: -1 | E31: 131 | F31: 114 | G31: -51 | H31: 41 | I31: 108 | J31: -75 | K31: -6 | L31: 101 | M31: 100 | N31: 308 | O31: 278 | P31: 214 | Q31: 246 | R31: 137 | S31: 14 | T31: 331
A32: Scottish Borders | B32: 332 | C32: 339 | D32: 179 | E32: 322 | F32: 305 | G32: 117 | H32: 119 | I32: 141 | J32: -7 | K32: 71 | L32: 158 | M32: 122 | N32: 228 | O32: 227 | P32: 200 | Q32: 213 | R32: 170 | S32: 324 | T32: 234
A33: Shetland Islands | B33: 63 | C33: 95 | D33: -48 | E33: 23 | F33: 16 | G33: 45 | H33: 46 | I33: -15 | J33: -26 | K33: -39 | L33: 12 | M33: -5 | N33: 21 | O33: 10 | P33: 13 | Q33: 55 | R33: 35 | S33: 47 | T33: 34
A34: South Ayrshire | B34: 90 | C34: 217 | D34: 177 | E34: 220 | F34: 218 | G34: 28 | H34: 148 | I34: 159 | J34: 67 | K34: 46 | L34: 80 | M34: 157 | N34: 140 | O34: 157 | P34: 100 | Q34: 207 | R34: 173 | S34: 253 | T34: 181
A35: South Lanarkshire | B35: 473 | C35: 307 | D35: 391 | E35: 430 | F35: 199 | G35: 263 | H35: 219 | I35: 91 | J35: 231 | K35: 159 | L35: 182 | M35: 511 | N35: 364 | O35: 509 | P35: 331 | Q35: 600 | R35: 396 | S35: 642 | T35: 564
A36: Stirling | B36: 341 | C36: 208 | D36: 234 | E36: 118 | F36: 156 | G36: 90 | H36: 324 | I36: 220 | J36: 280 | K36: 198 | L36: 302 | M36: 443 | N36: 351 | O36: 283 | P36: 316 | Q36: 261 | R36: 177 | S36: 254 | T36: 244
A37: West Dunbartonshire | B37: -151 | C37: -141 | D37: -58 | E37: 13 | F37: -17 | G37: 44 | H37: -93 | I37: -63 | J37: -61 | K37: -101 | L37: -74 | M37: 33 | N37: 67 | O37: -32 | P37: -84 | Q37: -25 | R37: -52 | S37: -9 | T37: -73
A38: West Lothian | B38: 229 | C38: 111 | D38: 218 | E38: 219 | F38: 117 | G38: 27 | H38: 111 | I38: 56 | J38: -237 | K38: -251 | L38: 66 | M38: 160 | N38: 220 | O38: 224 | P38: 126 | Q38: 309 | R38: 239 | S38: 434 | T38: 546
A40: NHS Board Areas | B40: 2003-04 | C40: 2004-05 | D40: 2005-06 | E40: 2006-07 | F40: 2007-08 | G40: 2008-09 | H40: 2009-10 | I40: 2010-11 | J40: 2011-12 | K40: 2012-13 | L40: 2013-14 | M40: 2014-15 | N40: 2015-16 | O40: 2016-17 | P40: 2017-18 | Q40: 2018-19 | R40: 2019-20 | S40: 2020-21 | T40: 2021-22
A41: Scotland | B41: 3430 | C41: 4434 | D41: 2416 | E41: 5380 | F41: 4287 | G41: 3522 | H41: 2883 | I41: 3490 | J41: 2371 | K41: 3101 | L41: 4371 | M41: 4767 | N41: 6595 | O41: 5120 | P41: 3717 | Q41: 6744 | R41: 3185 | S41: 5260 | T41: 5739
A42: Ayrshire and Arran | B42: 431 | C42: 325 | D42: 259 | E42: 403 | F42: 510 | G42: 149 | H42: 182 | I42: 248 | J42: -64 | K42: -68 | L42: 90 | M42: 249 | N42: 341 | O42: 277 | P42: 212 | Q42: 324 | R42: 261 | S42: 429 | T42: 478
A43: Borders | B43: 332 | C43: 339 | D43: 179 | E43: 322 | F43: 305 | G43: 117 | H43: 119 | I43: 141 | J43: -7 | K43: 71 | L43: 158 | M43: 122 | N43: 228 | O43: 227 | P43: 200 | Q43: 213 | R43: 170 | S43: 324 | T43: 234
A44: Dumfries and Galloway | B44: 258 | C44: 276 | D44: 100 | E44: 195 | F44: 165 | G44: 170 | H44: 4 | I44: 113 | J44: -185 | K44: -131 | L44: 68 | M44: -29 | N44: 96 | O44: 77 | P44: 59 | Q44: 148 | R44: 157 | S44: 321 | T44: 130
A45: Fife | B45: 453 | C45: 429 | D45: 196 | E45: 369 | F45: 277 | G45: 281 | H45: 257 | I45: 330 | J45: -71 | K45: 83 | L45: 113 | M45: 262 | N45: 358 | O45: 303 | P45: 259 | Q45: 524 | R45: 293 | S45: 434 | T45: 243
A46: Forth Valley | B46: 709 | C46: 565 | D46: 421 | E46: 450 | F46: 354 | G46: 79 | H46: 384 | I46: 313 | J46: 66 | K46: 219 | L46: 337 | M46: 528 | N46: 578 | O46: 400 | P46: 247 | Q46: 413 | R46: 296 | S46: 347 | T46: 228
A47: Grampian | B47: 794 | C47: 1082 | D47: 797 | E47: 1111 | F47: 826 | G47: 763 | H47: 654 | I47: 684 | J47: 950 | K47: 815 | L47: 957 | M47: 405 | N47: 138 | O47: 24 | P47: -89 | Q47: 667 | R47: 527 | S47: 935 | T47: 1472
A48: Greater Glasgow and Clyde | B48: -1291 | C48: -789 | D48: -887 | E48: 69 | F48: -103 | G48: 138 | H48: -231 | I48: 186 | J48: 415 | K48: 728 | L48: 839 | M48: 806 | N48: 1731 | O48: 1303 | P48: 953 | Q48: 1031 | R48: 3 | S48: -210 | T48: 575
A49: Highland | B49: 893 | C49: 725 | D49: 459 | E49: 622 | F49: 423 | G49: 327 | H49: 352 | I49: 305 | J49: -312 | K49: -6 | L49: -8 | M49: 215 | N49: 373 | O49: 176 | P49: 245 | Q49: 388 | R49: 134 | S49: 551 | T49: 462
A50: Lanarkshire | B50: 474 | C50: 298 | D50: 263 | E50: 669 | F50: 455 | G50: 289 | H50: 60 | I50: 119 | J50: 217 | K50: 194 | L50: 229 | M50: 539 | N50: 719 | O50: 694 | P50: 564 | Q50: 982 | R50: 644 | S50: 871 | T50: 723
A51: Lothian | B51: -438 | C51: 156 | D51: 101 | E51: 511 | F51: 347 | G51: 628 | H51: 504 | I51: 660 | J51: 1024 | K51: 792 | L51: 864 | M51: 890 | N51: 1410 | O51: 842 | P51: 514 | Q51: 1185 | R51: 266 | S51: 498 | T51: 440
A52: Orkney | B52: 96 | C52: 63 | D52: 32 | E52: 40 | F52: 45 | G52: 41 | H52: 37 | I52: 5 | J52: 34 | K52: 32 | L52: 39 | M52: 25 | N52: 56 | O52: 41 | P52: 39 | Q52: 78 | R52: 28 | S52: 53 | T52: 59
A53: Shetland | B53: 63 | C53: 95 | D53: -48 | E53: 23 | F53: 16 | G53: 45 | H53: 46 | I53: -15 | J53: -26 | K53: -39 | L53: 12 | M53: -5 | N53: 21 | O53: 10 | P53: 13 | Q53: 55 | R53: 35 | S53: 47 | T53: 34
A54: Tayside | B54: 569 | C54: 766 | D54: 503 | E54: 585 | F54: 627 | G54: 447 | H54: 470 | I54: 392 | J54: 337 | K54: 439 | L54: 676 | M54: 749 | N54: 547 | O54: 674 | P54: 499 | Q54: 718 | R54: 374 | S54: 628 | T54: 611
A55: Western Isles | B55: 87 | C55: 104 | D55: 41 | E55: 11 | F55: 40 | G55: 48 | H55: 45 | I55: 9 | J55: -7 | K55: -29 | L55: -7 | M55: 11 | N55: -1 | O55: 69 | P55: 5 | Q55: 19 | R55: -4 | S55: 31 | T55: 52

Sheet Total net migration 16-64
A1: Total net migration for ages 16-64
A2: This worksheet contains two tables, presented next to each other vertically with one blank row between the tables.
A3: See notes [1], [2], [3], [4] which are explained in the Notes worksheet.
A4: Return to front page
A5: Council Area | B5: 2003-04 | C5: 2004-05 | D5: 2005-06 | E5: 2006-07 | F5: 2007-08 | G5: 2008-09 | H5: 2009-10 | I5: 2010-11 | J5: 2011-12 | K5: 2012-13 | L5: 2013-14 | M5: 2014-15 | N5: 2015-16 | O5: 2016-17 | P5: 2017-18 | Q5: 2018-19 | R5: 2019-20 | S5: 2020-21 | T5: 2021-22
A6: Scotland | B6: 13595 | C6: 19931 | D6: 16044 | E6: 26935 | F6: 21574 | G6: 20601 | H6: 22931 | I6: 26224 | J6: 7859 | K6: 4158 | L6: 10535 | M6: 20267 | N6: 20025 | O6: 16832 | P6: 11890 | Q6: 20332 | R6: 12158 | S6: 15526 | T6: 41372
A7: Aberdeen City | B7: -708 | C7: 963 | D7: 1306 | E7: 2776 | F7: 1641 | G7: 3043 | H7: 2709 | I7: 2859 | J7: 565 | K7: 567 | L7: 424 | M7: 358 | N7: -1667 | O7: -1704 | P7: -1538 | Q7: 119 | R7: -59 | S7: -2117 | T7: 2708
A8: Aberdeenshire | B8: 1815 | C8: 1667 | D8: 1962 | E8: 1758 | F8: 1177 | G8: 884 | H8: 1193 | I8: 975 | J8: 1205 | K8: 1321 | L8: 1860 | M8: 1251 | N8: -350 | O8: -943 | P8: -1040 | Q8: -762 | R8: -421 | S8: 1083 | T8: -15
A9: Angus | B9: 796 | C9: 594 | D9: 576 | E9: 494 | F9: 342 | G9: -13 | H9: 174 | I9: -35 | J9: 199 | K9: 60 | L9: 458 | M9: 564 | N9: 92 | O9: -34 | P9: -62 | Q9: 81 | R9: 44 | S9: 494 | T9: 121
A10: Argyll and Bute | B10: 718 | C10: 307 | D10: 136 | E10: 225 | F10: 12 | G10: -28 | H10: 224 | I10: 181 | J10: 145 | K10: 125 | L10: 80 | M10: -25 | N10: 355 | O10: 248 | P10: -9 | Q10: -9 | R10: 120 | S10: 925 | T10: 341
A11: City of Edinburgh | B11: 3398 | C11: 5731 | D11: 3946 | E11: 5148 | F11: 3653 | G11: 5710 | H11: 7905 | I11: 7825 | J11: 1122 | K11: -38 | L11: 723 | M11: 5237 | N11: 4787 | O11: 3898 | P11: 3207 | Q11: 4124 | R11: 2378 | S11: -2856 | T11: 8943
A12: Clackmannanshire | B12: 413 | C12: 408 | D12: 223 | E12: 503 | F12: 288 | G12: 82 | H12: -76 | I12: -18 | J12: -119 | K12: -49 | L12: -13 | M12: 94 | N12: -57 | O12: 105 | P12: -55 | Q12: 70 | R12: 25 | S12: 155 | T12: 206
A13: Dumfries and Galloway | B13: 723 | C13: 726 | D13: 318 | E13: 404 | F13: 523 | G13: 111 | H13: 91 | I13: 230 | J13: 3 | K13: 107 | L13: 140 | M13: 57 | N13: 119 | O13: 118 | P13: -35 | Q13: 339 | R13: 67 | S13: 889 | T13: 456
A14: Dundee City | B14: -357 | C14: 634 | D14: 113 | E14: 320 | F14: 608 | G14: 1036 | H14: 1133 | I14: 1603 | J14: 154 | K14: -304 | L14: -453 | M14: -29 | N14: -162 | O14: 627 | P14: 217 | Q14: 789 | R14: 255 | S14: -760 | T14: 1997
A15: East Ayrshire | B15: 181 | C15: -27 | D15: 14 | E15: 276 | F15: 388 | G15: 326 | H15: -17 | I15: 15 | J15: -42 | K15: -36 | L15: -43 | M15: -55 | N15: -41 | O15: -34 | P15: -17 | Q15: 346 | R15: -15 | S15: 532 | T15: 427
A16: East Dunbartonshire | B16: -613 | C16: -644 | D16: -613 | E16: -435 | F16: -362 | G16: -218 | H16: -294 | I16: -312 | J16: -60 | K16: -61 | L16: 486 | M16: 207 | N16: 132 | O16: 250 | P16: -68 | Q16: 33 | R16: 123 | S16: 24 | T16: -181
A17: East Lothian | B17: 179 | C17: 267 | D17: 561 | E17: 1167 | F17: 1318 | G17: 421 | H17: 397 | I17: 199 | J17: 680 | K17: 559 | L17: 645 | M17: 809 | N17: 657 | O17: 586 | P17: 628 | Q17: 836 | R17: 709 | S17: 1342 | T17: 692
A18: East Renfrewshire | B18: -348 | C18: -326 | D18: -494 | E18: -118 | F18: -327 | G18: -280 | H18: 11 | I18: -117 | J18: -5 | K18: 115 | L18: 239 | M18: 1 | N18: 84 | O18: 222 | P18: -146 | Q18: -120 | R18: 32 | S18: -17 | T18: 401
A19: Falkirk | B19: 1168 | C19: 1392 | D19: 792 | E19: 820 | F19: 532 | G19: 477 | H19: 315 | I19: 889 | J19: 357 | K19: 358 | L19: 401 | M19: 591 | N19: 785 | O19: 762 | P19: 258 | Q19: 624 | R19: 126 | S19: 364 | T19: 246
A20: Fife | B20: 1734 | C20: 1997 | D20: 1292 | E20: 1394 | F20: 1248 | G20: 1146 | H20: 1453 | I20: 1618 | J20: 625 | K20: 93 | L20: 257 | M20: 977 | N20: 1083 | O20: 968 | P20: 668 | Q20: 1592 | R20: 842 | S20: 1023 | T20: 1758
A21: Glasgow City | B21: -1170 | C21: 531 | D21: 19 | E21: 3295 | F21: 3976 | G21: 4706 | H21: 4271 | I21: 6127 | J21: 646 | K21: -578 | L21: 906 | M21: 3785 | N21: 5983 | O21: 4404 | P21: 5462 | Q21: 5265 | R21: 3420 | S21: 1861 | T21: 13000
A22: Highland | B22: 1818 | C22: 2040 | D22: 1506 | E22: 2010 | F22: 1495 | G22: 667 | H22: 736 | I22: 667 | J22: 583 | K22: 318 | L22: 402 | M22: 947 | N22: 1082 | O22: 925 | P22: 429 | Q22: 554 | R22: 252 | S22: 2384 | T22: 687
A23: Inverclyde | B23: -485 | C23: -145 | D23: -289 | E23: -259 | F23: -160 | G23: -334 | H23: -220 | I23: -265 | J23: -102 | K23: -70 | L23: -169 | M23: -58 | N23: -117 | O23: -21 | P23: -150 | Q23: -10 | R23: -59 | S23: 48 | T23: 122
A24: Midlothian | B24: -173 | C24: -273 | D24: -206 | E24: 99 | F24: 270 | G24: 291 | H24: 133 | I24: 302 | J24: 537 | K24: 690 | L24: 1025 | M24: 886 | N24: 891 | O24: 1119 | P24: 891 | Q24: 789 | R24: 638 | S24: 1213 | T24: 1007
A25: Moray | B25: 697 | C25: 549 | D25: 455 | E25: 347 | F25: 155 | G25: 251 | H25: -51 | I25: -114 | J25: 115 | K25: 420 | L25: 259 | M25: 309 | N25: 274 | O25: -95 | P25: -97 | Q25: 3 | R25: -179 | S25: 318 | T25: 13
A26: Na h-Eileanan Siar | B26: 126 | C26: 125 | D26: 60 | E26: 45 | F26: -59 | G26: 2 | H26: 86 | I26: 12 | J26: 1 | K26: 7 | L26: -74 | M26: -34 | N26: -79 | O26: 54 | P26: -10 | Q26: 16 | R26: -12 | S26: 248 | T26: 141
A27: North Ayrshire | B27: -72 | C27: -22 | D27: -124 | E27: 242 | F27: 120 | G27: -252 | H27: -218 | I27: 11 | J27: -322 | K27: -192 | L27: -207 | M27: -98 | N27: -15 | O27: 104 | P27: -171 | Q27: -18 | R27: -19 | S27: 541 | T27: 279
A28: North Lanarkshire | B28: 184 | C28: 151 | D28: 268 | E28: 589 | F28: 379 | G28: 7 | H28: -358 | I28: -81 | J28: -58 | K28: -114 | L28: 143 | M28: 141 | N28: 759 | O28: 633 | P28: 345 | Q28: 1039 | R28: 405 | S28: 668 | T28: 468
A29: Orkney Islands | B29: 135 | C29: 67 | D29: 142 | E29: 80 | F29: 30 | G29: 36 | H29: 98 | I29: 85 | J29: 81 | K29: 45 | L29: 24 | M29: 34 | N29: 104 | O29: 99 | P29: 149 | Q29: 68 | R29: 107 | S29: 135 | T29: 42
A30: Perth and Kinross | B30: 910 | C30: 1488 | D30: 1520 | E30: 1865 | F30: 1895 | G30: 1396 | H30: 1363 | I30: 1255 | J30: 477 | K30: 131 | L30: 850 | M30: 657 | N30: 813 | O30: 573 | P30: 151 | Q30: 447 | R30: 313 | S30: 1425 | T30: 680
A31: Renfrewshire | B31: -192 | C31: -401 | D31: -312 | E31: 127 | F31: 241 | G31: 189 | H31: 364 | I31: 408 | J31: 116 | K31: 143 | L31: 655 | M31: 825 | N31: 1505 | O31: 1235 | P31: 1195 | Q31: 1553 | R31: 1000 | S31: 1463 | T31: 1922
A32: Scottish Borders | B32: 849 | C32: 605 | D32: 649 | E32: 1031 | F32: 950 | G32: 189 | H32: 146 | I32: 370 | J32: 293 | K32: 450 | L32: 409 | M32: 447 | N32: 589 | O32: 628 | P32: 499 | Q32: 451 | R32: 291 | S32: 832 | T32: 266
A33: Shetland Islands | B33: -11 | C33: -11 | D33: -69 | E33: 15 | F33: 4 | G33: 135 | H33: 114 | I33: 64 | J33: -60 | K33: -12 | L33: 101 | M33: 74 | N33: -151 | O33: -141 | P33: -82 | Q33: -145 | R33: -27 | S33: 105 | T33: 79
A34: South Ayrshire | B34: 376 | C34: 78 | D34: 99 | E34: 287 | F34: 141 | G34: 73 | H34: 267 | I34: 324 | J34: 232 | K34: 145 | L34: 47 | M34: 88 | N34: 219 | O34: 462 | P34: 109 | Q34: 280 | R34: 190 | S34: 638 | T34: 573
A35: South Lanarkshire | B35: 1272 | C35: 562 | D35: 763 | E35: 1014 | F35: 401 | G35: 269 | H35: 470 | I35: 335 | J35: 629 | K35: 887 | L35: 855 | M35: 1058 | N35: 916 | O35: 1337 | P35: 1114 | Q35: 1650 | R35: 1206 | S35: 2312 | T35: 2232
A36: Stirling | B36: -407 | C36: 441 | D36: 443 | E36: 317 | F36: 52 | G36: 198 | H36: 684 | I36: 817 | J36: 47 | K36: -199 | L36: -188 | M36: 549 | N36: 544 | O36: 119 | P36: 163 | Q36: 214 | R36: 216 | S36: -399 | T36: 1123
A37: West Dunbartonshire | B37: -196 | C37: -165 | D37: -35 | E37: -21 | F37: -137 | G37: -83 | H37: -208 | I37: -123 | J37: -121 | K37: -255 | L37: 2 | M37: 106 | N37: 198 | O37: -14 | P37: -143 | Q37: -27 | R37: -166 | S37: -100 | T37: 74
A38: West Lothian | B38: 835 | C38: 622 | D38: 1023 | E38: 1120 | F38: 780 | G38: 164 | H38: 36 | I38: 118 | J38: -69 | K38: -477 | L38: 289 | M38: 512 | N38: 694 | O38: 344 | P38: 30 | Q38: 141 | R38: 356 | S38: 755 | T38: 566
A40: NHS Board Areas | B40: 2003-04 | C40: 2004-05 | D40: 2005-06 | E40: 2006-07 | F40: 2007-08 | G40: 2008-09 | H40: 2009-10 | I40: 2010-11 | J40: 2011-12 | K40: 2012-13 | L40: 2013-14 | M40: 2014-15 | N40: 2015-16 | O40: 2016-17 | P40: 2017-18 | Q40: 2018-19 | R40: 2019-20 | S40: 2020-21 | T40: 2021-22
A41: Scotland | B41: 13595 | C41: 19931 | D41: 16044 | E41: 26935 | F41: 21574 | G41: 20601 | H41: 22931 | I41: 26224 | J41: 7859 | K41: 4158 | L41: 10535 | M41: 20267 | N41: 20025 | O41: 16832 | P41: 11890 | Q41: 20332 | R41: 12158 | S41: 15526 | T41: 41372
A42: Ayrshire and Arran | B42: 485 | C42: 29 | D42: -11 | E42: 805 | F42: 649 | G42: 147 | H42: 32 | I42: 350 | J42: -131 | K42: -83 | L42: -202 | M42: -65 | N42: 164 | O42: 531 | P42: -80 | Q42: 607 | R42: 156 | S42: 1711 | T42: 1279
A43: Borders | B43: 849 | C43: 605 | D43: 649 | E43: 1031 | F43: 950 | G43: 189 | H43: 146 | I43: 370 | J43: 293 | K43: 450 | L43: 409 | M43: 447 | N43: 589 | O43: 628 | P43: 499 | Q43: 451 | R43: 291 | S43: 832 | T43: 266
A44: Dumfries and Galloway | B44: 723 | C44: 726 | D44: 318 | E44: 404 | F44: 523 | G44: 111 | H44: 91 | I44: 230 | J44: 3 | K44: 107 | L44: 140 | M44: 57 | N44: 119 | O44: 118 | P44: -35 | Q44: 339 | R44: 67 | S44: 889 | T44: 456
A45: Fife | B45: 1734 | C45: 1997 | D45: 1293 | E45: 1391 | F45: 1242 | G45: 1145 | H45: 1455 | I45: 1614 | J45: 625 | K45: 93 | L45: 257 | M45: 977 | N45: 1083 | O45: 968 | P45: 668 | Q45: 1592 | R45: 842 | S45: 1023 | T45: 1758
A46: Forth Valley | B46: 1174 | C46: 2241 | D46: 1458 | E46: 1640 | F46: 872 | G46: 757 | H46: 923 | I46: 1688 | J46: 286 | K46: 111 | L46: 201 | M46: 1234 | N46: 1271 | O46: 986 | P46: 367 | Q46: 908 | R46: 367 | S46: 120 | T46: 1574
A47: Grampian | B47: 1804 | C47: 3179 | D47: 3723 | E47: 4881 | F47: 2973 | G47: 4178 | H47: 3851 | I47: 3720 | J47: 1885 | K47: 2308 | L47: 2542 | M47: 1918 | N47: -1743 | O47: -2742 | P47: -2674 | Q47: -639 | R47: -659 | S47: -715 | T47: 2706
A48: Greater Glasgow and Clyde | B48: -2385 | C48: -877 | D48: -1172 | E48: 3247 | F48: 3555 | G48: 4397 | H48: 4428 | I48: 5781 | J48: 475 | K48: -705 | L48: 2119 | M48: 4867 | N48: 7785 | O48: 6077 | P48: 6150 | Q48: 6694 | R48: 4350 | S48: 3278 | T48: 15337
A49: Highland | B49: 2536 | C49: 2347 | D49: 1642 | E49: 2235 | F49: 1507 | G49: 639 | H49: 960 | I49: 848 | J49: 729 | K49: 443 | L49: 482 | M49: 922 | N49: 1437 | O49: 1173 | P49: 420 | Q49: 545 | R49: 372 | S49: 3310 | T49: 1028
A50: Lanarkshire | B50: 837 | C50: 440 | D50: 479 | E50: 945 | F50: 456 | G50: -141 | H50: -392 | I50: 191 | J50: 571 | K50: 772 | L50: 998 | M50: 1199 | N50: 1675 | O50: 1970 | P50: 1459 | Q50: 2690 | R50: 1611 | S50: 2980 | T50: 2701
A51: Lothian | B51: 4239 | C51: 6347 | D51: 5324 | E51: 7534 | F51: 6021 | G51: 6586 | H51: 8471 | I51: 8444 | J51: 2270 | K51: 735 | L51: 2683 | M51: 7444 | N51: 7028 | O51: 5947 | P51: 4756 | Q51: 5890 | R51: 4081 | S51: 453 | T51: 11208
A52: Orkney | B52: 135 | C52: 67 | D52: 142 | E52: 80 | F52: 30 | G52: 36 | H52: 98 | I52: 85 | J52: 81 | K52: 45 | L52: 24 | M52: 34 | N52: 104 | O52: 99 | P52: 149 | Q52: 68 | R52: 107 | S52: 135 | T52: 42
A53: Shetland | B53: -11 | C53: -11 | D53: -69 | E53: 15 | F53: 4 | G53: 135 | H53: 114 | I53: 64 | J53: -60 | K53: -12 | L53: 101 | M53: 74 | N53: -151 | O53: -141 | P53: -82 | Q53: -145 | R53: -27 | S53: 105 | T53: 79
A54: Tayside | B54: 1349 | C54: 2716 | D54: 2208 | E54: 2682 | F54: 2851 | G54: 2420 | H54: 2668 | I54: 2827 | J54: 831 | K54: -114 | L54: 855 | M54: 1192 | N54: 743 | O54: 1166 | P54: 305 | Q54: 1317 | R54: 612 | S54: 1159 | T54: 2797
A55: Western Isles | B55: 126 | C55: 125 | D55: 60 | E55: 45 | F55: -59 | G55: 2 | H55: 86 | I55: 12 | J55: 1 | K55: 7 | L55: -74 | M55: -34 | N55: -79 | O55: 54 | P55: -10 | Q55: 16 | R55: -12 | S55: 248 | T55: 141

Sheet Total net migration 65+
A1: Total net migration for ages 65+
A2: This worksheet contains two tables, presented next to each other vertically with one blank row between the tables.
A3: See notes [1], [2], [3], [4] which are explained in the Notes worksheet.
A4: Return to front page
A5: Council Area | B5: 2003-04 | C5: 2004-05 | D5: 2005-06 | E5: 2006-07 | F5: 2007-08 | G5: 2008-09 | H5: 2009-10 | I5: 2010-11 | J5: 2011-12 | K5: 2012-13 | L5: 2013-14 | M5: 2014-15 | N5: 2015-16 | O5: 2016-17 | P5: 2017-18 | Q5: 2018-19 | R5: 2019-20 | S5: 2020-21 | T5: 2021-22
A6: Scotland | B6: 1597 | C6: 942 | D6: 362 | E6: 734 | F6: 548 | G6: 299 | H6: 261 | I6: 495 | J6: 153 | K6: 405 | L6: 659 | M6: 338 | N6: -6 | O6: 578 | P6: 277 | Q6: 1035 | R6: 792 | S6: 1427 | T6: 1704
A7: Aberdeen City | B7: -136 | C7: -65 | D7: -157 | E7: -156 | F7: -175 | G7: -111 | H7: -117 | I7: -88 | J7: -150 | K7: -90 | L7: -203 | M7: -194 | N7: -127 | O7: -33 | P7: -141 | Q7: -39 | R7: -17 | S7: -15 | T7: -17
A8: Aberdeenshire | B8: 424 | C8: 282 | D8: 277 | E8: 233 | F8: 135 | G8: 44 | H8: 4 | I8: -44 | J8: -30 | K8: -78 | L8: -87 | M8: -147 | N8: -101 | O8: 11 | P8: 2 | Q8: 40 | R8: 32 | S8: 268 | T8: 237
A9: Angus | B9: 209 | C9: 131 | D9: 102 | E9: 96 | F9: 141 | G9: 45 | H9: 16 | I9: 57 | J9: 96 | K9: 95 | L9: 81 | M9: 53 | N9: -2 | O9: 72 | P9: 56 | Q9: 158 | R9: 83 | S9: 101 | T9: 121
A10: Argyll and Bute | B10: 58 | C10: 1 | D10: 23 | E10: 30 | F10: -23 | G10: -55 | H10: -43 | I10: -12 | J10: -28 | K10: -30 | L10: -44 | M10: -73 | N10: -154 | O10: -65 | P10: -128 | Q10: -48 | R10: -51 | S10: 58 | T10: -50
A11: City of Edinburgh | B11: -382 | C11: -349 | D11: -254 | E11: -143 | F11: -173 | G11: -57 | H11: -36 | I11: -20 | J11: 29 | K11: 19 | L11: 68 | M11: -77 | N11: 10 | O11: -36 | P11: -75 | Q11: -83 | R11: -135 | S11: -228 | T11: -145
A12: Clackmannanshire | B12: 41 | C12: 8 | D12: -23 | E12: 14 | F12: -30 | G12: -22 | H12: -9 | I12: 9 | J12: 30 | K12: 16 | L12: 18 | M12: 68 | N12: -8 | O12: -5 | P12: 13 | Q12: 2 | R12: 5 | S12: 12 | T12: 13
A13: Dumfries and Galloway | B13: 202 | C13: 189 | D13: 51 | E13: 113 | F13: 122 | G13: 23 | H13: 24 | I13: 34 | J13: -11 | K13: -2 | L13: 97 | M13: 69 | N13: 9 | O13: 18 | P13: 83 | Q13: 101 | R13: 93 | S13: 90 | T13: 69
A14: Dundee City | B14: -89 | C14: -107 | D14: -80 | E14: -39 | F14: -65 | G14: -106 | H14: -41 | I14: -85 | J14: -106 | K14: -65 | L14: -60 | M14: -53 | N14: -17 | O14: -47 | P14: -26 | Q14: -54 | R14: -32 | S14: 12 | T14: -10
A15: East Ayrshire | B15: -18 | C15: 4 | D15: 40 | E15: -31 | F15: -4 | G15: -6 | H15: 14 | I15: -10 | J15: -18 | K15: 22 | L15: -6 | M15: 1 | N15: 29 | O15: 15 | P15: 73 | Q15: 65 | R15: 49 | S15: 100 | T15: 87
A16: East Dunbartonshire | B16: -104 | C16: -63 | D16: -102 | E16: -60 | F16: -56 | G16: -81 | H16: -47 | I16: -27 | J16: 38 | K16: 58 | L16: 99 | M16: 32 | N16: 24 | O16: 30 | P16: 18 | Q16: 22 | R16: 13 | S16: 2 | T16: 114
A17: East Lothian | B17: 81 | C17: 87 | D17: 135 | E17: 46 | F17: 84 | G17: 52 | H17: 67 | I17: 55 | J17: 87 | K17: 80 | L17: 110 | M17: 156 | N17: 134 | O17: 159 | P17: 134 | Q17: 176 | R17: 183 | S17: 257 | T17: 245
A18: East Renfrewshire | B18: 50 | C18: 35 | D18: 37 | E18: -17 | F18: 0 | G18: 71 | H18: 33 | I18: -31 | J18: 4 | K18: 35 | L18: 67 | M18: 161 | N18: 55 | O18: 82 | P18: -20 | Q18: -13 | R18: 46 | S18: 13 | T18: 55
A19: Falkirk | B19: 71 | C19: 49 | D19: 59 | E19: 7 | F19: 72 | G19: 78 | H19: 93 | I19: 40 | J19: 49 | K19: 67 | L19: 17 | M19: 38 | N19: 14 | O19: 48 | P19: 48 | Q19: 18 | R19: 24 | S19: 4 | T19: 0
A20: Fife | B20: 161 | C20: 231 | D20: 72 | E20: 131 | F20: 101 | G20: 122 | H20: 97 | I20: 128 | J20: 115 | K20: 59 | L20: 226 | M20: 65 | N20: 78 | O20: 50 | P20: 38 | Q20: 198 | R20: 168 | S20: 157 | T20: 247
A21: Glasgow City | B21: -713 | C21: -695 | D21: -594 | E21: -442 | F21: -399 | G21: -311 | H21: -350 | I21: -269 | J21: -330 | K21: -371 | L21: -318 | M21: -317 | N21: -265 | O21: -213 | P21: -188 | Q21: -86 | R21: -206 | S21: -407 | T21: -314
A22: Highland | B22: 289 | C22: 226 | D22: 130 | E22: 168 | F22: 165 | G22: 52 | H22: 12 | I22: 61 | J22: -25 | K22: -27 | L22: -15 | M22: -43 | N22: -135 | O22: -145 | P22: -75 | Q22: 1 | R22: 46 | S22: 182 | T22: 23
A23: Inverclyde | B23: -45 | C23: 19 | D23: 10 | E23: -10 | F23: -36 | G23: -22 | H23: 10 | I23: 10 | J23: 46 | K23: 51 | L23: -7 | M23: 48 | N23: 60 | O23: 75 | P23: 41 | Q23: 61 | R23: 42 | S23: 62 | T23: 88
A24: Midlothian | B24: -35 | C24: -15 | D24: 11 | E24: -22 | F24: 36 | G24: 15 | H24: 42 | I24: 46 | J24: 33 | K24: 13 | L24: 15 | M24: 79 | N24: 22 | O24: 26 | P24: 43 | Q24: 40 | R24: -7 | S24: -4 | T24: 26
A25: Moray | B25: 133 | C25: 105 | D25: 28 | E25: 92 | F25: 98 | G25: 11 | H25: 46 | I25: 28 | J25: 32 | K25: 38 | L25: 113 | M25: 39 | N25: 36 | O25: 39 | P25: 10 | Q25: 30 | R25: 78 | S25: 23 | T25: 27
A26: Na h-Eileanan Siar | B26: 33 | C26: 45 | D26: 28 | E26: 17 | F26: 42 | G26: 21 | H26: 38 | I26: 2 | J26: 14 | K26: 8 | L26: 6 | M26: -13 | N26: -13 | O26: 10 | P26: -14 | Q26: -11 | R26: -10 | S26: 27 | T26: 25
A27: North Ayrshire | B27: 141 | C27: 68 | D27: 58 | E27: 83 | F27: 86 | G27: 77 | H27: 52 | I27: 61 | J27: 48 | K27: 45 | L27: 50 | M27: 12 | N27: -80 | O27: 98 | P27: 28 | Q27: 28 | R27: 68 | S27: 81 | T27: 29
A28: North Lanarkshire | B28: 26 | C28: 42 | D28: 13 | E28: -117 | F28: -63 | G28: 2 | H28: -18 | I28: -16 | J28: -54 | K28: -103 | L28: -30 | M28: 52 | N28: -121 | O28: -26 | P28: -66 | Q28: -98 | R28: -57 | S28: -57 | T28: -77
A29: Orkney Islands | B29: 30 | C29: 5 | D29: 26 | E29: 23 | F29: 20 | G29: 11 | H29: 28 | I29: 9 | J29: -4 | K29: 3 | L29: 10 | M29: 2 | N29: 17 | O29: 29 | P29: 13 | Q29: -11 | R29: 27 | S29: -8 | T29: 20
A30: Perth and Kinross | B30: 229 | C30: 202 | D30: 134 | E30: 139 | F30: 114 | G30: 63 | H30: 81 | I30: 181 | J30: 55 | K30: 85 | L30: 63 | M30: 110 | N30: 90 | O30: 103 | P30: 62 | Q30: 81 | R30: 66 | S30: 220 | T30: 119
A31: Renfrewshire | B31: -62 | C31: 10 | D31: -31 | E31: 11 | F31: 43 | G31: 18 | H31: 38 | I31: 73 | J31: 32 | K31: 26 | L31: 101 | M31: 90 | N31: 108 | O31: 59 | P31: 145 | Q31: 115 | R31: 144 | S31: 107 | T31: 109
A32: Scottish Borders | B32: 204 | C32: 59 | D32: 7 | E32: 139 | F32: 47 | G32: 115 | H32: 21 | I32: -23 | J32: 3 | K32: 73 | L32: -13 | M32: 55 | N32: -16 | O32: 46 | P32: 41 | Q32: 54 | R32: 47 | S32: 105 | T32: 35
A33: Shetland Islands | B33: 20 | C33: 4 | D33: 5 | E33: 8 | F33: 6 | G33: 23 | H33: -5 | I33: 10 | J33: 21 | K33: -15 | L33: -1 | M33: -30 | N33: 4 | O33: -3 | P33: -12 | Q33: -10 | R33: -8 | S33: -2 | T33: -7
A34: South Ayrshire | B34: 218 | C34: 130 | D34: 90 | E34: 71 | F34: 41 | G34: 72 | H34: 28 | I34: 113 | J34: 98 | K34: 160 | L34: 129 | M34: 97 | N34: 144 | O34: 143 | P34: 131 | Q34: 133 | R34: 57 | S34: 222 | T34: 257
A35: South Lanarkshire | B35: 382 | C35: 210 | D35: 180 | E35: 207 | F35: 135 | G35: 108 | H35: 119 | I35: 161 | J35: 148 | K35: 267 | L35: 118 | M35: 71 | N35: 136 | O35: 63 | P35: 139 | Q35: 153 | R35: 107 | S35: 25 | T35: 220
A36: Stirling | B36: 56 | C36: 9 | D36: 24 | E36: 42 | F36: 36 | G36: 22 | H36: -2 | I36: -16 | J36: -30 | K36: -72 | L36: -4 | M36: -51 | N36: -17 | O36: -37 | P36: -57 | Q36: 1 | R36: -20 | S36: 18 | T36: 55
A37: West Dunbartonshire | B37: -27 | C37: -26 | D37: -15 | E37: -24 | F37: -51 | G37: -17 | H37: 10 | I37: 13 | J37: -67 | K37: -29 | L37: 9 | M37: -18 | N37: 15 | O37: 5 | P37: -35 | Q37: 21 | R37: -23 | S37: -27 | T37: 47
A38: West Lothian | B38: 150 | C38: 111 | D38: 78 | E38: 125 | F38: 99 | G38: 42 | H38: 56 | I38: 45 | J38: 28 | K38: 67 | L38: 50 | M38: 56 | N38: 65 | O38: 7 | P38: -4 | Q38: -10 | R38: -20 | S38: 29 | T38: 56
A40: NHS Health Boards | B40: 2003-04 | C40: 2004-05 | D40: 2005-06 | E40: 2006-07 | F40: 2007-08 | G40: 2008-09 | H40: 2009-10 | I40: 2010-11 | J40: 2011-12 | K40: 2012-13 | L40: 2013-14 | M40: 2014-15 | N40: 2015-16 | O40: 2016-17 | P40: 2017-18 | Q40: 2018-19 | R40: 2019-20 | S40: 2020-21 | T40: 2021-22
A41: Scotland | B41: 1597 | C41: 942 | D41: 362 | E41: 734 | F41: 548 | G41: 299 | H41: 261 | I41: 495 | J41: 153 | K41: 405 | L41: 659 | M41: 338 | N41: -6 | O41: 578 | P41: 277 | Q41: 1035 | R41: 792 | S41: 1427 | T41: 1704
A42: Ayrshire and Arran | B42: 341 | C42: 202 | D42: 188 | E42: 123 | F42: 123 | G42: 143 | H42: 94 | I42: 164 | J42: 128 | K42: 227 | L42: 173 | M42: 111 | N42: 93 | O42: 256 | P42: 232 | Q42: 227 | R42: 175 | S42: 404 | T42: 373
A43: Borders | B43: 204 | C43: 59 | D43: 7 | E43: 139 | F43: 47 | G43: 115 | H43: 21 | I43: -23 | J43: 3 | K43: 73 | L43: -13 | M43: 55 | N43: -16 | O43: 46 | P43: 41 | Q43: 54 | R43: 47 | S43: 105 | T43: 35
A44: Dumfries and Galloway | B44: 202 | C44: 189 | D44: 51 | E44: 113 | F44: 122 | G44: 23 | H44: 24 | I44: 34 | J44: -11 | K44: -2 | L44: 97 | M44: 69 | N44: 9 | O44: 18 | P44: 83 | Q44: 101 | R44: 93 | S44: 90 | T44: 69
A45: Fife | B45: 161 | C45: 231 | D45: 74 | E45: 131 | F45: 101 | G45: 122 | H45: 97 | I45: 127 | J45: 115 | K45: 59 | L45: 226 | M45: 65 | N45: 78 | O45: 50 | P45: 38 | Q45: 198 | R45: 168 | S45: 157 | T45: 247
A46: Forth Valley | B46: 168 | C46: 66 | D46: 60 | E46: 63 | F46: 78 | G46: 78 | H46: 82 | I46: 33 | J46: 48 | K46: 12 | L46: 32 | M46: 54 | N46: -10 | O46: 6 | P46: 4 | Q46: 21 | R46: 9 | S46: 34 | T46: 68
A47: Grampian | B47: 421 | C47: 322 | D47: 148 | E47: 169 | F47: 58 | G47: -56 | H47: -67 | I47: -104 | J47: -147 | K47: -130 | L47: -177 | M47: -302 | N47: -192 | O47: 17 | P47: -130 | Q47: 31 | R47: 93 | S47: 276 | T47: 247
A48: Greater Glasgow and Clyde | B48: -883 | C48: -753 | D48: -737 | E48: -611 | F48: -567 | G48: -411 | H48: -335 | I48: -192 | J48: -278 | K48: -230 | L48: -49 | M48: -3 | N48: -2 | O48: 39 | P48: -39 | Q48: 120 | R48: 16 | S48: -250 | T48: 98
A49: Highland | B49: 347 | C49: 227 | D49: 153 | E49: 198 | F49: 142 | G49: -3 | H49: -31 | I49: 49 | J49: -53 | K49: -57 | L49: -59 | M49: -116 | N49: -289 | O49: -210 | P49: -203 | Q49: -47 | R49: -4 | S49: 241 | T49: -27
A50: Lanarkshire | B50: 390 | C50: 285 | D50: 235 | E50: 159 | F50: 140 | G50: 179 | H50: 130 | I50: 106 | J50: 94 | K50: 163 | L50: 88 | M50: 123 | N50: 15 | O50: 36 | P50: 73 | Q50: 55 | R50: 50 | S50: -32 | T50: 144
A51: Lothian | B51: -186 | C51: -166 | D51: -30 | E51: 6 | F51: 46 | G51: 52 | H51: 129 | I51: 126 | J51: 177 | K51: 178 | L51: 243 | M51: 214 | N51: 232 | O51: 156 | P51: 99 | Q51: 122 | R51: 21 | S51: 54 | T51: 182
A52: Orkney | B52: 30 | C52: 5 | D52: 26 | E52: 23 | F52: 20 | G52: 11 | H52: 28 | I52: 9 | J52: -4 | K52: 3 | L52: 10 | M52: 2 | N52: 17 | O52: 29 | P52: 13 | Q52: -11 | R52: 27 | S52: -8 | T52: 20
A53: Shetland | B53: 20 | C53: 4 | D53: 5 | E53: 8 | F53: 6 | G53: 23 | H53: -5 | I53: 10 | J53: 21 | K53: -15 | L53: -1 | M53: -30 | N53: 4 | O53: -3 | P53: -12 | Q53: -10 | R53: -8 | S53: -2 | T53: -7
A54: Tayside | B54: 349 | C54: 226 | D54: 154 | E54: 196 | F54: 190 | G54: 2 | H54: 56 | I54: 154 | J54: 45 | K54: 115 | L54: 84 | M54: 111 | N54: 71 | O54: 128 | P54: 91 | Q54: 185 | R54: 117 | S54: 334 | T54: 231
A55: Western Isles | B55: 33 | C55: 45 | D55: 28 | E55: 17 | F55: 42 | G55: 21 | H55: 38 | I55: 2 | J55: 14 | K55: 8 | L55: 6 | M55: -13 | N55: -13 | O55: 10 | P55: -14 | Q55: -11 | R55: -10 | S55: 27 | T55: 25

Sheet Total in-migration
A1: Total in-migration
A2: This worksheet contains two tables, presented next to each other vertically with one blank row between the tables.
A3: See notes [1], [2], [3], [4], [5] which are explained in the Notes worksheet.
A4: Return to front page
A5: Council Area | B5: 2003-04 | C5: 2004-05 | D5: 2005-06 | E5: 2006-07 | F5: 2007-08 | G5: 2008-09 | H5: 2009-10 | I5: 2010-11 | J5: 2011-12 | K5: 2012-13 | L5: 2013-14 | M5: 2014-15 | N5: 2015-16 | O5: 2016-17 | P5: 2017-18 | Q5: 2018-19 | R5: 2019-20 | S5: 2020-21 | T5: 2021-22
A6: Scotland | B6: 90400 | C6: 99100 | D6: 94600 | E6: 96600 | F6: 98500 | G6: 90500 | H6: 92400 | I6: 87900 | J6: 88900 | K6: 83600 | L6: 88800 | M6: 91400 | N6: 104200 | O6: 102200 | P6: 101800 | Q6: 112600 | R6: 99900 | S6: 112700 | T6: 128100
A7: Aberdeen City | B7: 10650 | C7: 12400 | D7: 12750 | E7: 13510 | F7: 13630 | G7: 14160 | H7: 13970 | I7: 13580 | J7: 14520 | K7: 14790 | L7: 14540 | M7: 14420 | N7: 14000 | O7: 13300 | P7: 12560 | Q7: 14050 | R7: 12670 | S7: 13280 | T7: 15560
A8: Aberdeenshire | B8: 10270 | C8: 10290 | D8: 10290 | E8: 9930 | F8: 9780 | G8: 8830 | H8: 8980 | I8: 8840 | J8: 9340 | K8: 9780 | L8: 10720 | M8: 9870 | N8: 8770 | O8: 7970 | P8: 7720 | Q8: 7930 | R8: 6950 | S8: 9880 | T8: 8770
A9: Angus | B9: 4760 | C9: 4560 | D9: 4440 | E9: 4180 | F9: 4280 | G9: 3390 | H9: 3660 | I9: 3600 | J9: 3970 | K9: 4090 | L9: 4350 | M9: 4520 | N9: 4170 | O9: 4030 | P9: 4150 | Q9: 4190 | R9: 3580 | S9: 4740 | T9: 4010
A10: Argyll and Bute | B10: 4900 | C10: 4760 | D10: 4440 | E10: 4310 | F10: 4080 | G10: 3860 | H10: 3950 | I10: 3740 | J10: 3950 | K10: 3960 | L10: 3920 | M10: 3930 | N10: 4300 | O10: 4420 | P10: 4300 | Q10: 4140 | R10: 3550 | S10: 5350 | T10: 4170
A11: City of Edinburgh | B11: 28530 | C11: 31870 | D11: 30270 | E11: 29700 | F11: 29670 | G11: 29510 | H11: 31280 | I11: 29900 | J11: 31260 | K11: 29880 | L11: 31200 | M11: 33340 | N11: 36950 | O11: 36090 | P11: 36420 | Q11: 39010 | R11: 34600 | S11: 37630 | T11: 40010
A12: Clackmannanshire | B12: 2080 | C12: 2130 | D12: 2010 | E12: 2270 | F12: 2130 | G12: 1680 | H12: 1580 | I12: 1530 | J12: 1540 | K12: 1710 | L12: 1750 | M12: 1900 | N12: 1820 | O12: 1960 | P12: 1800 | Q12: 1810 | R12: 1630 | S12: 2160 | T12: 1950
A13: Dumfries and Galloway | B13: 5280 | C13: 5480 | D13: 4740 | E13: 4670 | F13: 4930 | G13: 4190 | H13: 3950 | I13: 4000 | J13: 3870 | K13: 4030 | L13: 4070 | M13: 3870 | N13: 3960 | O13: 4140 | P13: 4070 | Q13: 4310 | R13: 3590 | S13: 5300 | T13: 4300
A14: Dundee City | B14: 5830 | C14: 6850 | D14: 6480 | E14: 6670 | F14: 7300 | G14: 6860 | H14: 7130 | I14: 7390 | J14: 7380 | K14: 7300 | L14: 6990 | M14: 7310 | N14: 7460 | O14: 7870 | P14: 7860 | Q14: 8460 | R14: 7570 | S14: 7800 | T14: 8870
A15: East Ayrshire | B15: 3660 | C15: 3450 | D15: 3400 | E15: 3670 | F15: 3790 | G15: 3370 | H15: 3080 | I15: 3110 | J15: 3100 | K15: 3250 | L15: 3230 | M15: 3360 | N15: 3460 | O15: 3490 | P15: 3500 | Q15: 3660 | R15: 2870 | S15: 4030 | T15: 3550
A16: East Dunbartonshire | B16: 3620 | C16: 3670 | D16: 3490 | E16: 3490 | F16: 3430 | G16: 3230 | H16: 3070 | I16: 3050 | J16: 3710 | K16: 3740 | L16: 4230 | M16: 4450 | N16: 4440 | O16: 4410 | P16: 4260 | Q16: 4190 | R16: 3730 | S16: 4700 | T16: 3960
A17: East Lothian | B17: 3680 | C17: 3650 | D17: 3940 | E17: 4400 | F17: 4810 | G17: 3650 | H17: 3720 | I17: 3650 | J17: 4280 | K17: 4090 | L17: 4360 | M17: 4600 | N17: 4270 | O17: 4560 | P17: 4850 | Q17: 4890 | R17: 4570 | S17: 5960 | T17: 4810
A18: East Renfrewshire | B18: 3400 | C18: 3410 | D18: 3330 | E18: 3290 | F18: 3290 | G18: 2950 | H18: 3100 | I18: 3140 | J18: 3470 | K18: 3890 | L18: 3950 | M18: 4110 | N18: 4280 | O18: 4340 | P18: 4030 | Q18: 3870 | R18: 3750 | S18: 4600 | T18: 4310
A19: Falkirk | B19: 4720 | C19: 5160 | D19: 4540 | E19: 4580 | F19: 4310 | G19: 3770 | H19: 3560 | I19: 4200 | J19: 3850 | K19: 4160 | L19: 4220 | M19: 4460 | N19: 4740 | O19: 4800 | P19: 4360 | Q19: 4700 | R19: 3730 | S19: 4560 | T19: 4100
A20: Fife | B20: 12570 | C20: 13210 | D20: 12150 | E20: 11940 | F20: 12080 | G20: 11200 | H20: 11340 | I20: 11170 | J20: 11210 | K20: 10900 | L20: 11380 | M20: 11930 | N20: 12770 | O20: 12670 | P20: 12490 | Q20: 13600 | R20: 11410 | S20: 14460 | T20: 12500
A21: Glasgow City | B21: 26610 | C21: 28420 | D21: 27500 | E21: 29030 | F21: 31110 | G21: 29920 | H21: 29100 | I21: 29320 | J21: 29340 | K21: 28530 | L21: 30430 | M21: 33450 | N21: 37490 | O21: 36710 | P21: 38840 | Q21: 41380 | R21: 36100 | S21: 40990 | T21: 47380
A22: Highland | B22: 9790 | C22: 10160 | D22: 9580 | E22: 9630 | F22: 9620 | G22: 8050 | H22: 7860 | I22: 7510 | J22: 7360 | K22: 7280 | L22: 7370 | M22: 7800 | N22: 8120 | O22: 7830 | P22: 7770 | Q22: 7840 | R22: 6410 | S22: 10080 | T22: 7970
A23: Inverclyde | B23: 1750 | C23: 1960 | D23: 1660 | E23: 1620 | F23: 1660 | G23: 1330 | H23: 1400 | I23: 1260 | J23: 1540 | K23: 1570 | L23: 1500 | M23: 1600 | N23: 1660 | O23: 1710 | P23: 1650 | Q23: 1750 | R23: 1440 | S23: 1960 | T23: 1840
A24: Midlothian | B24: 2610 | C24: 2560 | D24: 2560 | E24: 2950 | F24: 2990 | G24: 2780 | H24: 2630 | I24: 2720 | J24: 3060 | K24: 3260 | L24: 3710 | M24: 3790 | N24: 3850 | O24: 4060 | P24: 4010 | Q24: 3990 | R24: 3480 | S24: 4650 | T24: 4180
A25: Moray | B25: 4060 | C25: 3940 | D25: 3860 | E25: 3450 | F25: 3480 | G25: 3170 | H25: 3080 | I25: 3040 | J25: 3370 | K25: 3560 | L25: 3520 | M25: 3620 | N25: 3710 | O25: 3360 | P25: 3230 | Q25: 3360 | R25: 2880 | S25: 3880 | T25: 3510
A26: Na h-Eileanan Siar | B26: 1230 | C26: 1220 | D26: 1090 | E26: 1030 | F26: 1030 | G26: 970 | H26: 970 | I26: 910 | J26: 890 | K26: 890 | L26: 850 | M26: 890 | N26: 860 | O26: 1030 | P26: 900 | Q26: 870 | R26: 740 | S26: 1130 | T26: 1000
A27: North Ayrshire | B27: 4450 | C27: 4330 | D27: 4130 | E27: 4340 | F27: 4190 | G27: 3540 | H27: 3480 | I27: 3530 | J27: 3660 | K27: 3600 | L27: 3660 | M27: 3800 | N27: 3900 | O27: 3980 | P27: 3680 | Q27: 3770 | R27: 3300 | S27: 4400 | T27: 3730
A28: North Lanarkshire | B28: 7880 | C28: 7890 | D28: 7840 | E28: 8240 | F28: 8010 | G28: 7120 | H28: 6230 | I28: 6540 | J28: 6960 | K28: 6850 | L28: 7130 | M28: 7730 | N28: 8470 | O28: 8190 | P28: 8240 | Q28: 8870 | R28: 7040 | S28: 9060 | T28: 8010
A29: Orkney Islands | B29: 900 | C29: 800 | D29: 780 | E29: 740 | F29: 750 | G29: 710 | H29: 810 | I29: 670 | J29: 760 | K29: 780 | L29: 770 | M29: 710 | N29: 870 | O29: 800 | P29: 840 | Q29: 830 | R29: 710 | S29: 930 | T29: 790
A30: Perth and Kinross | B30: 6920 | C30: 7390 | D30: 7300 | E30: 7530 | F30: 7850 | G30: 6980 | H30: 6980 | I30: 6460 | J30: 6090 | K30: 5960 | L30: 6560 | M30: 6600 | N30: 6840 | O30: 6790 | P30: 6450 | Q30: 6900 | R30: 5570 | S30: 7990 | T30: 6830
A31: Renfrewshire | B31: 4840 | C31: 5030 | D31: 4830 | E31: 5250 | F31: 5070 | G31: 4690 | H31: 4870 | I31: 4780 | J31: 4690 | K31: 4790 | L31: 5450 | M31: 5790 | N31: 6750 | O31: 6550 | P31: 6700 | Q31: 6920 | R31: 5850 | S31: 7470 | T31: 7410
A32: Scottish Borders | B32: 5420 | C32: 4960 | D32: 4760 | E32: 5150 | F32: 5300 | G32: 4310 | H32: 4140 | I32: 4090 | J32: 4100 | K32: 4160 | L32: 4330 | M32: 4250 | N32: 4600 | O32: 4690 | P32: 4750 | Q32: 4510 | R32: 3810 | S32: 5430 | T32: 4290
A33: Shetland Islands | B33: 820 | C33: 820 | D33: 720 | E33: 780 | F33: 750 | G33: 810 | H33: 760 | I33: 710 | J33: 690 | K33: 690 | L33: 800 | M33: 830 | N33: 700 | O33: 610 | P33: 620 | Q33: 650 | R33: 640 | S33: 860 | T33: 810
A34: South Ayrshire | B34: 4040 | C34: 4000 | D34: 3740 | E34: 3920 | F34: 3830 | G34: 3510 | H34: 3510 | I34: 3480 | J34: 3670 | K34: 3740 | L34: 3560 | M34: 3790 | N34: 3940 | O34: 4120 | P34: 3840 | Q34: 4020 | R34: 3340 | S34: 4490 | T34: 3830
A35: South Lanarkshire | B35: 10040 | C35: 9250 | D35: 9270 | E35: 9270 | F35: 8790 | G35: 8060 | H35: 7910 | I35: 7620 | J35: 8510 | K35: 8560 | L35: 8620 | M35: 9480 | N35: 9650 | O35: 9870 | P35: 9840 | Q35: 10540 | R35: 8720 | S35: 11740 | T35: 10760
A36: Stirling | B36: 4760 | C36: 5530 | D36: 5290 | E36: 5150 | F36: 4990 | G36: 4750 | H36: 5190 | I36: 5160 | J36: 5520 | K36: 5360 | L36: 5510 | M36: 5960 | N36: 6130 | O36: 5800 | P36: 6050 | Q36: 6040 | R36: 5330 | S36: 6040 | T36: 6200
A37: West Dunbartonshire | B37: 2440 | C37: 2350 | D37: 2440 | E37: 2460 | F37: 2430 | G37: 2250 | H37: 2080 | I37: 2090 | J37: 2240 | K37: 2250 | L37: 2290 | M37: 2620 | N37: 2660 | O37: 2530 | P37: 2500 | Q37: 2550 | R37: 2090 | S37: 2570 | T37: 2400
A38: West Lothian | B38: 6210 | C38: 5980 | D38: 6200 | E38: 6710 | F38: 6350 | G38: 5060 | H38: 4830 | I38: 4820 | J38: 4890 | K38: 4650 | L38: 5340 | M38: 5820 | N38: 5970 | O38: 5640 | P38: 5450 | Q38: 5870 | R38: 5190 | S38: 6840 | T38: 6020
A40: NHS Board Areas | B40: 2003-04 | C40: 2004-05 | D40: 2005-06 | E40: 2006-07 | F40: 2007-08 | G40: 2008-09 | H40: 2009-10 | I40: 2010-11 | J40: 2011-12 | K40: 2012-13 | L40: 2013-14 | M40: 2014-15 | N40: 2015-16 | O40: 2016-17 | P40: 2017-18 | Q40: 2018-19 | R40: 2019-20 | S40: 2020-21 | T40: 2021-22
A41: Scotland | B41: 90400 | C41: 99100 | D41: 94600 | E41: 96600 | F41: 98500 | G41: 90500 | H41: 92400 | I41: 87900 | J41: 88900 | K41: 83600 | L41: 88800 | M41: 91400 | N41: 104200 | O41: 102200 | P41: 101800 | Q41: 112600 | R41: 99900 | S41: 112700 | T41: 128100
A42: Ayrshire and Arran | B42: 9500 | C42: 9190 | D42: 8670 | E42: 9100 | F42: 9060 | G42: 7960 | H42: 7720 | I42: 7760 | J42: 7910 | K42: 8060 | L42: 8010 | M42: 8150 | N42: 8550 | O42: 8830 | P42: 8390 | Q42: 8780 | R42: 7190 | S42: 10280 | T42: 8780
A43: Borders | B43: 5420 | C43: 4960 | D43: 4760 | E43: 5150 | F43: 5300 | G43: 4310 | H43: 4140 | I43: 4090 | J43: 4100 | K43: 4160 | L43: 4330 | M43: 4250 | N43: 4600 | O43: 4690 | P43: 4750 | Q43: 4510 | R43: 3810 | S43: 5430 | T43: 4290
A44: Dumfries and Galloway | B44: 5280 | C44: 5480 | D44: 4740 | E44: 4670 | F44: 4930 | G44: 4190 | H44: 3950 | I44: 4000 | J44: 3870 | K44: 4030 | L44: 4070 | M44: 3870 | N44: 3960 | O44: 4140 | P44: 4070 | Q44: 4310 | R44: 3590 | S44: 5300 | T44: 4300
A45: Fife | B45: 12570 | C45: 13210 | D45: 12150 | E45: 11940 | F45: 12080 | G45: 11190 | H45: 11340 | I45: 11170 | J45: 11210 | K45: 10900 | L45: 11380 | M45: 11930 | N45: 12770 | O45: 12670 | P45: 12490 | Q45: 13600 | R45: 11410 | S45: 14460 | T45: 12500
A46: Forth Valley | B46: 9970 | C46: 11260 | D46: 10250 | E46: 10260 | F46: 9830 | G46: 8840 | H46: 8930 | I46: 9430 | J46: 9460 | K46: 9690 | L46: 9890 | M46: 10620 | N46: 11090 | O46: 10890 | P46: 10570 | Q46: 11010 | R46: 9250 | S46: 11120 | T46: 10790
A47: Grampian | B47: 18090 | C47: 19970 | D47: 20190 | E47: 20240 | F47: 19920 | G47: 19890 | H47: 19460 | I47: 18790 | J47: 20260 | K47: 20470 | L47: 20970 | M47: 19890 | N47: 19260 | O47: 18060 | P47: 17040 | Q47: 18870 | R47: 16950 | S47: 20050 | T47: 21410
A48: Greater Glasgow and Clyde | B48: 35520 | C48: 37780 | D48: 36530 | E48: 38260 | F48: 40070 | G48: 38430 | H48: 38150 | I48: 37790 | J48: 34060 | K48: 33150 | L48: 35880 | M48: 38770 | N48: 44250 | O48: 43300 | P48: 44850 | Q48: 47960 | R48: 41850 | S48: 48060 | T48: 55040
A49: Highland | B49: 14340 | C49: 14620 | D49: 13680 | E49: 13620 | F49: 13350 | G49: 11600 | H49: 11490 | I49: 10950 | J49: 10980 | K49: 10890 | L49: 10940 | M49: 11400 | N49: 12100 | O49: 11930 | P49: 11750 | Q49: 11640 | R49: 9710 | S49: 14970 | T49: 11820
A50: Lanarkshire | B50: 13000 | C50: 12550 | D50: 12520 | E50: 12640 | F50: 12420 | G50: 11180 | H50: 10330 | I50: 10450 | J50: 13260 | K50: 13070 | L50: 13460 | M50: 14620 | N50: 15600 | O50: 15630 | P50: 15660 | Q50: 16840 | R50: 13650 | S50: 17980 | T50: 16330
A51: Lothian | B51: 32280 | C51: 35920 | D51: 34810 | E51: 34660 | F51: 35300 | G51: 33840 | H51: 35430 | I51: 33810 | J51: 36110 | K51: 34150 | L51: 36260 | M51: 38320 | N51: 42410 | O51: 41600 | P51: 41840 | Q51: 44760 | R51: 39550 | S51: 44550 | T51: 46110
A52: Orkney | B52: 900 | C52: 800 | D52: 780 | E52: 740 | F52: 750 | G52: 710 | H52: 810 | I52: 670 | J52: 760 | K52: 780 | L52: 770 | M52: 710 | N52: 870 | O52: 800 | P52: 840 | Q52: 830 | R52: 710 | S52: 930 | T52: 790
A53: Shetland | B53: 820 | C53: 820 | D53: 720 | E53: 780 | F53: 750 | G53: 810 | H53: 760 | I53: 710 | J53: 690 | K53: 690 | L53: 800 | M53: 830 | N53: 700 | O53: 610 | P53: 620 | Q53: 650 | R53: 640 | S53: 860 | T53: 810
A54: Tayside | B54: 13650 | C54: 15420 | D54: 14660 | E54: 14790 | F54: 15730 | G54: 14380 | H54: 14800 | I54: 14390 | J54: 14150 | K54: 13800 | L54: 14500 | M54: 14910 | N54: 15180 | O54: 15340 | P54: 14980 | Q54: 16100 | R54: 13670 | S54: 17020 | T54: 16700
A55: Western Isles | B55: 1230 | C55: 1220 | D55: 1090 | E55: 1030 | F55: 1030 | G55: 970 | H55: 970 | I55: 910 | J55: 890 | K55: 890 | L55: 850 | M55: 890 | N55: 860 | O55: 1030 | P55: 900 | Q55: 870 | R55: 740 | S55: 1130 | T55: 1000

Sheet Total out-migration
A1: Total out-migration
A2: This worksheet contains two tables, presented next to each other vertically with one blank row between the tables.
A3: See notes [1], [2], [3], [4], [5] which are explained in the Notes worksheet.
A4: Return to front page
A5: Council Area | B5: 2003-04 | C5: 2004-05 | D5: 2005-06 | E5: 2006-07 | F5: 2007-08 | G5: 2008-09 | H5: 2009-10 | I5: 2010-11 | J5: 2011-12 | K5: 2012-13 | L5: 2013-14 | M5: 2014-15 | N5: 2015-16 | O5: 2016-17 | P5: 2017-18 | Q5: 2018-19 | R5: 2019-20 | S5: 2020-21 | T5: 2021-22
A6: Scotland | B6: 71800 | C6: 73800 | D6: 75800 | E6: 63600 | F6: 72100 | G6: 66100 | H6: 66300 | I6: 57700 | J6: 78600 | K6: 76000 | L6: 73300 | M6: 66000 | N6: 77500 | O6: 79700 | P6: 85900 | Q6: 84500 | R6: 83800 | S6: 90500 | T6: 79200
A7: Aberdeen City | B7: 11850 | C7: 11290 | D7: 11600 | E7: 10560 | F7: 11980 | G7: 11190 | H7: 11220 | I7: 10500 | J7: 13700 | K7: 14230 | L7: 14240 | M7: 14400 | N7: 15910 | O7: 15240 | P7: 14450 | Q7: 13850 | R7: 12710 | S7: 15350 | T7: 12600
A8: Aberdeenshire | B8: 7040 | C8: 7510 | D8: 7220 | E8: 7250 | F8: 7900 | G8: 7320 | H8: 7290 | I8: 7450 | J8: 7740 | K8: 7920 | L8: 8160 | M8: 8370 | N8: 9130 | O8: 8720 | P8: 8630 | Q8: 8310 | R8: 6970 | S8: 7870 | T8: 7640
A9: Angus | B9: 3420 | C9: 3490 | D9: 3490 | E9: 3420 | F9: 3630 | G9: 3240 | H9: 3310 | I9: 3490 | J9: 3720 | K9: 3890 | L9: 3660 | M9: 3720 | N9: 4010 | O9: 3870 | P9: 4030 | Q9: 3780 | R9: 3320 | S9: 3980 | T9: 3590
A10: Argyll and Bute | B10: 3970 | C10: 4320 | D10: 4240 | E10: 3930 | F10: 4120 | G10: 3890 | H10: 3660 | I10: 3430 | J10: 3960 | K10: 3880 | L10: 3860 | M10: 4030 | N10: 3980 | O10: 4120 | P10: 4360 | Q10: 4080 | R10: 3440 | S10: 4160 | T10: 3730
A11: City of Edinburgh | B11: 26290 | C11: 26550 | D11: 26860 | E11: 24780 | F11: 26320 | G11: 23650 | H11: 23210 | I11: 21860 | J11: 29260 | K11: 29210 | L11: 30120 | M11: 27960 | N11: 31380 | O11: 32120 | P11: 33570 | Q11: 34800 | R11: 32800 | S11: 41310 | T11: 32040
A12: Clackmannanshire | B12: 1530 | C12: 1560 | D12: 1710 | E12: 1530 | F12: 1740 | G12: 1640 | H12: 1660 | I12: 1530 | J12: 1710 | K12: 1730 | L12: 1760 | M12: 1740 | N12: 1810 | O12: 1830 | P12: 1860 | Q12: 1680 | R12: 1530 | S12: 1920 | T12: 1680
A13: Dumfries and Galloway | B13: 4100 | C13: 4290 | D13: 4270 | E13: 3960 | F13: 4120 | G13: 3880 | H13: 3830 | I13: 3630 | J13: 4060 | K13: 4050 | L13: 3760 | M13: 3770 | N13: 3740 | O13: 3920 | P13: 3960 | Q13: 3720 | R13: 3270 | S13: 4000 | T13: 3650
A14: Dundee City | B14: 6570 | C14: 6280 | D14: 6590 | E14: 6410 | F14: 6690 | G14: 5940 | H14: 6150 | I14: 5960 | J14: 7150 | K14: 7390 | L14: 7370 | M14: 7280 | N14: 7510 | O14: 7200 | P14: 7630 | Q14: 7720 | R14: 7470 | S14: 8670 | T14: 6980
A15: East Ayrshire | B15: 3290 | C15: 3410 | D15: 3310 | E15: 3350 | F15: 3240 | G15: 2990 | H15: 3050 | I15: 3080 | J15: 3220 | K15: 3300 | L15: 3320 | M15: 3390 | N15: 3400 | O15: 3520 | P15: 3400 | Q15: 3230 | R15: 2830 | S15: 3290 | T15: 2920
A16: East Dunbartonshire | B16: 4080 | C16: 4160 | D16: 3940 | E16: 3780 | F16: 3610 | G16: 3310 | H16: 3140 | I16: 3160 | J16: 3380 | K16: 3500 | L16: 3190 | M16: 3710 | N16: 3790 | O16: 3640 | P16: 3920 | Q16: 3700 | R16: 3140 | S16: 4230 | T16: 3570
A17: East Lothian | B17: 3250 | C17: 3150 | D17: 3020 | E17: 2840 | F17: 3180 | G17: 2940 | H17: 3130 | I17: 3210 | J17: 3290 | K17: 3250 | L17: 3350 | M17: 3340 | N17: 3280 | O17: 3550 | P17: 3610 | Q17: 3430 | R17: 3350 | S17: 3920 | T17: 3440
A18: East Renfrewshire | B18: 3500 | C18: 3430 | D18: 3540 | E18: 3240 | F18: 3360 | G18: 2870 | H18: 2730 | I18: 2870 | J18: 3230 | K18: 3210 | L18: 3040 | M18: 3410 | N18: 3510 | O18: 3360 | P18: 3600 | Q18: 3460 | R18: 3070 | S18: 3980 | T18: 3190
A19: Falkirk | B19: 3210 | C19: 3520 | D19: 3600 | E19: 3640 | F19: 3650 | G19: 3210 | H19: 3110 | I19: 3180 | J19: 3570 | K19: 3730 | L19: 3750 | M19: 3740 | N19: 3790 | O19: 3910 | P19: 4110 | Q19: 3970 | R19: 3530 | S19: 4180 | T19: 3920
A20: Fife | B20: 10230 | C20: 10550 | D20: 10590 | E20: 10050 | F20: 10460 | G20: 9650 | H20: 9530 | I20: 9100 | J20: 10540 | K20: 10670 | L20: 10780 | M20: 10630 | N20: 11250 | O20: 11350 | P20: 11520 | Q20: 11290 | R20: 10110 | S20: 12850 | T20: 10250
A21: Glasgow City | B21: 30030 | C21: 29980 | D21: 29490 | E21: 26730 | F21: 28180 | G21: 25930 | H21: 26050 | I21: 23950 | J21: 29030 | K21: 29430 | L21: 30060 | M21: 30320 | N21: 31570 | O21: 32610 | P21: 33720 | Q21: 36450 | R21: 34040 | S21: 40900 | T21: 35540
A22: Highland | B22: 6940 | C22: 7300 | D22: 7530 | E22: 6960 | F22: 7510 | G22: 7060 | H22: 6870 | I22: 6610 | J22: 6980 | K22: 6980 | L22: 7020 | M22: 6690 | N22: 6920 | O22: 6990 | P22: 7240 | Q22: 7010 | R22: 6010 | S22: 7180 | T22: 6950
A23: Inverclyde | B23: 2350 | C23: 2090 | D23: 2010 | E23: 1940 | F23: 1860 | G23: 1690 | H23: 1620 | I23: 1550 | J23: 1620 | K23: 1580 | L23: 1710 | M23: 1640 | N23: 1680 | O23: 1670 | P23: 1760 | Q23: 1610 | R23: 1440 | S23: 1770 | T23: 1580
A24: Midlothian | B24: 2870 | C24: 2880 | D24: 2820 | E24: 2840 | F24: 2560 | G24: 2320 | H24: 2400 | I24: 2200 | J24: 2320 | K24: 2400 | L24: 2420 | M24: 2610 | N24: 2720 | O24: 2670 | P24: 2870 | Q24: 2910 | R24: 2700 | S24: 3220 | T24: 2860
A25: Moray | B25: 3080 | C25: 3250 | D25: 3400 | E25: 2930 | F25: 3150 | G25: 2770 | H25: 3090 | I25: 3200 | J25: 3090 | K25: 2990 | L25: 3060 | M25: 3130 | N25: 3250 | O25: 3360 | P25: 3330 | Q25: 3120 | R25: 2860 | S25: 3320 | T25: 3180
A26: Na h-Eileanan Siar | B26: 990 | C26: 950 | D26: 960 | E26: 960 | F26: 1010 | G26: 900 | H26: 810 | I26: 890 | J26: 880 | K26: 900 | L26: 920 | M26: 930 | N26: 950 | O26: 890 | P26: 920 | Q26: 850 | R26: 770 | S26: 820 | T26: 780
A27: North Ayrshire | B27: 4240 | C27: 4240 | D27: 4150 | E27: 3910 | F27: 3860 | G27: 3660 | H27: 3640 | I27: 3390 | J27: 4020 | K27: 3820 | L27: 3770 | M27: 3820 | N27: 3860 | O27: 3650 | P27: 3760 | Q27: 3660 | R27: 3170 | S27: 3720 | T27: 3240
A28: North Lanarkshire | B28: 7650 | C28: 7560 | D28: 7540 | E28: 7390 | F28: 7470 | G28: 7040 | H28: 6650 | I28: 6600 | J28: 7080 | K28: 7030 | L28: 6970 | M28: 7510 | N28: 7470 | O28: 7400 | P28: 7730 | Q28: 7550 | R28: 6440 | S28: 8220 | T28: 7460
A29: Orkney Islands | B29: 640 | C29: 670 | D29: 580 | E29: 600 | F29: 650 | G29: 620 | H29: 640 | I29: 570 | J29: 650 | K29: 700 | L29: 690 | M29: 650 | N29: 700 | O29: 630 | P29: 640 | Q29: 690 | R29: 540 | S29: 750 | T29: 670
A30: Perth and Kinross | B30: 5250 | C30: 5320 | D30: 5280 | E30: 5090 | F30: 5450 | G30: 5180 | H30: 5120 | I30: 4630 | J30: 5360 | K30: 5620 | L30: 5270 | M30: 5390 | N30: 5590 | O30: 5650 | P30: 5890 | Q30: 5830 | R30: 4830 | S30: 5750 | T30: 5510
A31: Renfrewshire | B31: 5110 | C31: 5310 | D31: 5170 | E31: 4980 | F31: 4670 | G31: 4530 | H31: 4430 | I31: 4190 | J31: 4620 | K31: 4620 | L31: 4590 | M31: 4770 | N31: 4830 | O31: 4980 | P31: 5140 | Q31: 5010 | R31: 4570 | S31: 5880 | T31: 5050
A32: Scottish Borders | B32: 4030 | C32: 3960 | D32: 3930 | E32: 3660 | F32: 4000 | G32: 3890 | H32: 3860 | I32: 3600 | J32: 3810 | K32: 3570 | L32: 3770 | M32: 3630 | N32: 3800 | O32: 3790 | P32: 4010 | Q32: 3790 | R32: 3300 | S32: 4170 | T32: 3750
A33: Shetland Islands | B33: 740 | C33: 740 | D33: 840 | E33: 740 | F33: 720 | G33: 610 | H33: 600 | I33: 650 | J33: 760 | K33: 750 | L33: 690 | M33: 790 | N33: 820 | O33: 740 | P33: 700 | Q33: 750 | R33: 640 | S33: 710 | T33: 710
A34: South Ayrshire | B34: 3360 | C34: 3580 | D34: 3380 | E34: 3340 | F34: 3430 | G34: 3330 | H34: 3070 | I34: 2890 | J34: 3270 | K34: 3390 | L34: 3310 | M34: 3450 | N34: 3440 | O34: 3350 | P34: 3500 | Q34: 3400 | R34: 2920 | S34: 3380 | T34: 2820
A35: South Lanarkshire | B35: 7910 | C35: 8180 | D35: 7940 | E35: 7620 | F35: 8050 | G35: 7420 | H35: 7100 | I35: 7040 | J35: 7500 | K35: 7250 | L35: 7460 | M35: 7840 | N35: 8240 | O35: 7960 | P35: 8250 | Q35: 8140 | R35: 7010 | S35: 8760 | T35: 7740
A36: Stirling | B36: 4770 | C36: 4870 | D36: 4590 | E36: 4670 | F36: 4750 | G36: 4440 | H36: 4180 | I36: 4140 | J36: 5220 | K36: 5430 | L36: 5400 | M36: 5020 | N36: 5250 | O36: 5440 | P36: 5630 | Q36: 5570 | R36: 4960 | S36: 6170 | T36: 4780
A37: West Dunbartonshire | B37: 2820 | C37: 2690 | D37: 2550 | E37: 2490 | F37: 2640 | G37: 2300 | H37: 2370 | I37: 2260 | J37: 2490 | K37: 2640 | L37: 2350 | M37: 2500 | N37: 2380 | O37: 2570 | P37: 2760 | Q37: 2580 | R37: 2330 | S37: 2710 | T37: 2350
A38: West Lothian | B38: 5000 | C38: 5130 | D38: 4880 | E38: 5250 | F38: 5350 | G38: 4830 | H38: 4630 | I38: 4600 | J38: 5160 | K38: 5310 | L38: 4940 | M38: 5090 | N38: 4990 | O38: 5070 | P38: 5300 | Q38: 5430 | R38: 4620 | S38: 5630 | T38: 4850
A40: NHS Board Areas | B40: 2003-04 | C40: 2004-05 | D40: 2005-06 | E40: 2006-07 | F40: 2007-08 | G40: 2008-09 | H40: 2009-10 | I40: 2010-11 | J40: 2011-12 | K40: 2012-13 | L40: 2013-14 | M40: 2014-15 | N40: 2015-16 | O40: 2016-17 | P40: 2017-18 | Q40: 2018-19 | R40: 2019-20 | S40: 2020-21 | T40: 2021-22
A41: Scotland | B41: 71800 | C41: 73800 | D41: 75800 | E41: 63600 | F41: 72100 | G41: 66100 | H41: 66300 | I41: 57700 | J41: 78600 | K41: 76000 | L41: 73300 | M41: 66000 | N41: 77500 | O41: 79700 | P41: 85900 | Q41: 84500 | R41: 83800 | S41: 90500 | T41: 79200
A42: Ayrshire and Arran | B42: 8240 | C42: 8640 | D42: 8240 | E42: 7770 | F42: 7780 | G42: 7520 | H42: 7410 | I42: 7000 | J42: 7980 | K42: 7980 | L42: 7940 | M42: 7850 | N42: 7950 | O42: 7770 | P42: 8030 | Q42: 7620 | R42: 6600 | S42: 7730 | T42: 6650
A43: Borders | B43: 4030 | C43: 3960 | D43: 3930 | E43: 3660 | F43: 4000 | G43: 3890 | H43: 3860 | I43: 3600 | J43: 3810 | K43: 3570 | L43: 3770 | M43: 3630 | N43: 3800 | O43: 3790 | P43: 4010 | Q43: 3790 | R43: 3300 | S43: 4170 | T43: 3750
A44: Dumfries and Galloway | B44: 4100 | C44: 4290 | D44: 4270 | E44: 3960 | F44: 4120 | G44: 3880 | H44: 3830 | I44: 3630 | J44: 4060 | K44: 4050 | L44: 3760 | M44: 3770 | N44: 3740 | O44: 3920 | P44: 3960 | Q44: 3720 | R44: 3270 | S44: 4000 | T44: 3650
A45: Fife | B45: 10230 | C45: 10550 | D45: 10590 | E45: 10040 | F45: 10460 | G45: 9640 | H45: 9530 | I45: 9100 | J45: 10540 | K45: 10670 | L45: 10780 | M45: 10630 | N45: 11250 | O45: 11350 | P45: 11520 | Q45: 11290 | R45: 10110 | S45: 12850 | T45: 10250
A46: Forth Valley | B46: 7920 | C46: 8390 | D46: 8310 | E46: 8100 | F46: 8530 | G46: 7920 | H46: 7540 | I46: 7400 | J46: 9060 | K46: 9350 | L46: 9320 | M46: 8800 | N46: 9250 | O46: 9500 | P46: 9950 | Q46: 9670 | R46: 8580 | S46: 10620 | T46: 8920
A47: Grampian | B47: 15070 | C47: 15380 | D47: 15520 | E47: 14080 | F47: 16060 | G47: 15010 | H47: 15020 | I47: 14490 | J47: 17570 | K47: 17480 | L47: 17650 | M47: 17870 | N47: 21050 | O47: 20760 | P47: 19930 | Q47: 18810 | R47: 16990 | S47: 19560 | T47: 16990
A48: Greater Glasgow and Clyde | B48: 40080 | C48: 40190 | D48: 39330 | E48: 35560 | F48: 37180 | G48: 34310 | H48: 34290 | I48: 32010 | J48: 33450 | K48: 33360 | L48: 32970 | M48: 33100 | N48: 34740 | O48: 35880 | P48: 37780 | Q48: 40110 | R48: 37490 | S48: 45240 | T48: 39030
A49: Highland | B49: 10560 | C49: 11320 | D49: 11420 | E49: 10560 | F49: 11280 | G49: 10630 | H49: 10210 | I49: 9740 | J49: 10620 | K49: 10520 | L49: 10530 | M49: 10380 | N49: 10580 | O49: 10790 | P49: 11290 | Q49: 10750 | R49: 9210 | S49: 10870 | T49: 10360
A50: Lanarkshire | B50: 11300 | C50: 11530 | D50: 11540 | E50: 10860 | F50: 11370 | G50: 10850 | H50: 10530 | I50: 10030 | J50: 12380 | K50: 11940 | L50: 12150 | M50: 12760 | N50: 13190 | O50: 12930 | P50: 13570 | Q50: 13120 | R50: 11350 | S50: 14160 | T50: 12760
A51: Lothian | B51: 28660 | C51: 29580 | D51: 29420 | E51: 26600 | F51: 28890 | G51: 26580 | H51: 26330 | I51: 24580 | J51: 32640 | K51: 32450 | L51: 32470 | M51: 29770 | N51: 33740 | O51: 34660 | P51: 36480 | Q51: 37570 | R51: 35180 | S51: 43540 | T51: 34280
A52: Orkney | B52: 640 | C52: 670 | D52: 580 | E52: 600 | F52: 650 | G52: 620 | H52: 640 | I52: 570 | J52: 650 | K52: 700 | L52: 690 | M52: 650 | N52: 700 | O52: 630 | P52: 640 | Q52: 690 | R52: 540 | S52: 750 | T52: 670
A53: Shetland | B53: 740 | C53: 740 | D53: 840 | E53: 740 | F53: 720 | G53: 610 | H53: 600 | I53: 650 | J53: 760 | K53: 750 | L53: 690 | M53: 790 | N53: 820 | O53: 740 | P53: 700 | Q53: 750 | R53: 640 | S53: 710 | T53: 710
A54: Tayside | B54: 11380 | C54: 11710 | D54: 11790 | E54: 11330 | F54: 12060 | G54: 11510 | H54: 11600 | I54: 11010 | J54: 12940 | K54: 13360 | L54: 12880 | M54: 12860 | N54: 13820 | O54: 13370 | P54: 14090 | Q54: 13880 | R54: 12570 | S54: 14900 | T54: 13060
A55: Western Isles | B55: 990 | C55: 950 | D55: 960 | E55: 960 | F55: 1010 | G55: 900 | H55: 810 | I55: 890 | J55: 880 | K55: 900 | L55: 920 | M55: 930 | N55: 950 | O55: 890 | P55: 920 | Q55: 850 | R55: 770 | S55: 820 | T55: 780

Sheet Within Scotland net migration
A1: Within Scotland net migration
A2: This worksheet contains two tables, presented next to each other vertically with one blank row between the tables.
A3: See notes [2], [3], [5], [6] which are explained in the Notes worksheet. Some shorthand is used in this table, [z] = Not applicable.
A4: Return to front page
A5: Council Area | B5: 2003-04 | C5: 2004-05 | D5: 2005-06 | E5: 2006-07 | F5: 2007-08 | G5: 2008-09 | H5: 2009-10 | I5: 2010-11 | J5: 2011-12 | K5: 2012-13 | L5: 2013-14 | M5: 2014-15 | N5: 2015-16 | O5: 2016-17 | P5: 2017-18 | Q5: 2018-19 | R5: 2019-20 | S5: 2020-21 | T5: 2021-22
A6: Scotland | B6: [z] | C6: [z] | D6: [z] | E6: [z] | F6: [z] | G6: [z] | H6: [z] | I6: [z] | J6: [z] | K6: [z] | L6: [z] | M6: [z] | N6: [z] | O6: [z] | P6: [z] | Q6: [z] | R6: [z] | S6: [z] | T6: [z]
A7: Aberdeen City | B7: -1680 | C7: -1090 | D7: -1140 | E7: -1120 | F7: -1660 | G7: -980 | H7: -1310 | I7: -1060 | J7: -420 | K7: -240 | L7: -1170 | M7: -2210 | N7: -2660 | O7: -2190 | P7: -1850 | Q7: -910 | R7: -810 | S7: -2830 | T7: -810
A8: Aberdeenshire | B8: 1240 | C8: 870 | D8: 1340 | E8: 1100 | F8: 880 | G8: 690 | H8: 1080 | I8: 790 | J8: 1130 | K8: 1190 | L8: 1680 | M8: 960 | N8: -70 | O8: -510 | P8: -310 | Q8: -540 | R8: 10 | S8: 1310 | T8: 160
A9: Angus | B9: 1000 | C9: 510 | D9: 690 | E9: 390 | F9: 380 | G9: -20 | H9: 120 | I9: -30 | J9: 190 | K9: 170 | L9: 420 | M9: 460 | N9: 70 | O9: 130 | P9: 210 | Q9: 340 | R9: 210 | S9: 490 | T9: 240
A10: Argyll and Bute | B10: 200 | C10: -30 | D10: -240 | E10: -230 | F10: -210 | G10: -290 | H10: -150 | I10: -120 | J10: -310 | K10: -230 | L10: -410 | M10: -460 | N10: -280 | O10: -400 | P10: -560 | Q10: -540 | R10: -290 | S10: 350 | T10: -60
A11: City of Edinburgh | B11: -2860 | C11: -1550 | D11: -2610 | E11: -1950 | F11: -1980 | G11: -770 | H11: -360 | I11: -390 | J11: -280 | K11: -650 | L11: -1770 | M11: -1960 | N11: -1480 | O11: -2380 | P11: -2490 | Q11: -2830 | R11: -3090 | S11: -7260 | T11: -4140
A12: Clackmannanshire | B12: 340 | C12: 290 | D12: 140 | E12: 390 | F12: 290 | G12: 10 | H12: -110 | I12: -10 | J12: -230 | K12: -120 | L12: -60 | M12: 50 | N12: -110 | O12: 40 | P12: -60 | Q12: 50 | R12: 10 | S12: 210 | T12: 90
A13: Dumfries and Galloway | B13: -60 | C13: -120 | D13: -260 | E13: -60 | F13: 50 | G13: -80 | H13: -100 | I13: -90 | J13: -170 | K13: -190 | L13: -110 | M13: -100 | N13: -180 | O13: -250 | P13: -230 | Q13: -60 | R13: -70 | S13: 330 | T13: -190
A14: Dundee City | B14: -690 | C14: -350 | D14: -650 | E14: -530 | F14: -390 | G14: -100 | H14: -280 | I14: -10 | J14: -140 | K14: -310 | L14: -360 | M14: -500 | N14: -610 | O14: -90 | P14: -460 | Q14: -310 | R14: -590 | S14: -1240 | T14: -370
A15: East Ayrshire | B15: 280 | C15: -30 | D15: 170 | E15: 250 | F15: 360 | G15: 400 | H15: 70 | I15: 10 | J15: -90 | K15: 20 | L15: 0 | M15: -40 | N15: 60 | O15: -90 | P15: 200 | Q15: 280 | R15: 80 | S15: 650 | T15: 450
A16: East Dunbartonshire | B16: -160 | C16: -260 | D16: -130 | E16: -170 | F16: -100 | G16: -10 | H16: 160 | I16: 20 | J16: 430 | K16: 350 | L16: 1070 | M16: 650 | N16: 590 | O16: 690 | P16: 490 | Q16: 460 | R16: 580 | S16: 540 | T16: 200
A17: East Lothian | B17: 360 | C17: 480 | D17: 880 | E17: 1090 | F17: 990 | G17: 420 | H17: 350 | I17: 210 | J17: 490 | K17: 490 | L17: 580 | M17: 690 | N17: 500 | O17: 550 | P17: 870 | Q17: 960 | R17: 760 | S17: 1350 | T17: 850
A18: East Renfrewshire | B18: 190 | C18: 130 | D18: 70 | E18: 250 | F18: 160 | G18: 120 | H18: 380 | I18: 280 | J18: 460 | K18: 750 | L18: 940 | M18: 700 | N18: 730 | O18: 970 | P18: 630 | Q18: 350 | R18: 750 | S18: 690 | T18: 1030
A19: Falkirk | B19: 1050 | C19: 1160 | D19: 770 | E19: 580 | F19: 440 | G19: 430 | H19: 280 | I19: 610 | J19: 270 | K19: 400 | L19: 180 | M19: 430 | N19: 590 | O19: 690 | P19: 330 | Q19: 560 | R19: 240 | S19: 310 | T19: 80
A20: Fife | B20: 1300 | C20: 940 | D20: 640 | E20: 270 | F20: 730 | G20: 250 | H20: 530 | I20: 450 | J20: 200 | K20: -120 | L20: -90 | M20: -70 | N20: 120 | O20: 200 | P20: 450 | Q20: 1030 | R20: 770 | S20: 1310 | T20: 390
A21: Glasgow City | B21: -4550 | C21: -3300 | D21: -2650 | E21: -2760 | F21: -2170 | G21: -1520 | H21: -1860 | I21: -1230 | J21: -2140 | K21: -1880 | L21: -2670 | M21: -2510 | N21: -1820 | O21: -2000 | P21: -1620 | Q21: -3130 | R21: -2620 | S21: -6470 | T21: -4590
A22: Highland | B22: 20 | C22: 90 | D22: 130 | E22: 60 | F22: 430 | G22: 80 | H22: -70 | I22: -170 | J22: -90 | K22: -430 | L22: -410 | M22: -30 | N22: -40 | O22: -210 | P22: -60 | Q22: -230 | R22: -140 | S22: 1310 | T22: -40
A23: Inverclyde | B23: -300 | C23: -260 | D23: -310 | E23: -270 | F23: -200 | G23: -310 | H23: -170 | I23: -250 | J23: -190 | K23: -160 | L23: -320 | M23: -230 | N23: -140 | O23: -80 | P23: -200 | Q23: -30 | R23: -100 | S23: -20 | T23: 0
A24: Midlothian | B24: -240 | C24: -230 | D24: -220 | E24: 0 | F24: 330 | G24: 490 | H24: 250 | I24: 380 | J24: 530 | K24: 590 | L24: 930 | M24: 1060 | N24: 860 | O24: 1100 | P24: 1050 | Q24: 900 | R24: 610 | S24: 1140 | T24: 940
A25: Moray | B25: 190 | C25: -70 | D25: 10 | E25: -170 | F25: -60 | G25: 50 | H25: -100 | I25: 60 | J25: -110 | K25: 160 | L25: 180 | M25: 250 | N25: 200 | O25: -70 | P25: -40 | Q25: -130 | R25: -190 | S25: 80 | T25: -80
A26: Na h-Eileanan Siar | B26: -40 | C26: 40 | D26: -50 | E26: -50 | F26: -80 | G26: -30 | H26: 30 | I26: -30 | J26: -30 | K26: -70 | L26: -60 | M26: -50 | N26: -120 | O26: 0 | P26: -80 | Q26: -50 | R26: -40 | S26: 170 | T26: 80
A27: North Ayrshire | B27: 250 | C27: 210 | D27: 150 | E27: 350 | F27: 140 | G27: -170 | H27: -150 | I27: 20 | J27: -180 | K27: -200 | L27: -190 | M27: -100 | N27: -110 | O27: 100 | P27: -50 | Q27: 0 | R27: 90 | S27: 560 | T27: 400
A28: North Lanarkshire | B28: 410 | C28: 330 | D28: 340 | E28: 270 | F28: 220 | G28: 60 | H28: -250 | I28: -200 | J28: -150 | K28: -240 | L28: -180 | M28: -90 | N28: 550 | O28: 520 | P28: 480 | Q28: 970 | R28: 510 | S28: 560 | T28: 100
A29: Orkney Islands | B29: -50 | C29: -20 | D29: 80 | E29: -20 | F29: -50 | G29: -60 | H29: 20 | I29: 10 | J29: 40 | K29: 20 | L29: -40 | M29: -40 | N29: -20 | O29: 40 | P29: 30 | Q29: 10 | R29: 30 | S29: 0 | T29: -30
A30: Perth and Kinross | B30: 530 | C30: 380 | D30: 600 | E30: 470 | F30: 490 | G30: 370 | H30: 460 | I30: 340 | J30: 330 | K30: 240 | L30: 670 | M30: 440 | N30: 400 | O30: 260 | P30: 220 | Q30: 250 | R30: 510 | S30: 1560 | T30: 350
A31: Renfrewshire | B31: -310 | C31: -400 | D31: -210 | E31: -220 | F31: 150 | G31: 130 | H31: 130 | I31: 170 | J31: -270 | K31: -110 | L31: 360 | M31: 220 | N31: 910 | O31: 680 | P31: 1150 | Q31: 1020 | R31: 800 | S31: 810 | T31: 1030
A32: Scottish Borders | B32: 390 | C32: 330 | D32: 270 | E32: 550 | F32: 360 | G32: 160 | H32: 140 | I32: 130 | J32: -80 | K32: -10 | L32: 70 | M32: 90 | N32: 360 | O32: 340 | P32: 390 | Q32: 200 | R32: 220 | S32: 610 | T32: 170
A33: Shetland Islands | B33: -90 | C33: -100 | D33: -80 | E33: -100 | F33: -100 | G33: 10 | H33: -40 | I33: 10 | J33: -100 | K33: -90 | L33: -30 | M33: -100 | N33: -160 | O33: -120 | P33: -130 | Q33: -180 | R33: -60 | S33: 0 | T33: -120
A34: South Ayrshire | B34: 520 | C34: 180 | D34: 260 | E34: 290 | F34: 220 | G34: 130 | H34: 140 | I34: 230 | J34: 310 | K34: 280 | L34: 120 | M34: 170 | N34: 250 | O34: 440 | P34: 280 | Q34: 330 | R34: 270 | S34: 750 | T34: 680
A35: South Lanarkshire | B35: 2020 | C35: 1030 | D35: 1240 | E35: 1300 | F35: 700 | G35: 750 | H35: 910 | I35: 480 | J35: 680 | K35: 1020 | L35: 540 | M35: 1200 | N35: 770 | O35: 1280 | P35: 1310 | Q35: 1420 | R35: 1200 | S35: 2250 | T35: 1980
A36: Stirling | B36: -400 | C36: 400 | D36: 220 | E36: -360 | F36: -330 | G36: -150 | H36: 310 | I36: -110 | J36: 280 | K36: 130 | L36: 60 | M36: 390 | N36: 210 | O36: 20 | P36: 0 | Q36: -400 | R36: -160 | S36: -460 | T36: 240
A37: West Dunbartonshire | B37: -200 | C37: -150 | D37: 30 | E37: -110 | F37: -150 | G37: 10 | H37: -260 | I37: -190 | J37: -250 | K37: -420 | L37: -120 | M37: 80 | N37: 120 | O37: -170 | P37: -150 | Q37: -130 | R37: -130 | S37: -80 | T37: -10
A38: West Lothian | B38: 1330 | C38: 580 | D38: 520 | E38: 500 | F38: 170 | G38: -40 | H38: -170 | I38: -320 | J38: -100 | K38: -350 | L38: 220 | M38: 640 | N38: 510 | O38: 540 | P38: 230 | Q38: 330 | R38: 630 | S38: 1050 | T38: 970
A40: NHS Board Areas | B40: 2003-04 | C40: 2004-05 | D40: 2005-06 | E40: 2006-07 | F40: 2007-08 | G40: 2008-09 | H40: 2009-10 | I40: 2010-11 | J40: 2011-12 | K40: 2012-13 | L40: 2013-14 | M40: 2014-15 | N40: 2015-16 | O40: 2016-17 | P40: 2017-18 | Q40: 2018-19 | R40: 2019-20 | S40: 2020-21 | T40: 2021-22
A41: Scotland | B41: [z] | C41: [z] | D41: [z] | E41: [z] | F41: [z] | G41: [z] | H41: [z] | I41: [z] | J41: [z] | K41: [z] | L41: [z] | M41: [z] | N41: [z] | O41: [z] | P41: [z] | Q41: [z] | R41: [z] | S41: [z] | T41: [z]
A42: Ayrshire and Arran | B42: 1050 | C42: 360 | D42: 580 | E42: 890 | F42: 720 | G42: 350 | H42: 60 | I42: 260 | J42: 50 | K42: 100 | L42: -70 | M42: 20 | N42: 200 | O42: 450 | P42: 430 | Q42: 600 | R42: 440 | S42: 1970 | T42: 1530
A43: Borders | B43: 390 | C43: 330 | D43: 270 | E43: 550 | F43: 360 | G43: 160 | H43: 140 | I43: 130 | J43: -80 | K43: -10 | L43: 70 | M43: 90 | N43: 360 | O43: 340 | P43: 390 | Q43: 200 | R43: 220 | S43: 610 | T43: 170
A44: Dumfries and Galloway | B44: -60 | C44: -120 | D44: -260 | E44: -60 | F44: 50 | G44: -80 | H44: -100 | I44: -90 | J44: -170 | K44: -190 | L44: -110 | M44: -100 | N44: -180 | O44: -250 | P44: -230 | Q44: -60 | R44: -70 | S44: 330 | T44: -190
A45: Fife | B45: 1300 | C45: 940 | D45: 640 | E45: 260 | F45: 730 | G45: 250 | H45: 530 | I45: 440 | J45: 200 | K45: -120 | L45: -90 | M45: -70 | N45: 120 | O45: 200 | P45: 450 | Q45: 1030 | R45: 770 | S45: 1310 | T45: 390
A46: Forth Valley | B46: 990 | C46: 1850 | D46: 1140 | E46: 620 | F46: 400 | G46: 290 | H46: 490 | I46: 490 | J46: 320 | K46: 410 | L46: 180 | M46: 870 | N46: 690 | O46: 760 | P46: 270 | Q46: 210 | R46: 80 | S46: 60 | T46: 410
A47: Grampian | B47: -250 | C47: -290 | D47: 210 | E47: -190 | F47: -840 | G47: -240 | H47: -330 | I47: -200 | J47: 600 | K47: 1120 | L47: 690 | M47: -1000 | N47: -2540 | O47: -2770 | P47: -2200 | Q47: -1570 | R47: -990 | S47: -1450 | T47: -730
A48: Greater Glasgow and Clyde | B48: -4570 | C48: -3800 | D48: -2550 | E48: -2560 | F48: -2080 | G48: -1100 | H48: -1030 | I48: -1050 | J48: -1960 | K48: -1460 | L48: -750 | M48: -1080 | N48: 380 | O48: 80 | P48: 290 | Q48: -1470 | R48: -700 | S48: -4550 | T48: -2350
A49: Highland | B49: 230 | C49: 60 | D49: -110 | E49: -170 | F49: 220 | G49: -210 | H49: -220 | I49: -290 | J49: -400 | K49: -660 | L49: -820 | M49: -480 | N49: -320 | O49: -610 | P49: -620 | Q49: -770 | R49: -420 | S49: 1670 | T49: -100
A50: Lanarkshire | B50: 1670 | C50: 920 | D50: 930 | E50: 850 | F50: 680 | G50: 320 | H50: 80 | I50: 130 | J50: 530 | K50: 780 | L50: 360 | M50: 1110 | N50: 1320 | O50: 1800 | P50: 1780 | Q50: 2390 | R50: 1710 | S50: 2810 | T50: 2080
A51: Lothian | B51: -1410 | C51: -710 | D51: -1440 | E51: -360 | F51: -490 | G51: 110 | H51: 80 | I51: -130 | J51: 630 | K51: 80 | L51: -50 | M51: 420 | N51: 390 | O51: -200 | P51: -340 | Q51: -640 | R51: -1100 | S51: -3720 | T51: -1370
A52: Orkney | B52: -50 | C52: -20 | D52: 80 | E52: -20 | F52: -50 | G52: -60 | H52: 20 | I52: 10 | J52: 40 | K52: 20 | L52: -40 | M52: -40 | N52: -20 | O52: 40 | P52: 30 | Q52: 10 | R52: 30 | S52: 0 | T52: -30
A53: Shetland | B53: -90 | C53: -100 | D53: -80 | E53: -100 | F53: -100 | G53: 10 | H53: -40 | I53: 10 | J53: -100 | K53: -90 | L53: -30 | M53: -100 | N53: -160 | O53: -120 | P53: -130 | Q53: -180 | R53: -60 | S53: 0 | T53: -120
A54: Tayside | B54: 840 | C54: 540 | D54: 640 | E54: 340 | F54: 480 | G54: 240 | H54: 300 | I54: 300 | J54: 380 | K54: 100 | L54: 730 | M54: 390 | N54: -140 | O54: 290 | P54: -30 | Q54: 280 | R54: 130 | S54: 800 | T54: 220
A55: Western Isles | B55: -40 | C55: 40 | D55: -50 | E55: -50 | F55: -80 | G55: -30 | H55: 30 | I55: -30 | J55: -30 | K55: -70 | L55: -60 | M55: -50 | N55: -120 | O55: 0 | P55: -80 | Q55: -50 | R55: -40 | S55: 170 | T55: 80

Sheet Within Scotland in-migration
A1: Within Scotland in-migration
A2: This worksheet contains two tables, presented next to each other vertically with one blank row between the tables.
A3: See notes [2], [3], [5], [6] which are explained in the Notes worksheet. Some shorthand is used in this table, [z] = Not applicable.
A4: Return to front page
A5: Council Area | B5: 2003-04 | C5: 2004-05 | D5: 2005-06 | E5: 2006-07 | F5: 2007-08 | G5: 2008-09 | H5: 2009-10 | I5: 2010-11 | J5: 2011-12 | K5: 2012-13 | L5: 2013-14 | M5: 2014-15 | N5: 2015-16 | O5: 2016-17 | P5: 2017-18 | Q5: 2018-19 | R5: 2019-20 | S5: 2020-21 | T5: 2021-22
A6: Scotland | B6: [z] | C6: [z] | D6: [z] | E6: [z] | F6: [z] | G6: [z] | H6: [z] | I6: [z] | J6: [z] | K6: [z] | L6: [z] | M6: [z] | N6: [z] | O6: [z] | P6: [z] | Q6: [z] | R6: [z] | S6: [z] | T6: [z]
A7: Aberdeen City | B7: 5540 | C7: 5830 | D7: 5800 | E7: 5630 | F7: 5630 | G7: 5740 | H7: 5520 | I7: 5960 | J7: 6730 | K7: 7410 | L7: 7000 | M7: 6830 | N7: 6180 | O7: 6100 | P7: 5930 | Q7: 6280 | R7: 5420 | S7: 5810 | T7: 6010
A8: Aberdeenshire | B8: 5990 | C8: 5920 | D8: 6060 | E8: 5940 | F8: 6010 | G8: 5530 | H8: 5790 | I8: 5790 | J8: 6260 | K8: 6690 | L8: 7260 | M8: 6860 | N8: 5940 | O8: 5320 | P8: 5300 | Q8: 5160 | R8: 4500 | S8: 6750 | T8: 5480
A9: Angus | B9: 3410 | C9: 3080 | D9: 3070 | E9: 2930 | F9: 2930 | G9: 2290 | H9: 2490 | I9: 2570 | J9: 2810 | K9: 2960 | L9: 3120 | M9: 3270 | N9: 2940 | O9: 2900 | P9: 3050 | Q9: 3060 | R9: 2520 | S9: 3390 | T9: 2770
A10: Argyll and Bute | B10: 2620 | C10: 2440 | D10: 2250 | E10: 2200 | F10: 2210 | G10: 2090 | H10: 2140 | I10: 2050 | J10: 2210 | K10: 2270 | L10: 2180 | M10: 2260 | N10: 2390 | O10: 2390 | P10: 2190 | Q10: 2150 | R10: 1870 | S10: 3100 | T10: 2260
A11: City of Edinburgh | B11: 10810 | C11: 11330 | D11: 10340 | E11: 11200 | F11: 10740 | G11: 10800 | H11: 10790 | I11: 10810 | J11: 11530 | K11: 11500 | L11: 11520 | M11: 12230 | N11: 12290 | O11: 11680 | P11: 11530 | Q11: 11700 | R11: 9640 | S11: 11690 | T11: 10380
A12: Clackmannanshire | B12: 1450 | C12: 1430 | D12: 1330 | E12: 1570 | F12: 1510 | G12: 1190 | H12: 1120 | I12: 1130 | J12: 1030 | K12: 1190 | L12: 1260 | M12: 1430 | N12: 1310 | O12: 1410 | P12: 1310 | Q12: 1360 | R12: 1160 | S12: 1660 | T12: 1320
A13: Dumfries and Galloway | B13: 1780 | C13: 1840 | D13: 1660 | E13: 1730 | F13: 1790 | G13: 1710 | H13: 1620 | I13: 1650 | J13: 1720 | K13: 1730 | L13: 1730 | M13: 1730 | N13: 1680 | O13: 1640 | P13: 1640 | Q13: 1710 | R13: 1380 | S13: 2170 | T13: 1500
A14: Dundee City | B14: 3520 | C14: 3570 | D14: 3500 | E14: 3600 | F14: 3780 | G14: 3600 | H14: 3510 | I14: 3770 | J14: 3900 | K14: 4130 | L14: 4160 | M14: 4280 | N14: 4170 | O14: 4470 | P14: 4240 | Q14: 4450 | R14: 3660 | S14: 4080 | T14: 3880
A15: East Ayrshire | B15: 2570 | C15: 2390 | D15: 2470 | E15: 2720 | F15: 2690 | G15: 2540 | H15: 2270 | I15: 2300 | J15: 2250 | K15: 2410 | L15: 2430 | M15: 2590 | N15: 2670 | O15: 2590 | P15: 2690 | Q15: 2720 | R15: 2100 | S15: 3050 | T15: 2590
A16: East Dunbartonshire | B16: 2940 | C16: 2890 | D16: 2810 | E16: 2870 | F16: 2830 | G16: 2590 | H16: 2530 | I16: 2460 | J16: 2930 | K16: 3010 | L16: 3480 | M16: 3650 | N16: 3540 | O16: 3490 | P16: 3370 | Q16: 3270 | R16: 2880 | S16: 3740 | T16: 2960
A17: East Lothian | B17: 2700 | C17: 2730 | D17: 2920 | E17: 3190 | F17: 3250 | G17: 2510 | H17: 2570 | I17: 2530 | J17: 2790 | K17: 2800 | L17: 3040 | M17: 3250 | N17: 2870 | O17: 3040 | P17: 3380 | Q17: 3340 | R17: 3100 | S17: 4160 | T17: 3230
A18: East Renfrewshire | B18: 2870 | C18: 2780 | D18: 2770 | E18: 2850 | F18: 2830 | G18: 2440 | H18: 2540 | I18: 2580 | J18: 2860 | K18: 3190 | L18: 3290 | M18: 3440 | N18: 3480 | O18: 3510 | P18: 3300 | Q18: 3060 | R18: 2980 | S18: 3650 | T18: 3390
A19: Falkirk | B19: 3260 | C19: 3510 | D19: 3150 | E19: 3160 | F19: 3000 | G19: 2660 | H19: 2500 | I19: 2990 | J19: 2820 | K19: 3200 | L19: 3060 | M19: 3380 | N19: 3470 | O19: 3570 | P19: 3310 | Q19: 3550 | R19: 2780 | S19: 3450 | T19: 2950
A20: Fife | B20: 6970 | C20: 6840 | D20: 6380 | E20: 6100 | F20: 6400 | G20: 5680 | H20: 5750 | I20: 5850 | J20: 5930 | K20: 5730 | L20: 6040 | M20: 6390 | N20: 6480 | O20: 6440 | P20: 6560 | Q20: 6970 | R20: 5660 | S20: 7940 | T20: 6120
A21: Glasgow City | B21: 13110 | C21: 13790 | D21: 13810 | E21: 13910 | F21: 14580 | G21: 13900 | H21: 13340 | I21: 13660 | J21: 14210 | K21: 15040 | L21: 14990 | M21: 16250 | N21: 16770 | O21: 16670 | P21: 16920 | Q21: 16230 | R21: 13920 | S21: 17200 | T21: 14590
A22: Highland | B22: 4290 | C22: 4470 | D22: 4450 | E22: 4160 | F22: 4530 | G22: 4130 | H22: 3910 | I22: 3970 | J22: 3990 | K22: 3970 | L22: 4060 | M22: 4330 | N22: 4180 | O22: 4020 | P22: 4090 | Q22: 3990 | R22: 3300 | S22: 5560 | T22: 3980
A23: Inverclyde | B23: 1040 | C23: 1070 | D23: 980 | E23: 1040 | F23: 1050 | G23: 850 | H23: 900 | I23: 870 | J23: 920 | K23: 970 | L23: 930 | M23: 1010 | N23: 1090 | O23: 1120 | P23: 1040 | Q23: 1160 | R23: 910 | S23: 1310 | T23: 1090
A24: Midlothian | B24: 2060 | C24: 1980 | D24: 1950 | E24: 2330 | F24: 2340 | G24: 2190 | H24: 2020 | I24: 2160 | J24: 2310 | K24: 2490 | L24: 2840 | M24: 3100 | N24: 3020 | O24: 3190 | P24: 3190 | Q24: 3140 | R24: 2660 | S24: 3620 | T24: 3140
A25: Moray | B25: 1860 | C25: 1710 | D25: 1710 | E25: 1550 | F25: 1640 | G25: 1680 | H25: 1550 | I25: 1710 | J25: 1640 | K25: 1840 | L25: 1920 | M25: 2080 | N25: 2060 | O25: 1810 | P25: 1740 | Q25: 1710 | R25: 1430 | S25: 2020 | T25: 1760
A26: Na h-Eileanan Siar | B26: 650 | C26: 680 | D26: 610 | E26: 590 | F26: 620 | G26: 600 | H26: 600 | I26: 580 | J26: 550 | K26: 500 | L26: 560 | M26: 600 | N26: 530 | O26: 590 | P26: 540 | Q26: 550 | R26: 490 | S26: 720 | T26: 610
A27: North Ayrshire | B27: 3120 | C27: 3070 | D27: 2880 | E27: 3110 | F27: 2900 | G27: 2490 | H27: 2430 | I27: 2460 | J27: 2610 | K27: 2580 | L27: 2580 | M27: 2830 | N27: 2750 | O27: 2810 | P27: 2660 | Q27: 2680 | R27: 2330 | S27: 3300 | T27: 2690
A28: North Lanarkshire | B28: 5830 | C28: 5710 | D28: 5670 | E28: 5790 | F28: 5580 | G28: 5040 | H28: 4440 | I28: 4740 | J28: 5040 | K28: 5090 | L28: 5180 | M28: 5770 | N28: 6160 | O28: 6010 | P28: 6160 | Q28: 6710 | R28: 5160 | S28: 6910 | T28: 5630
A29: Orkney Islands | B29: 380 | C29: 380 | D29: 420 | E29: 360 | F29: 370 | G29: 350 | H29: 430 | I29: 350 | J29: 410 | K29: 430 | L29: 380 | M29: 390 | N29: 420 | O29: 410 | P29: 400 | Q29: 430 | R29: 340 | S29: 460 | T29: 350
A30: Perth and Kinross | B30: 4050 | C30: 3810 | D30: 3940 | E30: 3750 | F30: 3910 | G30: 3450 | H30: 3470 | I30: 3450 | J30: 3710 | K30: 3940 | L30: 4190 | M30: 4200 | N30: 4240 | O30: 4140 | P30: 4110 | Q30: 4230 | R30: 3580 | S30: 5270 | T30: 4050
A31: Renfrewshire | B31: 3270 | C31: 3430 | D31: 3270 | E31: 3490 | F31: 3540 | G31: 3300 | H31: 3270 | I31: 3330 | J31: 3210 | K31: 3370 | L31: 3890 | M31: 4100 | N31: 4510 | O31: 4400 | P31: 4820 | Q31: 4700 | R31: 3930 | S31: 5180 | T31: 4750
A32: Scottish Borders | B32: 2610 | C32: 2570 | D32: 2350 | E32: 2590 | F32: 2500 | G32: 2280 | H32: 2240 | I32: 2210 | J32: 2110 | K32: 2150 | L32: 2320 | M32: 2290 | N32: 2500 | O32: 2580 | P32: 2590 | Q32: 2370 | R32: 2030 | S32: 3010 | T32: 2240
A33: Shetland Islands | B33: 370 | C33: 380 | D33: 390 | E33: 370 | F33: 330 | G33: 380 | H33: 300 | I33: 380 | J33: 320 | K33: 350 | L33: 360 | M33: 390 | N33: 320 | O33: 290 | P33: 300 | Q33: 300 | R33: 300 | S33: 420 | T33: 300
A34: South Ayrshire | B34: 2710 | C34: 2530 | D34: 2440 | E34: 2600 | F34: 2510 | G34: 2330 | H34: 2230 | I34: 2310 | J34: 2530 | K34: 2650 | L34: 2490 | M34: 2690 | N34: 2690 | O34: 2820 | P34: 2740 | Q34: 2740 | R34: 2270 | S34: 3110 | T34: 2630
A35: South Lanarkshire | B35: 7380 | C35: 6610 | D35: 6780 | E35: 6810 | F35: 6530 | G35: 5990 | H35: 5870 | I35: 5670 | J35: 6340 | K35: 6600 | L35: 6440 | M35: 7460 | N35: 7080 | O35: 7320 | P35: 7480 | Q35: 7810 | R35: 6420 | S35: 8990 | T35: 7790
A36: Stirling | B36: 2690 | C36: 3660 | D36: 3240 | E36: 2980 | F36: 2880 | G36: 2800 | H36: 3070 | I36: 2840 | J36: 3210 | K36: 3310 | L36: 3330 | M36: 3810 | N36: 3600 | O36: 3440 | P36: 3460 | Q36: 3270 | R36: 2830 | S36: 3490 | T36: 3330
A37: West Dunbartonshire | B37: 1810 | C37: 1730 | D37: 1830 | E37: 1780 | F37: 1870 | G37: 1730 | H37: 1520 | I37: 1530 | J37: 1660 | K37: 1650 | L37: 1740 | M37: 2060 | N37: 1990 | O37: 1900 | P37: 1980 | Q37: 1920 | R37: 1600 | S37: 1970 | T37: 1770
A38: West Lothian | B38: 4690 | C38: 4220 | D38: 3990 | E38: 4310 | F38: 3910 | G38: 3270 | H38: 3080 | I38: 3070 | J38: 3310 | K38: 3250 | L38: 3750 | M38: 4320 | N38: 4100 | O38: 4030 | P38: 3880 | Q38: 4200 | R38: 3740 | S38: 5080 | T38: 4250
A40: NHS Board Areas | B40: 2003-04 | C40: 2004-05 | D40: 2005-06 | E40: 2006-07 | F40: 2007-08 | G40: 2008-09 | H40: 2009-10 | I40: 2010-11 | J40: 2011-12 | K40: 2012-13 | L40: 2013-14 | M40: 2014-15 | N40: 2015-16 | O40: 2016-17 | P40: 2017-18 | Q40: 2018-19 | R40: 2019-20 | S40: 2020-21 | T40: 2021-22
A41: Scotland | B41: [z] | C41: [z] | D41: [z] | E41: [z] | F41: [z] | G41: [z] | H41: [z] | I41: [z] | J41: [z] | K41: [z] | L41: [z] | M41: [z] | N41: [z] | O41: [z] | P41: [z] | Q41: [z] | R41: [z] | S41: [z] | T41: [z]
A42: Ayrshire and Arran | B42: 5730 | C42: 5400 | D42: 5180 | E42: 5610 | F42: 5340 | G42: 4890 | H42: 4570 | I42: 4710 | J42: 4860 | K42: 5110 | L42: 5050 | M42: 5300 | N42: 5370 | O42: 5470 | P42: 5450 | Q42: 5460 | R42: 4390 | S42: 6810 | T42: 5570
A43: Borders | B43: 2610 | C43: 2570 | D43: 2350 | E43: 2590 | F43: 2500 | G43: 2280 | H43: 2240 | I43: 2210 | J43: 2110 | K43: 2150 | L43: 2320 | M43: 2290 | N43: 2500 | O43: 2580 | P43: 2590 | Q43: 2370 | R43: 2030 | S43: 3010 | T43: 2240
A44: Dumfries and Galloway | B44: 1780 | C44: 1840 | D44: 1660 | E44: 1730 | F44: 1790 | G44: 1710 | H44: 1620 | I44: 1650 | J44: 1720 | K44: 1730 | L44: 1730 | M44: 1730 | N44: 1680 | O44: 1640 | P44: 1640 | Q44: 1710 | R44: 1380 | S44: 2170 | T44: 1500
A45: Fife | B45: 6970 | C45: 6840 | D45: 6380 | E45: 6100 | F45: 6400 | G45: 5670 | H45: 5750 | I45: 5850 | J45: 5930 | K45: 5730 | L45: 6040 | M45: 6390 | N45: 6480 | O45: 6440 | P45: 6560 | Q45: 6970 | R45: 5660 | S45: 7940 | T45: 6120
A46: Forth Valley | B46: 5810 | C46: 7030 | D46: 6140 | E46: 5980 | F46: 5790 | G46: 5280 | H46: 5280 | I46: 5510 | J46: 5610 | K46: 6160 | L46: 6050 | M46: 6920 | N46: 6780 | O46: 6750 | P46: 6420 | Q46: 6630 | R46: 5330 | S46: 6960 | T46: 6140
A47: Grampian | B47: 6500 | C47: 6790 | D47: 6850 | E47: 6460 | F47: 6320 | G47: 6680 | H47: 6280 | I47: 6790 | J47: 7670 | K47: 8280 | L47: 8370 | M47: 7740 | N47: 6940 | O47: 6660 | P47: 6480 | Q47: 6690 | R47: 5800 | S47: 7600 | T47: 6820
A48: Greater Glasgow and Clyde | B48: 17450 | C48: 18100 | D48: 18310 | E48: 18610 | F48: 19390 | G48: 18510 | H48: 18200 | I48: 18150 | J48: 14860 | K48: 15600 | L48: 16350 | M48: 17270 | N48: 18360 | O48: 18150 | P48: 18320 | Q48: 17630 | R48: 15130 | S48: 18810 | T48: 16300
A49: Highland | B49: 6560 | C49: 6610 | D49: 6360 | E49: 6040 | F49: 6390 | G49: 5920 | H49: 5730 | I49: 5710 | J49: 5880 | K49: 5890 | L49: 5890 | M49: 6260 | N49: 6250 | O49: 6090 | P49: 5970 | Q49: 5800 | R49: 4930 | S49: 8190 | T49: 5920
A50: Lanarkshire | B50: 8730 | C50: 8230 | D50: 8290 | E50: 8180 | F50: 8130 | G50: 7400 | H50: 6920 | I50: 7130 | J50: 9170 | K50: 9340 | L50: 9340 | M50: 10640 | N50: 10720 | O50: 10900 | P50: 11230 | Q50: 11950 | R50: 9470 | S50: 13080 | T50: 10980
A51: Lothian | B51: 11520 | C51: 12130 | D51: 11040 | E51: 11920 | F51: 11720 | G51: 11610 | H51: 11430 | I51: 11300 | J51: 12540 | K51: 12320 | L51: 12790 | M51: 13660 | N51: 13640 | O51: 13190 | P51: 13100 | Q51: 13370 | R51: 10850 | S51: 14010 | T51: 12090
A52: Orkney | B52: 380 | C52: 380 | D52: 420 | E52: 360 | F52: 370 | G52: 350 | H52: 430 | I52: 350 | J52: 410 | K52: 430 | L52: 380 | M52: 390 | N52: 420 | O52: 410 | P52: 400 | Q52: 430 | R52: 340 | S52: 460 | T52: 350
A53: Shetland | B53: 370 | C53: 380 | D53: 390 | E53: 370 | F53: 330 | G53: 380 | H53: 300 | I53: 380 | J53: 320 | K53: 350 | L53: 360 | M53: 390 | N53: 320 | O53: 290 | P53: 300 | Q53: 300 | R53: 300 | S53: 420 | T53: 300
A54: Tayside | B54: 7120 | C54: 7080 | D54: 6940 | E54: 6690 | F54: 6920 | G54: 6490 | H54: 6490 | I54: 6720 | J54: 7130 | K54: 7490 | L54: 8060 | M54: 8220 | N54: 8050 | O54: 8170 | P54: 7930 | Q54: 8290 | R54: 6710 | S54: 9250 | T54: 7690
A55: Western Isles | B55: 650 | C55: 680 | D55: 610 | E55: 590 | F55: 620 | G55: 600 | H55: 600 | I55: 580 | J55: 550 | K55: 500 | L55: 560 | M55: 600 | N55: 530 | O55: 590 | P55: 540 | Q55: 550 | R55: 490 | S55: 720 | T55: 610

Sheet Within Scotland out-migration
A1: Within Scotland out-migration
A2: This worksheet contains two tables, presented next to each other vertically with one blank row between the tables.
A3: See notes [2], [3], [5], [6] which are explained in the Notes worksheet. Some shorthand is used in this table, [z] = Not applicable.
A4: Return to front page
A5: Council Area | B5: 2003-04 | C5: 2004-05 | D5: 2005-06 | E5: 2006-07 | F5: 2007-08 | G5: 2008-09 | H5: 2009-10 | I5: 2010-11 | J5: 2011-12 | K5: 2012-13 | L5: 2013-14 | M5: 2014-15 | N5: 2015-16 | O5: 2016-17 | P5: 2017-18 | Q5: 2018-19 | R5: 2019-20 | S5: 2020-21 | T5: 2021-22
A6: Scotland | B6: [z] | C6: [z] | D6: [z] | E6: [z] | F6: [z] | G6: [z] | H6: [z] | I6: [z] | J6: [z] | K6: [z] | L6: [z] | M6: [z] | N6: [z] | O6: [z] | P6: [z] | Q6: [z] | R6: [z] | S6: [z] | T6: [z]
A7: Aberdeen City | B7: 7220 | C7: 6910 | D7: 6930 | E7: 6750 | F7: 7290 | G7: 6720 | H7: 6830 | I7: 7010 | J7: 7140 | K7: 7650 | L7: 8170 | M7: 9050 | N7: 8840 | O7: 8290 | P7: 7780 | Q7: 7190 | R7: 6220 | S7: 8640 | T7: 6820
A8: Aberdeenshire | B8: 4750 | C8: 5050 | D8: 4720 | E8: 4840 | F8: 5140 | G8: 4840 | H8: 4710 | I8: 5000 | J8: 5140 | K8: 5500 | L8: 5590 | M8: 5890 | N8: 6000 | O8: 5830 | P8: 5610 | Q8: 5700 | R8: 4490 | S8: 5440 | T8: 5330
A9: Angus | B9: 2420 | C9: 2570 | D9: 2380 | E9: 2540 | F9: 2550 | G9: 2310 | H9: 2370 | I9: 2600 | J9: 2610 | K9: 2790 | L9: 2700 | M9: 2810 | N9: 2880 | O9: 2770 | P9: 2840 | Q9: 2730 | R9: 2310 | S9: 2910 | T9: 2530
A10: Argyll and Bute | B10: 2420 | C10: 2470 | D10: 2490 | E10: 2430 | F10: 2420 | G10: 2380 | H10: 2290 | I10: 2170 | J10: 2520 | K10: 2500 | L10: 2600 | M10: 2720 | N10: 2670 | O10: 2790 | P10: 2750 | Q10: 2690 | R10: 2160 | S10: 2740 | T10: 2310
A11: City of Edinburgh | B11: 13670 | C11: 12880 | D11: 12950 | E11: 13160 | F11: 12720 | G11: 11570 | H11: 11160 | I11: 11210 | J11: 11800 | K11: 12150 | L11: 13290 | M11: 14200 | N11: 13770 | O11: 14060 | P11: 14020 | Q11: 14530 | R11: 12730 | S11: 18950 | T11: 14520
A12: Clackmannanshire | B12: 1110 | C12: 1130 | D12: 1180 | E12: 1180 | F12: 1220 | G12: 1190 | H12: 1230 | I12: 1140 | J12: 1260 | K12: 1300 | L12: 1310 | M12: 1380 | N12: 1420 | O12: 1370 | P12: 1370 | Q12: 1310 | R12: 1150 | S12: 1450 | T12: 1230
A13: Dumfries and Galloway | B13: 1840 | C13: 1950 | D13: 1920 | E13: 1780 | F13: 1740 | G13: 1800 | H13: 1720 | I13: 1740 | J13: 1890 | K13: 1930 | L13: 1840 | M13: 1840 | N13: 1860 | O13: 1890 | P13: 1870 | Q13: 1770 | R13: 1440 | S13: 1850 | T13: 1690
A14: Dundee City | B14: 4210 | C14: 3920 | D14: 4150 | E14: 4130 | F14: 4170 | G14: 3700 | H14: 3790 | I14: 3780 | J14: 4050 | K14: 4440 | L14: 4520 | M14: 4780 | N14: 4780 | O14: 4560 | P14: 4700 | Q14: 4750 | R14: 4250 | S14: 5330 | T14: 4250
A15: East Ayrshire | B15: 2290 | C15: 2420 | D15: 2290 | E15: 2480 | F15: 2330 | G15: 2140 | H15: 2190 | I15: 2290 | J15: 2340 | K15: 2390 | L15: 2430 | M15: 2630 | N15: 2610 | O15: 2680 | P15: 2480 | Q15: 2440 | R15: 2030 | S15: 2390 | T15: 2140
A16: East Dunbartonshire | B16: 3090 | C16: 3150 | D16: 2940 | E16: 3040 | F16: 2930 | G16: 2610 | H16: 2360 | I16: 2440 | J16: 2510 | K16: 2660 | L16: 2410 | M16: 3000 | N16: 2950 | O16: 2800 | P16: 2880 | Q16: 2820 | R16: 2300 | S16: 3200 | T16: 2760
A17: East Lothian | B17: 2340 | C17: 2250 | D17: 2040 | E17: 2090 | F17: 2260 | G17: 2090 | H17: 2220 | I17: 2320 | J17: 2300 | K17: 2310 | L17: 2460 | M17: 2560 | N17: 2370 | O17: 2500 | P17: 2510 | Q17: 2380 | R17: 2340 | S17: 2810 | T17: 2380
A18: East Renfrewshire | B18: 2670 | C18: 2650 | D18: 2690 | E18: 2600 | F18: 2670 | G18: 2320 | H18: 2160 | I18: 2300 | J18: 2400 | K18: 2440 | L18: 2350 | M18: 2740 | N18: 2760 | O18: 2540 | P18: 2670 | Q18: 2710 | R18: 2230 | S18: 2960 | T18: 2370
A19: Falkirk | B19: 2210 | C19: 2350 | D19: 2380 | E19: 2580 | F19: 2560 | G19: 2230 | H19: 2220 | I19: 2380 | J19: 2550 | K19: 2800 | L19: 2890 | M19: 2950 | N19: 2880 | O19: 2880 | P19: 2980 | Q19: 2990 | R19: 2550 | S19: 3140 | T19: 2870
A20: Fife | B20: 5660 | C20: 5900 | D20: 5740 | E20: 5840 | F20: 5670 | G20: 5420 | H20: 5220 | I20: 5400 | J20: 5730 | K20: 5850 | L20: 6120 | M20: 6460 | N20: 6360 | O20: 6250 | P20: 6120 | Q20: 5940 | R20: 4890 | S20: 6630 | T20: 5730
A21: Glasgow City | B21: 17660 | C21: 17090 | D21: 16460 | E21: 16670 | F21: 16750 | G21: 15420 | H21: 15200 | I21: 14890 | J21: 16350 | K21: 16920 | L21: 17660 | M21: 18760 | N21: 18590 | O21: 18680 | P21: 18540 | Q21: 19360 | R21: 16540 | S21: 23670 | T21: 19180
A22: Highland | B22: 4270 | C22: 4380 | D22: 4310 | E22: 4100 | F22: 4100 | G22: 4060 | H22: 3980 | I22: 4130 | J22: 4080 | K22: 4400 | L22: 4470 | M22: 4360 | N22: 4220 | O22: 4230 | P22: 4160 | Q22: 4220 | R22: 3440 | S22: 4250 | T22: 4020
A23: Inverclyde | B23: 1340 | C23: 1330 | D23: 1290 | E23: 1310 | F23: 1250 | G23: 1160 | H23: 1060 | I23: 1120 | J23: 1110 | K23: 1120 | L23: 1260 | M23: 1240 | N23: 1230 | O23: 1210 | P23: 1240 | Q23: 1190 | R23: 1010 | S23: 1330 | T23: 1090
A24: Midlothian | B24: 2290 | C24: 2210 | D24: 2160 | E24: 2330 | F24: 2010 | G24: 1710 | H24: 1770 | I24: 1780 | J24: 1780 | K24: 1900 | L24: 1910 | M24: 2040 | N24: 2160 | O24: 2090 | P24: 2140 | Q24: 2240 | R24: 2050 | S24: 2480 | T24: 2200
A25: Moray | B25: 1670 | C25: 1780 | D25: 1700 | E25: 1720 | F25: 1710 | G25: 1630 | H25: 1650 | I25: 1650 | J25: 1750 | K25: 1680 | L25: 1730 | M25: 1830 | N25: 1860 | O25: 1870 | P25: 1780 | Q25: 1840 | R25: 1630 | S25: 1950 | T25: 1830
A26: Na h-Eileanan Siar | B26: 690 | C26: 640 | D26: 660 | E26: 640 | F26: 700 | G26: 630 | H26: 570 | I26: 610 | J26: 580 | K26: 570 | L26: 620 | M26: 650 | N26: 650 | O26: 590 | P26: 620 | Q26: 600 | R26: 530 | S26: 550 | T26: 520
A27: North Ayrshire | B27: 2870 | C27: 2860 | D27: 2730 | E27: 2760 | F27: 2760 | G27: 2660 | H27: 2580 | I27: 2440 | J27: 2780 | K27: 2780 | L27: 2770 | M27: 2930 | N27: 2860 | O27: 2710 | P27: 2710 | Q27: 2690 | R27: 2250 | S27: 2740 | T27: 2290
A28: North Lanarkshire | B28: 5420 | C28: 5370 | D28: 5320 | E28: 5520 | F28: 5360 | G28: 4980 | H28: 4690 | I28: 4940 | J28: 5190 | K28: 5330 | L28: 5360 | M28: 5870 | N28: 5610 | O28: 5490 | P28: 5690 | Q28: 5740 | R28: 4650 | S28: 6340 | T28: 5530
A29: Orkney Islands | B29: 430 | C29: 400 | D29: 340 | E29: 380 | F29: 420 | G29: 420 | H29: 420 | I29: 340 | J29: 370 | K29: 410 | L29: 420 | M29: 420 | N29: 440 | O29: 370 | P29: 370 | Q29: 420 | R29: 320 | S29: 450 | T29: 380
A30: Perth and Kinross | B30: 3520 | C30: 3430 | D30: 3340 | E30: 3280 | F30: 3410 | G30: 3080 | H30: 3010 | I30: 3110 | J30: 3390 | K30: 3690 | L30: 3520 | M30: 3760 | N30: 3840 | O30: 3890 | P30: 3890 | Q30: 3980 | R30: 3070 | S30: 3710 | T30: 3710
A31: Renfrewshire | B31: 3580 | C31: 3830 | D31: 3480 | E31: 3710 | F31: 3380 | G31: 3180 | H31: 3140 | I31: 3160 | J31: 3480 | K31: 3470 | L31: 3530 | M31: 3880 | N31: 3600 | O31: 3730 | P31: 3670 | Q31: 3680 | R31: 3130 | S31: 4370 | T31: 3720
A32: Scottish Borders | B32: 2220 | C32: 2250 | D32: 2080 | E32: 2040 | F32: 2140 | G32: 2120 | H32: 2090 | I32: 2070 | J32: 2190 | K32: 2160 | L32: 2250 | M32: 2200 | N32: 2140 | O32: 2250 | P32: 2200 | Q32: 2170 | R32: 1810 | S32: 2410 | T32: 2070
A33: Shetland Islands | B33: 450 | C33: 480 | D33: 480 | E33: 470 | F33: 430 | G33: 380 | H33: 340 | I33: 370 | J33: 430 | K33: 440 | L33: 390 | M33: 490 | N33: 470 | O33: 420 | P33: 440 | Q33: 480 | R33: 350 | S33: 420 | T33: 410
A34: South Ayrshire | B34: 2190 | C34: 2350 | D34: 2180 | E34: 2310 | F34: 2290 | G34: 2200 | H34: 2080 | I34: 2080 | J34: 2220 | K34: 2370 | L34: 2370 | M34: 2520 | N34: 2440 | O34: 2380 | P34: 2460 | Q34: 2410 | R34: 2000 | S34: 2360 | T34: 1950
A35: South Lanarkshire | B35: 5360 | C35: 5580 | D35: 5540 | E35: 5510 | F35: 5830 | G35: 5240 | H35: 4960 | I35: 5190 | J35: 5660 | K35: 5580 | L35: 5910 | M35: 6260 | N35: 6300 | O35: 6050 | P35: 6180 | Q35: 6390 | R35: 5210 | S35: 6750 | T35: 5810
A36: Stirling | B36: 3100 | C36: 3260 | D36: 3020 | E36: 3340 | F36: 3220 | G36: 2950 | H36: 2760 | I36: 2950 | J36: 2930 | K36: 3180 | L36: 3270 | M36: 3420 | N36: 3390 | O36: 3420 | P36: 3450 | Q36: 3680 | R36: 2990 | S36: 3950 | T36: 3090
A37: West Dunbartonshire | B37: 2010 | C37: 1880 | D37: 1810 | E37: 1890 | F37: 2020 | G37: 1710 | H37: 1780 | I37: 1720 | J37: 1910 | K37: 2070 | L37: 1860 | M37: 1980 | N37: 1870 | O37: 2070 | P37: 2130 | Q37: 2040 | R37: 1730 | S37: 2050 | T37: 1780
A38: West Lothian | B38: 3370 | C38: 3640 | D38: 3470 | E38: 3810 | F38: 3740 | G38: 3300 | H38: 3240 | I38: 3390 | J38: 3420 | K38: 3600 | L38: 3540 | M38: 3680 | N38: 3580 | O38: 3490 | P38: 3660 | Q38: 3860 | R38: 3110 | S38: 4030 | T38: 3280
A40: NHS Board Areas | B40: 2003-04 | C40: 2004-05 | D40: 2005-06 | E40: 2006-07 | F40: 2007-08 | G40: 2008-09 | H40: 2009-10 | I40: 2010-11 | J40: 2011-12 | K40: 2012-13 | L40: 2013-14 | M40: 2014-15 | N40: 2015-16 | O40: 2016-17 | P40: 2017-18 | Q40: 2018-19 | R40: 2019-20 | S40: 2020-21 | T40: 2021-22
A41: Scotland | B41: [z] | C41: [z] | D41: [z] | E41: [z] | F41: [z] | G41: [z] | H41: [z] | I41: [z] | J41: [z] | K41: [z] | L41: [z] | M41: [z] | N41: [z] | O41: [z] | P41: [z] | Q41: [z] | R41: [z] | S41: [z] | T41: [z]
A42: Ayrshire and Arran | B42: 4690 | C42: 5040 | D42: 4600 | E42: 4720 | F42: 4620 | G42: 4540 | H42: 4510 | I42: 4450 | J42: 4820 | K42: 5010 | L42: 5120 | M42: 5280 | N42: 5160 | O42: 5010 | P42: 5020 | Q42: 4860 | R42: 3950 | S42: 4850 | T42: 4050
A43: Borders | B43: 2220 | C43: 2250 | D43: 2080 | E43: 2040 | F43: 2140 | G43: 2120 | H43: 2090 | I43: 2070 | J43: 2190 | K43: 2160 | L43: 2250 | M43: 2200 | N43: 2140 | O43: 2250 | P43: 2200 | Q43: 2170 | R43: 1810 | S43: 2410 | T43: 2070
A44: Dumfries and Galloway | B44: 1840 | C44: 1950 | D44: 1920 | E44: 1780 | F44: 1740 | G44: 1800 | H44: 1720 | I44: 1740 | J44: 1890 | K44: 1930 | L44: 1840 | M44: 1840 | N44: 1860 | O44: 1890 | P44: 1870 | Q44: 1770 | R44: 1440 | S44: 1850 | T44: 1690
A45: Fife | B45: 5660 | C45: 5900 | D45: 5740 | E45: 5840 | F45: 5670 | G45: 5420 | H45: 5220 | I45: 5410 | J45: 5730 | K45: 5850 | L45: 6120 | M45: 6460 | N45: 6360 | O45: 6250 | P45: 6120 | Q45: 5940 | R45: 4890 | S45: 6630 | T45: 5730
A46: Forth Valley | B46: 4820 | C46: 5180 | D46: 5000 | E46: 5370 | F46: 5390 | G46: 4990 | H46: 4800 | I46: 5010 | J46: 5290 | K46: 5750 | L46: 5880 | M46: 6040 | N46: 6100 | O46: 5990 | P46: 6150 | Q46: 6430 | R46: 5240 | S46: 6900 | T46: 5730
A47: Grampian | B47: 6750 | C47: 7080 | D47: 6640 | E47: 6650 | F47: 7160 | G47: 6920 | H47: 6610 | I47: 6990 | J47: 7070 | K47: 7170 | L47: 7680 | M47: 8740 | N47: 9480 | O47: 9430 | P47: 8680 | Q47: 8260 | R47: 6790 | S47: 9050 | T47: 7550
A48: Greater Glasgow and Clyde | B48: 22010 | C48: 21900 | D48: 20860 | E48: 21170 | F48: 21470 | G48: 19620 | H48: 19230 | I48: 19200 | J48: 16820 | K48: 17060 | L48: 17090 | M48: 18350 | N48: 17970 | O48: 18070 | P48: 18030 | Q48: 19100 | R48: 15830 | S48: 23360 | T48: 18640
A49: Highland | B49: 6330 | C49: 6550 | D49: 6470 | E49: 6210 | F49: 6170 | G49: 6120 | H49: 5950 | I49: 6000 | J49: 6270 | K49: 6550 | L49: 6710 | M49: 6740 | N49: 6570 | O49: 6690 | P49: 6590 | Q49: 6570 | R49: 5350 | S49: 6520 | T49: 6010
A50: Lanarkshire | B50: 7070 | C50: 7310 | D50: 7360 | E50: 7340 | F50: 7450 | G50: 7080 | H50: 6840 | I50: 6990 | J50: 8640 | K50: 8570 | L50: 8980 | M50: 9540 | N50: 9390 | O50: 9100 | P50: 9450 | Q50: 9560 | R50: 7760 | S50: 10270 | T50: 8900
A51: Lothian | B51: 12930 | C51: 12840 | D51: 12470 | E51: 12270 | F51: 12200 | G51: 11500 | H51: 11350 | I51: 11420 | J51: 11910 | K51: 12240 | L51: 12840 | M51: 13240 | N51: 13260 | O51: 13390 | P51: 13440 | Q51: 14000 | R51: 11950 | S51: 17730 | T51: 13470
A52: Orkney | B52: 430 | C52: 400 | D52: 340 | E52: 380 | F52: 420 | G52: 420 | H52: 420 | I52: 340 | J52: 370 | K52: 410 | L52: 420 | M52: 420 | N52: 440 | O52: 370 | P52: 370 | Q52: 420 | R52: 320 | S52: 450 | T52: 380
A53: Shetland | B53: 450 | C53: 480 | D53: 480 | E53: 470 | F53: 430 | G53: 380 | H53: 340 | I53: 370 | J53: 430 | K53: 440 | L53: 390 | M53: 490 | N53: 470 | O53: 420 | P53: 440 | Q53: 480 | R53: 350 | S53: 420 | T53: 410
A54: Tayside | B54: 6280 | C54: 6540 | D54: 6300 | E54: 6350 | F54: 6440 | G54: 6240 | H54: 6190 | I54: 6420 | J54: 6750 | K54: 7380 | L54: 7330 | M54: 7830 | N54: 8190 | O54: 7880 | P54: 7960 | Q54: 8000 | R54: 6580 | S54: 8440 | T54: 7470
A55: Western Isles | B55: 690 | C55: 640 | D55: 660 | E55: 640 | F55: 700 | G55: 630 | H55: 570 | I55: 610 | J55: 580 | K55: 570 | L55: 620 | M55: 650 | N55: 650 | O55: 590 | P55: 620 | Q55: 600 | R55: 530 | S55: 550 | T55: 520

Sheet Rest of UK net migration
A1: Rest of UK net migration
A2: This worksheet contains two tables, presented next to each other vertically with one blank row between the tables.
A3: See notes [2], [3], [5], [6] which are explained in the Notes worksheet.
A4: Return to front page
A5: Council Area | B5: 2003-04 | C5: 2004-05 | D5: 2005-06 | E5: 2006-07 | F5: 2007-08 | G5: 2008-09 | H5: 2009-10 | I5: 2010-11 | J5: 2011-12 | K5: 2012-13 | L5: 2013-14 | M5: 2014-15 | N5: 2015-16 | O5: 2016-17 | P5: 2017-18 | Q5: 2018-19 | R5: 2019-20 | S5: 2020-21 | T5: 2021-22
A6: Scotland | B6: 15500 | C6: 12500 | D6: 8900 | E6: 8800 | F6: 11500 | G6: 4100 | H6: 3300 | I6: 2900 | J6: 3000 | K6: 7900 | L6: 9600 | M6: 8400 | N6: 8800 | O6: 10500 | P6: 10000 | Q6: 10000 | R6: 9000 | S6: 8900 | T6: 12500
A7: Aberdeen City | B7: -390 | C7: 50 | D7: 140 | E7: 320 | F7: 270 | G7: 280 | H7: 320 | I7: 0 | J7: 180 | K7: 630 | L7: 570 | M7: 30 | N7: -780 | O7: -630 | P7: -650 | Q7: -310 | R7: 0 | S7: -640 | T7: 0
A8: Aberdeenshire | B8: 1870 | C8: 1290 | D8: 1070 | E8: 750 | F8: 600 | G8: 220 | H8: -100 | I8: -130 | J8: 130 | K8: 410 | L8: 340 | M8: -130 | N8: -600 | O8: -460 | P8: -250 | Q8: -50 | R8: -40 | S8: 660 | T8: 440
A9: Angus | B9: 450 | C9: 440 | D9: 130 | E9: 160 | F9: 170 | G9: 30 | H9: 20 | I9: -90 | J9: 70 | K9: 100 | L9: 210 | M9: 180 | N9: -70 | O9: -10 | P9: 40 | Q9: 90 | R9: 160 | S9: 290 | T9: 220
A10: Argyll and Bute | B10: 830 | C10: 570 | D10: 550 | E10: 470 | F10: 400 | G10: 310 | H10: 350 | I10: 370 | J10: 290 | K10: 380 | L10: 410 | M10: 280 | N10: 480 | O10: 600 | P10: 610 | Q10: 560 | R10: 470 | S10: 900 | T10: 490
A11: City of Edinburgh | B11: 2050 | C11: 1650 | D11: 1920 | E11: 750 | F11: 1350 | G11: 360 | H11: 1130 | I11: 360 | J11: 300 | K11: 1660 | L11: 1580 | M11: 2120 | N11: 2350 | O11: 3030 | P11: 2810 | Q11: 2030 | R11: 1730 | S11: -310 | T11: 2720
A12: Clackmannanshire | B12: 260 | C12: 270 | D12: 140 | E12: 190 | F12: 120 | G12: 0 | H12: 30 | I12: -10 | J12: 50 | K12: 90 | L12: 10 | M12: 90 | N12: 60 | O12: 0 | P12: 50 | Q12: 60 | R12: 100 | S12: 50 | T12: 120
A13: Dumfries and Galloway | B13: 1490 | C13: 1390 | D13: 850 | E13: 740 | F13: 930 | G13: 560 | H13: 380 | I13: 450 | J13: 320 | K13: 520 | L13: 710 | M13: 510 | N13: 560 | O13: 680 | P13: 800 | Q13: 900 | R13: 730 | S13: 1240 | T13: 1050
A14: Dundee City | B14: -160 | C14: 200 | D14: -150 | E14: -270 | F14: 50 | G14: -10 | H14: 0 | I14: -140 | J14: 0 | K14: 210 | L14: -10 | M14: -10 | N14: -20 | O14: 230 | P14: 250 | Q14: 200 | R14: 120 | S14: -120 | T14: 280
A15: East Ayrshire | B15: 220 | C15: 150 | D15: 110 | E15: 150 | F15: 280 | G15: 120 | H15: 50 | I15: 80 | J15: 140 | K15: 120 | L15: 60 | M15: 160 | N15: 130 | O15: 160 | P15: 130 | Q15: 240 | R15: 160 | S15: 270 | T15: 290
A16: East Dunbartonshire | B16: -110 | C16: -180 | D16: -130 | E16: -130 | F16: 40 | G16: -40 | H16: -170 | I16: -50 | J16: -50 | K16: -70 | L16: -40 | M16: 90 | N16: 70 | O16: 70 | P16: 20 | Q16: -10 | R16: 50 | S16: -60 | T16: 60
A17: East Lothian | B17: 120 | C17: 10 | D17: 10 | E17: 280 | F17: 390 | G17: 70 | H17: 100 | I17: 70 | J17: 140 | K17: 90 | L17: 170 | M17: 170 | N17: 170 | O17: 120 | P17: 110 | Q17: 90 | R17: 220 | S17: 410 | T17: 90
A18: East Renfrewshire | B18: -150 | C18: -70 | D18: -160 | E18: -190 | F18: -130 | G18: -30 | H18: -50 | I18: 20 | J18: -170 | K18: -20 | L18: -10 | M18: -20 | N18: 40 | O18: 30 | P18: -30 | Q18: 0 | R18: 30 | S18: -100 | T18: -80
A19: Falkirk | B19: 390 | C19: 240 | D19: 100 | E19: 40 | F19: 110 | G19: 10 | H19: 20 | I19: 130 | J19: 50 | K19: 130 | L19: 290 | M19: 230 | N19: 200 | O19: 180 | P19: 80 | Q19: 130 | R19: 100 | S19: 150 | T19: 90
A20: Fife | B20: 960 | C20: 930 | D20: 650 | E20: 610 | F20: 510 | G20: 240 | H20: 20 | I20: 330 | J20: 70 | K20: 480 | L20: 630 | M20: 470 | N20: 440 | O20: 660 | P20: 530 | Q20: 500 | R20: 410 | S20: -280 | T20: 600
A21: Glasgow City | B21: 40 | C21: 250 | D21: -400 | E21: 330 | F21: 850 | G21: 60 | H21: -470 | I21: -460 | J21: -190 | K21: 140 | L21: 770 | M21: 1150 | N21: 1850 | O21: 1810 | P21: 1680 | Q21: 1410 | R21: 1000 | S21: 310 | T21: 1450
A22: Highland | B22: 2820 | C22: 2150 | D22: 1460 | E22: 1640 | F22: 1370 | G22: 730 | H22: 710 | I22: 640 | J22: 380 | K22: 760 | L22: 740 | M22: 810 | N22: 890 | O22: 930 | P22: 1000 | Q22: 1030 | R22: 860 | S22: 1780 | T22: 1060
A23: Inverclyde | B23: -120 | C23: 0 | D23: -40 | E23: -60 | F23: 50 | G23: -40 | H23: -90 | I23: -20 | J23: -40 | K23: 50 | L23: 60 | M23: 90 | N23: 50 | O23: 40 | P23: 80 | Q23: 60 | R23: 70 | S23: 130 | T23: 60
A24: Midlothian | B24: 0 | C24: -70 | D24: -40 | E24: 20 | F24: 90 | G24: -40 | H24: -60 | I24: 70 | J24: 20 | K24: 90 | L24: 170 | M24: -90 | N24: 70 | O24: 70 | P24: -10 | Q24: -40 | R24: 90 | S24: 160 | T24: 130
A25: Moray | B25: 870 | C25: 700 | D25: 430 | E25: 460 | F25: 400 | G25: 310 | H25: 40 | I25: -130 | J25: 440 | K25: 500 | L25: 280 | M25: 250 | N25: 280 | O25: 160 | P25: 210 | Q25: 380 | R25: 320 | S25: 630 | T25: 390
A26: Na h-Eileanan Siar | B26: 320 | C26: 250 | D26: 190 | E26: 100 | F26: 130 | G26: 120 | H26: 150 | I26: 50 | J26: 80 | K26: 110 | L26: 20 | M26: 40 | N26: 30 | O26: 150 | P26: 120 | Q26: 100 | R26: 60 | S26: 160 | T26: 160
A27: North Ayrshire | B27: 100 | C27: 80 | D27: 110 | E27: 120 | F27: 340 | G27: 150 | H27: 80 | I27: 80 | J27: 0 | K27: 160 | L27: 190 | M27: 180 | N27: 210 | O27: 280 | P27: 220 | Q27: 170 | R27: 210 | S27: 280 | T27: 150
A28: North Lanarkshire | B28: 150 | C28: 20 | D28: -10 | E28: 10 | F28: 220 | G28: 10 | H28: -150 | I28: 30 | J28: 40 | K28: 120 | L28: 300 | M28: 100 | N28: 170 | O28: 80 | P28: 220 | Q28: 240 | R28: 280 | S28: 240 | T28: 230
A29: Orkney Islands | B29: 320 | C29: 180 | D29: 150 | E29: 160 | F29: 170 | G29: 170 | H29: 150 | I29: 70 | J29: 100 | K29: 90 | L29: 120 | M29: 130 | N29: 240 | O29: 160 | P29: 230 | Q29: 140 | R29: 190 | S29: 210 | T29: 160
A30: Perth and Kinross | B30: 1030 | C30: 620 | D30: 450 | E30: 580 | F30: 530 | G30: 260 | H30: 240 | I30: 370 | J30: 260 | K30: 180 | L30: 350 | M30: 320 | N30: 240 | O30: 520 | P30: 290 | Q30: 470 | R30: 240 | S30: 610 | T30: 580
A31: Renfrewshire | B31: -140 | C31: -50 | D31: -220 | E31: -10 | F31: 110 | G31: -70 | H31: -30 | I31: -40 | J31: -20 | K31: 0 | L31: 20 | M31: 130 | N31: 190 | O31: 220 | P31: 10 | Q31: 180 | R31: 90 | S31: 100 | T31: 190
A32: Scottish Borders | B32: 1060 | C32: 570 | D32: 550 | E32: 690 | F32: 850 | G32: 250 | H32: 250 | I32: 290 | J32: 190 | K32: 490 | L32: 390 | M32: 390 | N32: 330 | O32: 470 | P32: 420 | Q32: 430 | R32: 320 | S32: 630 | T32: 280
A33: Shetland Islands | B33: 180 | C33: 190 | D33: 10 | E33: 130 | F33: 130 | G33: 120 | H33: 170 | I33: 10 | J33: 30 | K33: 30 | L33: 60 | M33: 30 | N33: 100 | O33: 10 | P33: 70 | Q33: 70 | R33: 70 | S33: 150 | T33: 120
A34: South Ayrshire | B34: 360 | C34: 290 | D34: 200 | E34: 220 | F34: 250 | G34: 150 | H34: 330 | I34: 290 | J34: 160 | K34: 200 | L34: 200 | M34: 190 | N34: 260 | O34: 310 | P34: 260 | Q34: 290 | R34: 270 | S34: 470 | T34: 340
A35: South Lanarkshire | B35: 480 | C35: 310 | D35: 300 | E35: 280 | F35: 220 | G35: -60 | H35: -50 | I35: 110 | J35: 50 | K35: 70 | L35: 300 | M35: -10 | N35: 190 | O35: 150 | P35: 210 | Q35: 410 | R35: 330 | S35: 380 | T35: 270
A36: Stirling | B36: 320 | C36: 110 | D36: 300 | E36: 270 | F36: 320 | G36: 100 | H36: 30 | I36: 150 | J36: 110 | K36: 140 | L36: 390 | M36: 340 | N36: 360 | O36: 290 | P36: 340 | Q36: 190 | R36: 240 | S36: 30 | T36: 370
A37: West Dunbartonshire | B37: -70 | C37: -100 | D37: -30 | E37: 10 | F37: 20 | G37: -40 | H37: -90 | I37: 10 | J37: 10 | K37: 50 | L37: 40 | M37: 40 | N37: 80 | O37: 100 | P37: 0 | Q37: 70 | R37: -50 | S37: -50 | T37: 0
A38: West Lothian | B38: -20 | C38: 90 | D38: 280 | E38: 70 | F38: 360 | G38: -160 | H38: -40 | I38: -10 | J38: -80 | K38: -40 | L38: 280 | M38: 90 | N38: 240 | O38: 70 | P38: 140 | Q38: 50 | R38: 190 | S38: 250 | T38: 260
A40: NHS Board Areas | B40: 2003-04 | C40: 2004-05 | D40: 2005-06 | E40: 2006-07 | F40: 2007-08 | G40: 2008-09 | H40: 2009-10 | I40: 2010-11 | J40: 2011-12 | K40: 2012-13 | L40: 2013-14 | M40: 2014-15 | N40: 2015-16 | O40: 2016-17 | P40: 2017-18 | Q40: 2018-19 | R40: 2019-20 | S40: 2020-21 | T40: 2021-22
A41: Scotland | B41: 15500 | C41: 12500 | D41: 8900 | E41: 8800 | F41: 11500 | G41: 4100 | H41: 3300 | I41: 2900 | J41: 3000 | K41: 7900 | L41: 9600 | M41: 8400 | N41: 8800 | O41: 10500 | P41: 10000 | Q41: 10000 | R41: 9000 | S41: 8900 | T41: 12500
A42: Ayrshire and Arran | B42: 680 | C42: 520 | D42: 420 | E42: 490 | F42: 880 | G42: 420 | H42: 460 | I42: 460 | J42: 300 | K42: 470 | L42: 450 | M42: 530 | N42: 600 | O42: 740 | P42: 610 | Q42: 690 | R42: 630 | S42: 1020 | T42: 780
A43: Borders | B43: 1060 | C43: 570 | D43: 550 | E43: 690 | F43: 850 | G43: 250 | H43: 250 | I43: 290 | J43: 190 | K43: 490 | L43: 390 | M43: 390 | N43: 330 | O43: 470 | P43: 420 | Q43: 430 | R43: 320 | S43: 630 | T43: 280
A44: Dumfries and Galloway | B44: 1490 | C44: 1390 | D44: 850 | E44: 740 | F44: 930 | G44: 560 | H44: 380 | I44: 450 | J44: 320 | K44: 520 | L44: 710 | M44: 510 | N44: 560 | O44: 680 | P44: 800 | Q44: 900 | R44: 730 | S44: 1240 | T44: 1050
A45: Fife | B45: 960 | C45: 930 | D45: 650 | E45: 610 | F45: 510 | G45: 240 | H45: 30 | I45: 330 | J45: 70 | K45: 480 | L45: 630 | M45: 470 | N45: 440 | O45: 660 | P45: 530 | Q45: 500 | R45: 410 | S45: -280 | T45: 600
A46: Forth Valley | B46: 980 | C46: 620 | D46: 540 | E46: 500 | F46: 550 | G46: 110 | H46: 80 | I46: 270 | J46: 210 | K46: 370 | L46: 690 | M46: 660 | N46: 620 | O46: 460 | P46: 470 | Q46: 370 | R46: 450 | S46: 240 | T46: 580
A47: Grampian | B47: 2340 | C47: 2030 | D47: 1640 | E47: 1520 | F47: 1270 | G47: 810 | H47: 260 | I47: -260 | J47: 750 | K47: 1540 | L47: 1190 | M47: 150 | N47: -1110 | O47: -930 | P47: -690 | Q47: 20 | R47: 270 | S47: 650 | T47: 830
A48: Greater Glasgow and Clyde | B48: -610 | C48: -130 | D48: -910 | E48: -70 | F48: 960 | G48: -210 | H48: -880 | I48: -560 | J48: -460 | K48: 160 | L48: 830 | M48: 1490 | N48: 2280 | O48: 2270 | P48: 1750 | Q48: 1710 | R48: 1180 | S48: 330 | T48: 1680
A49: Highland | B49: 3650 | C49: 2720 | D49: 2010 | E49: 2120 | F49: 1770 | G49: 1040 | H49: 1060 | I49: 1010 | J49: 670 | K49: 1140 | L49: 1150 | M49: 1100 | N49: 1360 | O49: 1530 | P49: 1620 | Q49: 1590 | R49: 1330 | S49: 2680 | T49: 1550
A50: Lanarkshire | B50: 670 | C50: 310 | D50: 230 | E50: 290 | F50: 420 | G50: 10 | H50: -210 | I50: 150 | J50: 90 | K50: 190 | L50: 600 | M50: 90 | N50: 360 | O50: 240 | P50: 440 | Q50: 650 | R50: 600 | S50: 620 | T50: 490
A51: Lothian | B51: 2150 | C51: 1670 | D51: 2170 | E51: 1110 | F51: 2190 | G51: 220 | H51: 1130 | I51: 500 | J51: 380 | K51: 1800 | L51: 2190 | M51: 2290 | N51: 2830 | O51: 3280 | P51: 3050 | Q51: 2140 | R51: 2220 | S51: 500 | T51: 3200
A52: Orkney | B52: 320 | C52: 180 | D52: 150 | E52: 160 | F52: 170 | G52: 170 | H52: 150 | I52: 70 | J52: 100 | K52: 90 | L52: 120 | M52: 130 | N52: 240 | O52: 160 | P52: 230 | Q52: 140 | R52: 190 | S52: 210 | T52: 160
A53: Shetland | B53: 180 | C53: 190 | D53: 10 | E53: 130 | F53: 130 | G53: 120 | H53: 170 | I53: 10 | J53: 30 | K53: 30 | L53: 60 | M53: 30 | N53: 100 | O53: 10 | P53: 70 | Q53: 70 | R53: 70 | S53: 150 | T53: 120
A54: Tayside | B54: 1320 | C54: 1260 | D54: 430 | E54: 460 | F54: 750 | G54: 280 | H54: 260 | I54: 140 | J54: 330 | K54: 490 | L54: 560 | M54: 490 | N54: 150 | O54: 750 | P54: 570 | Q54: 760 | R54: 520 | S54: 780 | T54: 1070
A55: Western Isles | B55: 320 | C55: 250 | D55: 190 | E55: 100 | F55: 130 | G55: 120 | H55: 150 | I55: 50 | J55: 80 | K55: 110 | L55: 20 | M55: 40 | N55: 30 | O55: 150 | P55: 120 | Q55: 100 | R55: 60 | S55: 160 | T55: 160

Sheet Rest of UK in-migration
A1: Rest of UK in-migration
A2: This worksheet contains two tables, presented next to each other vertically with one blank row between the tables.
A3: See notes [2], [3], [5], [6] which are explained in the Notes worksheet.
A4: Return to front page
A5: Council Area | B5: 2003-04 | C5: 2004-05 | D5: 2005-06 | E5: 2006-07 | F5: 2007-08 | G5: 2008-09 | H5: 2009-10 | I5: 2010-11 | J5: 2011-12 | K5: 2012-13 | L5: 2013-14 | M5: 2014-15 | N5: 2015-16 | O5: 2016-17 | P5: 2017-18 | Q5: 2018-19 | R5: 2019-20 | S5: 2020-21 | T5: 2021-22
A6: Scotland | B6: 61900 | C6: 57300 | D6: 53300 | E6: 51500 | F6: 53300 | G6: 45400 | H6: 45000 | I6: 43700 | J6: 45100 | K6: 47700 | L6: 49200 | M6: 47200 | N6: 46300 | O6: 47600 | P6: 47700 | Q6: 47500 | R6: 41800 | S6: 56200 | T6: 51200
A7: Aberdeen City | B7: 2220 | C7: 2250 | D7: 2490 | E7: 2530 | F7: 2590 | G7: 2560 | H7: 2600 | I7: 2340 | J7: 2650 | K7: 3050 | L7: 2940 | M7: 2590 | N7: 1970 | O7: 2110 | P7: 1780 | Q7: 2030 | R7: 1910 | S7: 2270 | T7: 2300
A8: Aberdeenshire | B8: 3510 | C8: 2990 | D8: 2670 | E8: 2480 | F8: 2250 | G8: 1790 | H8: 1640 | I8: 1610 | J8: 1780 | K8: 1910 | L8: 2110 | M8: 1640 | N8: 1240 | O8: 1160 | P8: 1230 | Q8: 1330 | R8: 1210 | S8: 2000 | T8: 1750
A9: Angus | B9: 1210 | C9: 1110 | D9: 930 | E9: 820 | F9: 830 | G9: 640 | H9: 620 | I9: 520 | J9: 730 | K9: 750 | L9: 780 | M9: 770 | N9: 620 | O9: 610 | P9: 620 | Q9: 640 | R9: 600 | S9: 840 | T9: 780
A10: Argyll and Bute | B10: 1980 | C10: 1850 | D10: 1720 | E10: 1570 | F10: 1460 | G10: 1340 | H10: 1330 | I10: 1330 | J10: 1340 | K10: 1360 | L10: 1380 | M10: 1290 | N10: 1370 | O10: 1500 | P10: 1640 | Q10: 1490 | R10: 1260 | S10: 1870 | T10: 1480
A11: City of Edinburgh | B11: 9900 | C11: 9530 | D11: 9480 | E11: 8320 | F11: 8940 | G11: 8060 | H11: 8650 | I11: 7870 | J11: 8080 | K11: 9070 | L11: 9310 | M11: 9430 | N11: 9630 | O11: 10070 | P11: 10200 | Q11: 9840 | R11: 9030 | S11: 10980 | T11: 10890
A12: Clackmannanshire | B12: 550 | C12: 550 | D12: 500 | E12: 450 | F12: 430 | G12: 310 | H12: 310 | I12: 290 | J12: 340 | K12: 360 | L12: 330 | M12: 330 | N12: 290 | O12: 280 | P12: 320 | Q12: 240 | R12: 270 | S12: 310 | T12: 350
A13: Dumfries and Galloway | B13: 3250 | C13: 3140 | D13: 2560 | E13: 2450 | F13: 2620 | G13: 2090 | H13: 1950 | I13: 1990 | J13: 1870 | K13: 2050 | L13: 2110 | M13: 1910 | N13: 1870 | O13: 2130 | P13: 2120 | Q13: 2240 | R13: 1890 | S13: 2800 | T13: 2410
A14: Dundee City | B14: 1500 | C14: 1550 | D14: 1350 | E14: 1230 | F14: 1450 | G14: 1340 | H14: 1430 | I14: 1370 | J14: 1470 | K14: 1520 | L14: 1310 | M14: 1350 | N14: 1260 | O14: 1370 | P14: 1370 | Q14: 1270 | R14: 1160 | S14: 1340 | T14: 1390
A15: East Ayrshire | B15: 960 | C15: 860 | D15: 820 | E15: 790 | F15: 880 | G15: 720 | H15: 660 | I15: 690 | J15: 700 | K15: 720 | L15: 680 | M15: 640 | N15: 600 | O15: 650 | P15: 610 | Q15: 690 | R15: 570 | S15: 780 | T15: 710
A16: East Dunbartonshire | B16: 500 | C16: 490 | D16: 470 | E16: 400 | F16: 460 | G16: 460 | H16: 390 | I16: 430 | J16: 450 | K16: 420 | L16: 450 | M16: 510 | N16: 480 | O16: 470 | P16: 500 | Q16: 460 | R16: 390 | S16: 550 | T16: 490
A17: East Lothian | B17: 770 | C17: 660 | D17: 670 | E17: 830 | F17: 1020 | G17: 690 | H17: 730 | I17: 690 | J17: 850 | K17: 740 | L17: 790 | M17: 750 | N17: 680 | O17: 770 | P17: 700 | Q17: 740 | R17: 710 | S17: 1090 | T17: 760
A18: East Renfrewshire | B18: 390 | C18: 460 | D18: 400 | E18: 290 | F18: 320 | G18: 350 | H18: 370 | I18: 430 | J18: 330 | K18: 440 | L18: 410 | M18: 400 | N18: 420 | O18: 440 | P18: 390 | Q18: 370 | R18: 370 | S18: 490 | T18: 390
A19: Falkirk | B19: 1070 | C19: 990 | D19: 820 | E19: 750 | F19: 750 | G19: 610 | H19: 610 | I19: 710 | J19: 690 | K19: 690 | L19: 830 | M19: 730 | N19: 700 | O19: 710 | P19: 650 | Q19: 640 | R19: 530 | S19: 700 | T19: 610
A20: Fife | B20: 3970 | C20: 3870 | D20: 3610 | E20: 3550 | F20: 3480 | G20: 3120 | H20: 2910 | I20: 3020 | J20: 2850 | K20: 3220 | L20: 3230 | M20: 2980 | N20: 2870 | O20: 3040 | P20: 3030 | Q20: 2950 | R20: 2640 | S20: 3310 | T20: 3000
A21: Glasgow City | B21: 6300 | C21: 6220 | D21: 5700 | E21: 6010 | F21: 6760 | G21: 6000 | H21: 5600 | I21: 5400 | J21: 5720 | K21: 5940 | L21: 6480 | M21: 6580 | N21: 6730 | O21: 6820 | P21: 7190 | Q21: 7080 | R21: 6200 | S21: 7770 | T21: 7550
A22: Highland | B22: 4760 | C22: 4200 | D22: 3610 | E22: 3700 | F22: 3530 | G22: 2620 | H22: 2640 | I22: 2520 | J22: 2400 | K22: 2490 | L22: 2470 | M22: 2470 | N22: 2540 | O22: 2550 | P22: 2630 | Q22: 2630 | R22: 2200 | S22: 3580 | T22: 2920
A23: Inverclyde | B23: 500 | C23: 460 | D23: 420 | E23: 360 | F23: 430 | G23: 300 | H23: 300 | I23: 290 | J23: 320 | K23: 350 | L23: 360 | M23: 370 | N23: 310 | O23: 300 | P23: 350 | Q23: 300 | R23: 270 | S23: 380 | T23: 350
A24: Midlothian | B24: 420 | C24: 410 | D24: 410 | E24: 410 | F24: 450 | G24: 410 | H24: 400 | I24: 380 | J24: 410 | K24: 460 | L24: 550 | M24: 370 | N24: 410 | O24: 420 | P24: 410 | Q24: 400 | R24: 420 | S24: 620 | T24: 550
A25: Moray | B25: 1960 | C25: 1720 | D25: 1620 | E25: 1390 | F25: 1340 | G25: 1100 | H25: 1080 | I25: 920 | J25: 1370 | K25: 1420 | L25: 1260 | M25: 1230 | N25: 1180 | O25: 1150 | P25: 1120 | Q25: 1170 | R25: 1010 | S25: 1480 | T25: 1240
A26: Na h-Eileanan Siar | B26: 540 | C26: 460 | D26: 390 | E26: 350 | F26: 330 | G26: 290 | H26: 300 | I26: 270 | J26: 270 | K26: 330 | L26: 230 | M26: 220 | N26: 230 | O26: 340 | P26: 270 | Q26: 250 | R26: 190 | S26: 340 | T26: 320
A27: North Ayrshire | B27: 1100 | C27: 1010 | D27: 1030 | E27: 970 | F27: 1030 | G27: 830 | H27: 810 | I27: 850 | J27: 800 | K27: 800 | L27: 850 | M27: 760 | N27: 810 | O27: 820 | P27: 760 | Q27: 750 | R27: 660 | S27: 850 | T27: 710
A28: North Lanarkshire | B28: 1640 | C28: 1450 | D28: 1330 | E28: 1270 | F28: 1350 | G28: 1190 | H28: 1010 | I28: 1170 | J28: 1150 | K28: 1120 | L28: 1250 | M28: 1170 | N28: 1170 | O28: 1070 | P28: 1170 | Q28: 1110 | R28: 930 | S28: 1180 | T28: 1130
A29: Orkney Islands | B29: 470 | C29: 370 | D29: 310 | E29: 320 | F29: 330 | G29: 310 | H29: 310 | I29: 260 | J29: 280 | K29: 280 | L29: 320 | M29: 270 | N29: 390 | O29: 330 | P29: 380 | Q29: 320 | R29: 310 | S29: 420 | T29: 360
A30: Perth and Kinross | B30: 2220 | C30: 1940 | D30: 1630 | E30: 1730 | F30: 1600 | G30: 1370 | H30: 1380 | I30: 1380 | J30: 1360 | K30: 1220 | L30: 1420 | M30: 1350 | N30: 1150 | O30: 1380 | P30: 1210 | Q30: 1380 | R30: 1030 | S30: 1790 | T30: 1530
A31: Renfrewshire | B31: 920 | C31: 900 | D31: 750 | E31: 850 | F31: 840 | G31: 720 | H31: 760 | I31: 720 | J31: 700 | K31: 770 | L31: 720 | M31: 800 | N31: 850 | O31: 840 | P31: 710 | Q31: 780 | R31: 680 | S31: 940 | T31: 810
A32: Scottish Borders | B32: 2440 | C32: 1830 | D32: 1830 | E32: 1920 | F32: 2120 | G32: 1510 | H32: 1510 | I32: 1510 | J32: 1500 | K32: 1570 | L32: 1600 | M32: 1580 | N32: 1580 | O32: 1600 | P32: 1690 | Q32: 1610 | R32: 1310 | S32: 1960 | T32: 1530
A33: Shetland Islands | B33: 390 | C33: 370 | D33: 270 | E33: 340 | F33: 330 | G33: 280 | H33: 360 | I33: 230 | J33: 250 | K33: 240 | L33: 270 | M33: 220 | N33: 270 | O33: 190 | P33: 220 | Q33: 220 | R33: 220 | S33: 330 | T33: 270
A34: South Ayrshire | B34: 1180 | C34: 1130 | D34: 980 | E34: 980 | F34: 1000 | G34: 900 | H34: 960 | I34: 870 | J34: 830 | K34: 840 | L34: 800 | M34: 820 | N34: 840 | O34: 830 | P34: 760 | Q34: 850 | R34: 690 | S34: 1030 | T34: 800
A35: South Lanarkshire | B35: 2230 | C35: 1880 | D35: 1760 | E35: 1740 | F35: 1550 | G35: 1350 | H35: 1350 | I35: 1400 | J35: 1440 | K35: 1340 | L35: 1500 | M35: 1260 | N35: 1450 | O35: 1400 | P35: 1380 | Q35: 1500 | R35: 1260 | S35: 1670 | T35: 1460
A36: Stirling | B36: 1370 | C36: 1060 | D36: 1170 | E36: 1160 | F36: 1180 | G36: 990 | H36: 870 | I36: 960 | J36: 990 | K36: 970 | L36: 1170 | M36: 1100 | N36: 1120 | O36: 1060 | P36: 1110 | Q36: 1030 | R36: 920 | S36: 1130 | T36: 1140
A37: West Dunbartonshire | B37: 470 | C37: 430 | D37: 420 | E37: 450 | F37: 400 | G37: 350 | H37: 350 | I37: 390 | J37: 380 | K37: 420 | L37: 360 | M37: 380 | N37: 370 | O37: 360 | P37: 320 | Q37: 370 | R37: 240 | S37: 350 | T37: 290
A38: West Lothian | B38: 1190 | C38: 1200 | D38: 1240 | E38: 1150 | F38: 1300 | G38: 840 | H38: 830 | I38: 870 | J38: 850 | K38: 840 | L38: 1010 | M38: 900 | N38: 910 | O38: 810 | P38: 840 | Q38: 780 | R38: 760 | S38: 1050 | T38: 930
A40: NHS Board Areas | B40: 2003-04 | C40: 2004-05 | D40: 2005-06 | E40: 2006-07 | F40: 2007-08 | G40: 2008-09 | H40: 2009-10 | I40: 2010-11 | J40: 2011-12 | K40: 2012-13 | L40: 2013-14 | M40: 2014-15 | N40: 2015-16 | O40: 2016-17 | P40: 2017-18 | Q40: 2018-19 | R40: 2019-20 | S40: 2020-21 | T40: 2021-22
A41: Scotland | B41: 61900 | C41: 57300 | D41: 53300 | E41: 51500 | F41: 53300 | G41: 45400 | H41: 45000 | I41: 43700 | J41: 45100 | K41: 47700 | L41: 49200 | M41: 47200 | N41: 46300 | O41: 47600 | P41: 47700 | Q41: 47500 | R41: 41800 | S41: 56200 | T41: 51200
A42: Ayrshire and Arran | B42: 3240 | C42: 2990 | D42: 2830 | E42: 2740 | F42: 2910 | G42: 2450 | H42: 2430 | I42: 2400 | J42: 2320 | K42: 2350 | L42: 2330 | M42: 2220 | N42: 2250 | O42: 2300 | P42: 2130 | Q42: 2290 | R42: 1920 | S42: 2660 | T42: 2210
A43: Borders | B43: 2440 | C43: 1830 | D43: 1830 | E43: 1920 | F43: 2120 | G43: 1510 | H43: 1510 | I43: 1510 | J43: 1500 | K43: 1570 | L43: 1600 | M43: 1580 | N43: 1580 | O43: 1600 | P43: 1690 | Q43: 1610 | R43: 1310 | S43: 1960 | T43: 1530
A44: Dumfries and Galloway | B44: 3250 | C44: 3140 | D44: 2560 | E44: 2450 | F44: 2620 | G44: 2090 | H44: 1950 | I44: 1990 | J44: 1870 | K44: 2050 | L44: 2110 | M44: 1910 | N44: 1870 | O44: 2130 | P44: 2120 | Q44: 2240 | R44: 1890 | S44: 2800 | T44: 2410
A45: Fife | B45: 3970 | C45: 3870 | D45: 3610 | E45: 3550 | F45: 3470 | G45: 3120 | H45: 2910 | I45: 3020 | J45: 2850 | K45: 3220 | L45: 3230 | M45: 2980 | N45: 2870 | O45: 3040 | P45: 3030 | Q45: 2950 | R45: 2640 | S45: 3310 | T45: 3000
A46: Forth Valley | B46: 2990 | C46: 2600 | D46: 2490 | E46: 2350 | F46: 2370 | G46: 1910 | H46: 1790 | I46: 1960 | J46: 2010 | K46: 2030 | L46: 2330 | M46: 2150 | N46: 2110 | O46: 2040 | P46: 2080 | Q46: 1910 | R46: 1720 | S46: 2140 | T46: 2100
A47: Grampian | B47: 7680 | C47: 6960 | D47: 6790 | E47: 6400 | F47: 6170 | G47: 5450 | H47: 5320 | I47: 4870 | J47: 5800 | K47: 6380 | L47: 6300 | M47: 5460 | N47: 4400 | O47: 4420 | P47: 4130 | Q47: 4530 | R47: 4130 | S47: 5750 | T47: 5290
A48: Greater Glasgow and Clyde | B48: 9400 | C48: 9270 | D48: 8470 | E48: 8680 | F48: 9490 | G48: 8430 | H48: 8070 | I48: 7970 | J48: 7900 | K48: 8340 | L48: 8760 | M48: 9030 | N48: 9150 | O48: 9230 | P48: 9450 | Q48: 9360 | R48: 8140 | S48: 10480 | T48: 9880
A49: Highland | B49: 6740 | C49: 6050 | D49: 5330 | E49: 5260 | F49: 4990 | G49: 3960 | H49: 3970 | I49: 3850 | J49: 3730 | K49: 3840 | L49: 3840 | M49: 3770 | N49: 3910 | O49: 4060 | P49: 4270 | Q49: 4120 | R49: 3460 | S49: 5450 | T49: 4400
A50: Lanarkshire | B50: 3550 | C50: 3020 | D50: 2770 | E50: 2690 | F50: 2630 | G50: 2280 | H50: 2060 | I50: 2260 | J50: 2580 | K50: 2460 | L50: 2750 | M50: 2430 | N50: 2620 | O50: 2470 | P50: 2550 | Q50: 2610 | R50: 2190 | S50: 2850 | T50: 2590
A51: Lothian | B51: 12280 | C51: 11800 | D51: 11800 | E51: 10710 | F51: 11700 | G51: 9990 | H51: 10600 | I51: 9820 | J51: 10190 | K51: 11110 | L51: 11660 | M51: 11450 | N51: 11630 | O51: 12080 | P51: 12150 | Q51: 11760 | R51: 10920 | S51: 13740 | T51: 13130
A52: Orkney | B52: 470 | C52: 370 | D52: 310 | E52: 320 | F52: 330 | G52: 310 | H52: 310 | I52: 260 | J52: 280 | K52: 280 | L52: 320 | M52: 270 | N52: 390 | O52: 330 | P52: 380 | Q52: 320 | R52: 310 | S52: 420 | T52: 360
A53: Shetland | B53: 390 | C53: 370 | D53: 270 | E53: 340 | F53: 330 | G53: 280 | H53: 360 | I53: 230 | J53: 250 | K53: 240 | L53: 270 | M53: 220 | N53: 270 | O53: 190 | P53: 220 | Q53: 220 | R53: 220 | S53: 330 | T53: 270
A54: Tayside | B54: 4930 | C54: 4610 | D54: 3910 | E54: 3790 | F54: 3880 | G54: 3350 | H54: 3430 | I54: 3280 | J54: 3550 | K54: 3500 | L54: 3510 | M54: 3470 | N54: 3040 | O54: 3360 | P54: 3200 | Q54: 3290 | R54: 2790 | S54: 3970 | T54: 3700
A55: Western Isles | B55: 540 | C55: 460 | D55: 390 | E55: 350 | F55: 330 | G55: 290 | H55: 300 | I55: 270 | J55: 270 | K55: 330 | L55: 230 | M55: 220 | N55: 230 | O55: 340 | P55: 270 | Q55: 250 | R55: 190 | S55: 340 | T55: 320

Sheet Rest of UK out-migration
A1: Rest of UK out-migration
A2: This worksheet contains two tables, presented next to each other vertically with one blank row between the tables.
A3: See notes [2], [3], [5], [6] which are explained in the Notes worksheet.
A4: Return to front page
A5: Council Area | B5: 2003-04 | C5: 2004-05 | D5: 2005-06 | E5: 2006-07 | F5: 2007-08 | G5: 2008-09 | H5: 2009-10 | I5: 2010-11 | J5: 2011-12 | K5: 2012-13 | L5: 2013-14 | M5: 2014-15 | N5: 2015-16 | O5: 2016-17 | P5: 2017-18 | Q5: 2018-19 | R5: 2019-20 | S5: 2020-21 | T5: 2021-22
A6: Scotland | B6: 46400 | C6: 44800 | D6: 44400 | E6: 42700 | F6: 41800 | G6: 41300 | H6: 41700 | I6: 40800 | J6: 42100 | K6: 39800 | L6: 39700 | M6: 38800 | N6: 37500 | O6: 37100 | P6: 37700 | Q6: 37400 | R6: 32800 | S6: 47300 | T6: 38600
A7: Aberdeen City | B7: 2600 | C7: 2210 | D7: 2350 | E7: 2210 | F7: 2310 | G7: 2280 | H7: 2280 | I7: 2340 | J7: 2470 | K7: 2420 | L7: 2370 | M7: 2570 | N7: 2750 | O7: 2740 | P7: 2430 | Q7: 2340 | R7: 1910 | S7: 2910 | T7: 2300
A8: Aberdeenshire | B8: 1640 | C8: 1700 | D8: 1600 | E8: 1730 | F8: 1650 | G8: 1570 | H8: 1740 | I8: 1740 | J8: 1660 | K8: 1500 | L8: 1770 | M8: 1760 | N8: 1850 | O8: 1620 | P8: 1480 | Q8: 1380 | R8: 1250 | S8: 1340 | T8: 1310
A9: Angus | B9: 760 | C9: 670 | D9: 800 | E9: 670 | F9: 670 | G9: 620 | H9: 600 | I9: 610 | J9: 650 | K9: 650 | L9: 570 | M9: 590 | N9: 690 | O9: 610 | P9: 590 | Q9: 550 | R9: 440 | S9: 560 | T9: 560
A10: Argyll and Bute | B10: 1150 | C10: 1280 | D10: 1170 | E10: 1100 | F10: 1060 | G10: 1030 | H10: 980 | I10: 960 | J10: 1040 | K10: 980 | L10: 960 | M10: 1010 | N10: 890 | O10: 910 | P10: 1030 | Q10: 930 | R10: 790 | S10: 970 | T10: 990
A11: City of Edinburgh | B11: 7850 | C11: 7880 | D11: 7560 | E11: 7560 | F11: 7590 | G11: 7700 | H11: 7520 | I11: 7510 | J11: 7780 | K11: 7400 | L11: 7730 | M11: 7310 | N11: 7280 | O11: 7040 | P11: 7390 | Q11: 7810 | R11: 7300 | S11: 11300 | T11: 8170
A12: Clackmannanshire | B12: 290 | C12: 280 | D12: 360 | E12: 260 | F12: 320 | G12: 310 | H12: 280 | I12: 300 | J12: 290 | K12: 270 | L12: 330 | M12: 240 | N12: 230 | O12: 280 | P12: 260 | Q12: 180 | R12: 160 | S12: 260 | T12: 230
A13: Dumfries and Galloway | B13: 1760 | C13: 1750 | D13: 1710 | E13: 1720 | F13: 1690 | G13: 1530 | H13: 1570 | I13: 1540 | J13: 1550 | K13: 1520 | L13: 1400 | M13: 1410 | N13: 1310 | O13: 1440 | P13: 1330 | Q13: 1340 | R13: 1160 | S13: 1560 | T13: 1350
A14: Dundee City | B14: 1660 | C14: 1350 | D14: 1500 | E14: 1500 | F14: 1400 | G14: 1350 | H14: 1430 | I14: 1510 | J14: 1470 | K14: 1320 | L14: 1320 | M14: 1360 | N14: 1280 | O14: 1140 | P14: 1120 | Q14: 1080 | R14: 1040 | S14: 1460 | T14: 1110
A15: East Ayrshire | B15: 750 | C15: 710 | D15: 710 | E15: 640 | F15: 600 | G15: 590 | H15: 610 | I15: 610 | J15: 560 | K15: 600 | L15: 620 | M15: 490 | N15: 480 | O15: 490 | P15: 480 | Q15: 450 | R15: 410 | S15: 520 | T15: 430
A16: East Dunbartonshire | B16: 610 | C16: 670 | D16: 600 | E16: 530 | F16: 420 | G16: 490 | H16: 560 | I16: 490 | J16: 500 | K16: 490 | L16: 490 | M16: 410 | N16: 400 | O16: 400 | P16: 480 | Q16: 470 | R16: 340 | S16: 610 | T16: 430
A17: East Lothian | B17: 650 | C17: 650 | D17: 660 | E17: 560 | F17: 630 | G17: 620 | H17: 630 | I17: 630 | J17: 710 | K17: 650 | L17: 630 | M17: 580 | N17: 510 | O17: 660 | P17: 590 | Q17: 650 | R17: 490 | S17: 680 | T17: 670
A18: East Renfrewshire | B18: 540 | C18: 530 | D18: 560 | E18: 490 | F18: 450 | G18: 380 | H18: 420 | I18: 410 | J18: 510 | K18: 460 | L18: 420 | M18: 420 | N18: 370 | O18: 410 | P18: 420 | Q18: 370 | R18: 340 | S18: 590 | T18: 470
A19: Falkirk | B19: 680 | C19: 750 | D19: 720 | E19: 710 | F19: 640 | G19: 600 | H19: 590 | I19: 570 | J19: 640 | K19: 560 | L19: 540 | M19: 500 | N19: 500 | O19: 530 | P19: 570 | Q19: 520 | R19: 430 | S19: 550 | T19: 520
A20: Fife | B20: 3010 | C20: 2940 | D20: 2960 | E20: 2930 | F20: 2970 | G20: 2880 | H20: 2880 | I20: 2700 | J20: 2790 | K20: 2740 | L20: 2600 | M20: 2510 | N20: 2430 | O20: 2390 | P20: 2500 | Q20: 2460 | R20: 2240 | S20: 3580 | T20: 2400
A21: Glasgow City | B21: 6270 | C21: 5970 | D21: 6100 | E21: 5690 | F21: 5910 | G21: 5940 | H21: 6070 | I21: 5860 | J21: 5910 | K21: 5800 | L21: 5710 | M21: 5420 | N21: 4890 | O21: 5010 | P21: 5510 | Q21: 5670 | R21: 5200 | S21: 7460 | T21: 6100
A22: Highland | B22: 1940 | C22: 2050 | D22: 2150 | E22: 2050 | F22: 2160 | G22: 1890 | H22: 1930 | I22: 1880 | J22: 2020 | K22: 1720 | L22: 1730 | M22: 1660 | N22: 1650 | O22: 1620 | P22: 1630 | Q22: 1590 | R22: 1340 | S22: 1800 | T22: 1860
A23: Inverclyde | B23: 620 | C23: 460 | D23: 460 | E23: 430 | F23: 370 | G23: 340 | H23: 390 | I23: 310 | J23: 360 | K23: 300 | L23: 300 | M23: 280 | N23: 260 | O23: 250 | P23: 270 | Q23: 240 | R23: 200 | S23: 250 | T23: 290
A24: Midlothian | B24: 430 | C24: 490 | D24: 460 | E24: 390 | F24: 360 | G24: 450 | H24: 460 | I24: 310 | J24: 390 | K24: 370 | L24: 390 | M24: 460 | N24: 340 | O24: 360 | P24: 410 | Q24: 440 | R24: 330 | S24: 460 | T24: 420
A25: Moray | B25: 1090 | C25: 1030 | D25: 1200 | E25: 930 | F25: 930 | G25: 790 | H25: 1040 | I25: 1050 | J25: 930 | K25: 920 | L25: 980 | M25: 980 | N25: 910 | O25: 990 | P25: 910 | Q25: 790 | R25: 690 | S25: 850 | T25: 850
A26: Na h-Eileanan Siar | B26: 220 | C26: 220 | D26: 200 | E26: 250 | F26: 200 | G26: 180 | H26: 160 | I26: 220 | J26: 190 | K26: 220 | L26: 210 | M26: 180 | N26: 200 | O26: 190 | P26: 150 | Q26: 140 | R26: 130 | S26: 170 | T26: 160
A27: North Ayrshire | B27: 1000 | C27: 930 | D27: 920 | E27: 850 | F27: 690 | G27: 690 | H27: 730 | I27: 760 | J27: 790 | K27: 640 | L27: 660 | M27: 580 | N27: 590 | O27: 550 | P27: 550 | Q27: 590 | R27: 460 | S27: 570 | T27: 560
A28: North Lanarkshire | B28: 1490 | C28: 1430 | D28: 1340 | E28: 1260 | F28: 1130 | G28: 1170 | H28: 1160 | I28: 1140 | J28: 1110 | K28: 1000 | L28: 960 | M28: 1060 | N28: 1000 | O28: 990 | P28: 940 | Q28: 870 | R28: 660 | S28: 940 | T28: 900
A29: Orkney Islands | B29: 150 | C29: 200 | D29: 160 | E29: 170 | F29: 160 | G29: 140 | H29: 170 | I29: 190 | J29: 190 | K29: 200 | L29: 190 | M29: 140 | N29: 150 | O29: 170 | P29: 140 | Q29: 180 | R29: 130 | S29: 200 | T29: 190
A30: Perth and Kinross | B30: 1190 | C30: 1330 | D30: 1180 | E30: 1160 | F30: 1070 | G30: 1110 | H30: 1140 | I30: 1020 | J30: 1100 | K30: 1050 | L30: 1070 | M30: 1030 | N30: 910 | O30: 860 | P30: 920 | Q30: 910 | R30: 790 | S30: 1180 | T30: 960
A31: Renfrewshire | B31: 1060 | C31: 950 | D31: 960 | E31: 850 | F31: 730 | G31: 790 | H31: 790 | I31: 760 | J31: 720 | K31: 760 | L31: 700 | M31: 670 | N31: 660 | O31: 610 | P31: 700 | Q31: 600 | R31: 580 | S31: 840 | T31: 630
A32: Scottish Borders | B32: 1380 | C32: 1260 | D32: 1280 | E32: 1230 | F32: 1270 | G32: 1260 | H32: 1270 | I32: 1220 | J32: 1310 | K32: 1080 | L32: 1210 | M32: 1190 | N32: 1250 | O32: 1130 | P32: 1270 | Q32: 1180 | R32: 990 | S32: 1340 | T32: 1250
A33: Shetland Islands | B33: 210 | C33: 180 | D33: 250 | E33: 210 | F33: 200 | G33: 160 | H33: 190 | I33: 210 | J33: 220 | K33: 210 | L33: 200 | M33: 190 | N33: 170 | O33: 190 | P33: 150 | Q33: 150 | R33: 150 | S33: 190 | T33: 150
A34: South Ayrshire | B34: 820 | C34: 830 | D34: 780 | E34: 770 | F34: 740 | G34: 750 | H34: 630 | I34: 580 | J34: 670 | K34: 650 | L34: 600 | M34: 630 | N34: 580 | O34: 530 | P34: 490 | Q34: 570 | R34: 420 | S34: 560 | T34: 450
A35: South Lanarkshire | B35: 1760 | C35: 1580 | D35: 1470 | E35: 1470 | F35: 1330 | G35: 1410 | H35: 1400 | I35: 1290 | J35: 1390 | K35: 1270 | L35: 1190 | M35: 1270 | N35: 1260 | O35: 1250 | P35: 1170 | Q35: 1100 | R35: 930 | S35: 1290 | T35: 1200
A36: Stirling | B36: 1050 | C36: 950 | D36: 860 | E36: 890 | F36: 860 | G36: 890 | H36: 840 | I36: 810 | J36: 870 | K36: 830 | L36: 770 | M36: 750 | N36: 760 | O36: 770 | P36: 770 | Q36: 850 | R36: 680 | S36: 1100 | T36: 770
A37: West Dunbartonshire | B37: 540 | C37: 530 | D37: 450 | E37: 440 | F37: 390 | G37: 390 | H37: 440 | I37: 390 | J37: 370 | K37: 370 | L37: 310 | M37: 340 | N37: 290 | O37: 270 | P37: 320 | Q37: 300 | R37: 290 | S37: 400 | T37: 290
A38: West Lothian | B38: 1210 | C38: 1110 | D38: 960 | E38: 1090 | F38: 940 | G38: 1000 | H38: 870 | I38: 880 | J38: 930 | K38: 880 | L38: 730 | M38: 820 | N38: 670 | O38: 750 | P38: 710 | Q38: 730 | R38: 580 | S38: 800 | T38: 670
A40: NHS Board Areas | B40: 2003-04 | C40: 2004-05 | D40: 2005-06 | E40: 2006-07 | F40: 2007-08 | G40: 2008-09 | H40: 2009-10 | I40: 2010-11 | J40: 2011-12 | K40: 2012-13 | L40: 2013-14 | M40: 2014-15 | N40: 2015-16 | O40: 2016-17 | P40: 2017-18 | Q40: 2018-19 | R40: 2019-20 | S40: 2020-21 | T40: 2021-22
A41: Scotland | B41: 46400 | C41: 44800 | D41: 44400 | E41: 42700 | F41: 41800 | G41: 41300 | H41: 41700 | I41: 40800 | J41: 42100 | K41: 39800 | L41: 39700 | M41: 38800 | N41: 37500 | O41: 37100 | P41: 37700 | Q41: 37400 | R41: 32800 | S41: 47300 | T41: 38600
A42: Ayrshire and Arran | B42: 2560 | C42: 2470 | D42: 2410 | E42: 2250 | F42: 2030 | G42: 2030 | H42: 1970 | I42: 1950 | J42: 2030 | K42: 1880 | L42: 1880 | M42: 1690 | N42: 1650 | O42: 1560 | P42: 1520 | Q42: 1610 | R42: 1290 | S42: 1650 | T42: 1440
A43: Borders | B43: 1380 | C43: 1260 | D43: 1280 | E43: 1230 | F43: 1270 | G43: 1260 | H43: 1270 | I43: 1220 | J43: 1310 | K43: 1080 | L43: 1210 | M43: 1190 | N43: 1250 | O43: 1130 | P43: 1270 | Q43: 1180 | R43: 990 | S43: 1340 | T43: 1250
A44: Dumfries and Galloway | B44: 1760 | C44: 1750 | D44: 1710 | E44: 1720 | F44: 1690 | G44: 1530 | H44: 1570 | I44: 1540 | J44: 1550 | K44: 1520 | L44: 1400 | M44: 1410 | N44: 1310 | O44: 1440 | P44: 1330 | Q44: 1340 | R44: 1160 | S44: 1560 | T44: 1350
A45: Fife | B45: 3010 | C45: 2940 | D45: 2960 | E45: 2930 | F45: 2970 | G45: 2880 | H45: 2880 | I45: 2700 | J45: 2790 | K45: 2740 | L45: 2600 | M45: 2510 | N45: 2430 | O45: 2390 | P45: 2500 | Q45: 2460 | R45: 2240 | S45: 3580 | T45: 2400
A46: Forth Valley | B46: 2010 | C46: 1970 | D46: 1940 | E46: 1860 | F46: 1820 | G46: 1800 | H46: 1710 | I46: 1690 | J46: 1810 | K46: 1660 | L46: 1640 | M46: 1490 | N46: 1490 | O46: 1580 | P46: 1610 | Q46: 1540 | R46: 1270 | S46: 1910 | T46: 1530
A47: Grampian | B47: 5330 | C47: 4930 | D47: 5150 | E47: 4880 | F47: 4900 | G47: 4640 | H47: 5060 | I47: 5130 | J47: 5060 | K47: 4840 | L47: 5120 | M47: 5310 | N47: 5500 | O47: 5350 | P47: 4810 | Q47: 4510 | R47: 3850 | S47: 5100 | T47: 4460
A48: Greater Glasgow and Clyde | B48: 10010 | C48: 9400 | D48: 9380 | E48: 8750 | F48: 8520 | G48: 8640 | H48: 8950 | I48: 8520 | J48: 8360 | K48: 8180 | L48: 7920 | M48: 7540 | N48: 6870 | O48: 6960 | P48: 7690 | Q48: 7660 | R48: 6950 | S48: 10150 | T48: 8200
A49: Highland | B49: 3090 | C49: 3330 | D49: 3320 | E49: 3150 | F49: 3220 | G49: 2920 | H49: 2910 | I49: 2840 | J49: 3060 | K49: 2700 | L49: 2690 | M49: 2670 | N49: 2540 | O49: 2530 | P49: 2660 | Q49: 2530 | R49: 2140 | S49: 2770 | T49: 2850
A50: Lanarkshire | B50: 2880 | C50: 2700 | D50: 2550 | E50: 2400 | F50: 2200 | G50: 2270 | H50: 2270 | I50: 2110 | J50: 2490 | K50: 2270 | L50: 2150 | M50: 2340 | N50: 2260 | O50: 2230 | P50: 2120 | Q50: 1960 | R50: 1590 | S50: 2230 | T50: 2100
A51: Lothian | B51: 10130 | C51: 10130 | D51: 9630 | E51: 9600 | F51: 9520 | G51: 9770 | H51: 9470 | I51: 9320 | J51: 9810 | K51: 9310 | L51: 9470 | M51: 9160 | N51: 8800 | O51: 8800 | P51: 9100 | Q51: 9620 | R51: 8700 | S51: 13240 | T51: 9930
A52: Orkney | B52: 150 | C52: 200 | D52: 160 | E52: 170 | F52: 160 | G52: 140 | H52: 170 | I52: 190 | J52: 190 | K52: 200 | L52: 190 | M52: 140 | N52: 150 | O52: 170 | P52: 140 | Q52: 180 | R52: 130 | S52: 200 | T52: 190
A53: Shetland | B53: 210 | C53: 180 | D53: 250 | E53: 210 | F53: 200 | G53: 160 | H53: 190 | I53: 210 | J53: 220 | K53: 210 | L53: 200 | M53: 190 | N53: 170 | O53: 190 | P53: 150 | Q53: 150 | R53: 150 | S53: 190 | T53: 150
A54: Tayside | B54: 3610 | C54: 3350 | D54: 3480 | E54: 3320 | F54: 3130 | G54: 3070 | H54: 3170 | I54: 3140 | J54: 3220 | K54: 3010 | L54: 2960 | M54: 2980 | N54: 2890 | O54: 2610 | P54: 2630 | Q54: 2530 | R54: 2270 | S54: 3190 | T54: 2620
A55: Western Isles | B55: 220 | C55: 220 | D55: 200 | E55: 250 | F55: 200 | G55: 180 | H55: 160 | I55: 220 | J55: 190 | K55: 220 | L55: 210 | M55: 180 | N55: 200 | O55: 190 | P55: 150 | Q55: 140 | R55: 130 | S55: 170 | T55: 160

Sheet International net migration
A1: International net migration
A2: This worksheet contains two tables, presented next to each other vertically with one blank row between the tables.
A3: See notes [1], [3], [4], [5] which are explained in the Notes worksheet.
A4: Return to front page
A5: Council Area | B5: 2003-04 | C5: 2004-05 | D5: 2005-06 | E5: 2006-07 | F5: 2007-08 | G5: 2008-09 | H5: 2009-10 | I5: 2010-11 | J5: 2011-12 | K5: 2012-13 | L5: 2013-14 | M5: 2014-15 | N5: 2015-16 | O5: 2016-17 | P5: 2017-18 | Q5: 2018-19 | R5: 2019-20 | S5: 2020-21 | T5: 2021-22
A6: Scotland | B6: 3100 | C6: 12800 | D6: 9900 | E6: 24200 | F6: 14900 | G6: 20300 | H6: 22800 | I6: 27300 | J6: 7300 | K6: -200 | L6: 6000 | M6: 17000 | N6: 17800 | O6: 12100 | P6: 5900 | Q6: 18100 | R6: 7200 | S6: 13300 | T6: 36300
A7: Aberdeen City | B7: 870 | C7: 2150 | D7: 2140 | E7: 3750 | F7: 3030 | G7: 3670 | H7: 3740 | I7: 4130 | J7: 1050 | K7: 160 | L7: 910 | M7: 2210 | N7: 1540 | O7: 870 | P7: 610 | Q7: 1420 | R7: 770 | S7: 1400 | T7: 3760
A8: Aberdeenshire | B8: 130 | C8: 620 | D8: 660 | E8: 840 | F8: 410 | G8: 610 | H8: 720 | I8: 720 | J8: 340 | K8: 260 | L8: 540 | M8: 670 | N8: 320 | O8: 220 | P8: -350 | Q8: 210 | R8: 10 | S8: 50 | T8: 550
A9: Angus | B9: -110 | C9: 130 | D9: 140 | E9: 210 | F9: 110 | G9: 150 | H9: 220 | I9: 240 | J9: -10 | K9: -80 | L9: 70 | M9: 170 | N9: 170 | O9: 40 | P9: -120 | Q9: -10 | R9: -110 | S9: -20 | T9: -40
A10: Argyll and Bute | B10: -100 | C10: -100 | D10: -110 | E10: 140 | F10: -230 | G10: -50 | H10: 90 | I10: 60 | J10: 0 | K10: -70 | L10: 60 | M10: 80 | N10: 130 | O10: 100 | P10: -120 | Q10: 50 | R10: -70 | S10: -50 | T10: 10
A11: City of Edinburgh | B11: 3040 | C11: 5220 | D11: 4110 | E11: 6120 | F11: 3990 | G11: 6270 | H11: 7300 | I11: 8080 | J11: 1990 | K11: -340 | L11: 1270 | M11: 5230 | N11: 4690 | O11: 3320 | P11: 2540 | Q11: 5010 | R11: 3150 | S11: 3890 | T11: 9390
A12: Clackmannanshire | B12: -50 | C12: 10 | D12: 10 | E12: 160 | F12: -10 | G12: 30 | H12: 0 | I12: 10 | J12: 10 | K12: 10 | L12: 30 | M12: 20 | N12: 60 | O12: 90 | P12: -50 | Q12: 20 | R12: -20 | S12: -10 | T12: 60
A13: Dumfries and Galloway | B13: -260 | C13: -80 | D13: -120 | E13: 30 | F13: -180 | G13: -170 | H13: -160 | I13: 20 | J13: -340 | K13: -350 | L13: -300 | M13: -300 | N13: -160 | O13: -230 | P13: -450 | Q13: -250 | R13: -340 | S13: -270 | T13: -210
A14: Dundee City | B14: 110 | C14: 720 | D14: 690 | E14: 1060 | F14: 950 | G14: 1030 | H14: 1260 | I14: 1580 | J14: 370 | K14: 10 | L14: -10 | M14: 550 | N14: 570 | O14: 530 | P14: 440 | Q14: 840 | R14: 580 | S14: 490 | T14: 1980
A15: East Ayrshire | B15: -130 | C15: -90 | D15: -190 | E15: -70 | F15: -90 | G15: -140 | H15: -100 | I15: -70 | J15: -160 | K15: -190 | L15: -150 | M15: -140 | N15: -130 | O15: -100 | P15: -230 | Q15: -80 | R15: -200 | S15: -170 | T15: -100
A16: East Dunbartonshire | B16: -190 | C16: -40 | D16: -190 | E16: 10 | F16: -120 | G16: -30 | H16: -70 | I16: -70 | J16: -50 | K16: -40 | L16: 10 | M16: 0 | N16: -10 | O16: 10 | P16: -170 | Q16: 50 | R16: -50 | S16: -10 | T16: 140
A17: East Lothian | B17: -50 | C17: 0 | D17: 40 | E17: 190 | F17: 250 | G17: 220 | H17: 150 | I17: 170 | J17: 370 | K17: 260 | L17: 260 | M17: 400 | N17: 320 | O17: 340 | P17: 250 | Q17: 410 | R17: 250 | S17: 280 | T17: 420
A18: East Renfrewshire | B18: -140 | C18: -80 | D18: -130 | E18: -10 | F18: -100 | G18: -20 | H18: 40 | I18: -30 | J18: -60 | K18: -60 | L18: -20 | M18: 10 | N18: 0 | O18: -20 | P18: -170 | Q18: 60 | R18: -100 | S18: 40 | T18: 170
A19: Falkirk | B19: 70 | C19: 250 | D19: 70 | E19: 320 | F19: 110 | G19: 120 | H19: 160 | I19: 280 | J19: -40 | K19: -100 | L19: 10 | M19: 60 | N19: 170 | O19: 30 | P19: -150 | Q19: 50 | R19: -130 | S19: -80 | T19: 20
A20: Fife | B20: 90 | C20: 790 | D20: 270 | E20: 1010 | F20: 380 | G20: 1060 | H20: 1250 | I20: 1300 | J20: 410 | K20: -120 | L20: 60 | M20: 900 | N20: 950 | O20: 470 | P20: -10 | Q20: 790 | R20: 130 | S20: 570 | T20: 1260
A21: Glasgow City | B21: 1100 | C21: 1490 | D21: 1070 | E21: 4740 | F21: 4250 | G21: 5450 | H21: 5380 | I21: 7060 | J21: 2640 | K21: 840 | L21: 2270 | M21: 4480 | N21: 5890 | O21: 4300 | P21: 5070 | Q21: 6650 | R21: 3680 | S21: 6260 | T21: 14970
A22: Highland | B22: 10 | C22: 620 | D22: 460 | E22: 970 | F22: 310 | G22: 190 | H22: 360 | I22: 420 | J22: 80 | K22: -40 | L22: 30 | M22: 330 | N22: 350 | O22: 120 | P22: -410 | Q22: 20 | R22: -330 | S22: -190 | T22: 0
A23: Inverclyde | B23: -180 | C23: 120 | D23: 0 | E23: 20 | F23: -50 | G23: -10 | H23: 30 | I23: -30 | J23: 150 | K23: 100 | L23: 60 | M23: 100 | N23: 80 | O23: 70 | P23: 10 | Q23: 110 | R23: 30 | S23: 70 | T23: 200
A24: Midlothian | B24: -20 | C24: -20 | D24: 0 | E24: 90 | F24: 10 | G24: 20 | H24: 40 | I24: 70 | J24: 200 | K24: 180 | L24: 200 | M24: 210 | N24: 210 | O24: 220 | P24: 80 | Q24: 220 | R24: 90 | S24: 140 | T24: 260
A25: Moray | B25: -80 | C25: 70 | D25: 20 | E25: 240 | F25: -10 | G25: 40 | H25: 50 | I25: -100 | J25: -60 | K25: -80 | L25: 0 | M25: -20 | N25: -10 | O25: -100 | P25: -260 | Q25: -10 | R25: -110 | S25: -150 | T25: 20
A26: Na h-Eileanan Siar | B26: -40 | C26: -10 | D26: -10 | E26: 30 | F26: -30 | G26: -10 | H26: -10 | I26: 0 | J26: -40 | K26: -50 | L26: -40 | M26: -30 | N26: -10 | O26: -10 | P26: -60 | Q26: -30 | R26: -40 | S26: -30 | T26: -20
A27: North Ayrshire | B27: -140 | C27: -190 | D27: -280 | E27: -50 | F27: -150 | G27: -90 | H27: -90 | I27: 30 | J27: -180 | K27: -180 | L27: -110 | M27: -100 | N27: -70 | O27: -50 | P27: -240 | Q27: -50 | R27: -160 | S27: -150 | T27: -60
A28: North Lanarkshire | B28: -330 | C28: -20 | D28: -30 | E28: 570 | F28: 100 | G28: 20 | H28: -20 | I28: 120 | J28: -20 | K28: -60 | L28: 40 | M28: 210 | N28: 280 | O28: 190 | P28: -190 | Q28: 110 | R28: -190 | S28: 40 | T28: 230
A29: Orkney Islands | B29: -20 | C29: -30 | D29: -30 | E29: 0 | F29: -30 | G29: -20 | H29: 0 | I29: 20 | J29: -30 | K29: -30 | L29: -10 | M29: -40 | N29: -40 | O29: -30 | P29: -60 | Q29: -10 | R29: -50 | S29: -30 | T29: -20
A30: Perth and Kinross | B30: 110 | C30: 1070 | D30: 970 | E30: 1390 | F30: 1380 | G30: 1170 | H30: 1170 | I30: 1120 | J30: 140 | K30: -80 | L30: 270 | M30: 450 | N30: 610 | O30: 360 | P30: 40 | Q30: 350 | R30: -10 | S30: 70 | T30: 410
A31: Renfrewshire | B31: 190 | C31: 160 | D31: 80 | E31: 500 | F31: 130 | G31: 100 | H31: 340 | I31: 460 | J31: 360 | K31: 270 | L31: 490 | M31: 660 | N31: 820 | O31: 670 | P31: 400 | Q31: 720 | R31: 390 | S31: 680 | T31: 1150
A32: Scottish Borders | B32: -60 | C32: 110 | D32: 10 | E32: 260 | F32: 90 | G32: 20 | H32: -100 | I32: 70 | J32: 180 | K32: 110 | L32: 100 | M32: 140 | N32: 110 | O32: 100 | P32: -70 | Q32: 80 | R32: -30 | S32: 30 | T32: 90
A33: Shetland Islands | B33: -20 | C33: 0 | D33: -40 | E33: 10 | F33: 0 | G33: 80 | H33: 20 | I33: 40 | J33: 0 | K33: -10 | L33: 80 | M33: 110 | N33: -70 | O33: -20 | P33: -20 | Q33: 10 | R33: -20 | S33: 0 | T33: 100
A34: South Ayrshire | B34: -200 | C34: -50 | D34: -90 | E34: 70 | F34: -80 | G34: -110 | H34: -30 | I34: 80 | J34: -60 | K34: -130 | L34: -60 | M34: -10 | N34: 0 | O34: 20 | P34: -200 | Q34: 10 | R34: -120 | S34: -110 | T34: -10
A35: South Lanarkshire | B35: -370 | C35: -250 | D35: -200 | E35: 70 | F35: -180 | G35: -50 | H35: -60 | I35: 0 | J35: 280 | K35: 220 | L35: 320 | M35: 450 | N35: 450 | O35: 480 | P35: 70 | Q35: 580 | R35: 180 | S35: 360 | T35: 770
A36: Stirling | B36: 70 | C36: 140 | D36: 180 | E36: 560 | F36: 260 | G36: 360 | H36: 660 | I36: 990 | J36: -100 | K36: -340 | L36: -340 | M36: 210 | N36: 310 | O36: 50 | P36: 80 | Q36: 690 | R36: 290 | S36: 300 | T36: 810
A37: West Dunbartonshire | B37: -100 | C37: -80 | D37: -110 | E37: 70 | F37: -70 | G37: -30 | H37: 50 | I37: 10 | J37: -10 | K37: -10 | L37: 10 | M37: 10 | N37: 80 | O37: 30 | P37: -110 | Q37: 30 | R37: -70 | S37: 0 | T37: 50
A38: West Lothian | B38: -100 | C38: 180 | D38: 520 | E38: 890 | F38: 470 | G38: 430 | H38: 410 | I38: 550 | J38: -90 | K38: -270 | L38: -90 | M38: 0 | N38: 230 | O38: -30 | P38: -210 | Q38: 60 | R38: -240 | S38: -80 | T38: -60
A40: NHS Board Area | B40: 2003-04 | C40: 2004-05 | D40: 2005-06 | E40: 2006-07 | F40: 2007-08 | G40: 2008-09 | H40: 2009-10 | I40: 2010-11 | J40: 2011-12 | K40: 2012-13 | L40: 2013-14 | M40: 2014-15 | N40: 2015-16 | O40: 2016-17 | P40: 2017-18 | Q40: 2018-19 | R40: 2019-20 | S40: 2020-21 | T40: 2021-22
A41: Scotland | B41: 3100 | C41: 12800 | D41: 9900 | E41: 24200 | F41: 14900 | G41: 20300 | H41: 22800 | I41: 27300 | J41: 7300 | K41: -200 | L41: 6000 | M41: 17000 | N41: 17800 | O41: 12100 | P41: 5900 | Q41: 18100 | R41: 7200 | S41: 13300 | T41: 36300
A42: Ayrshire and Arran | B42: -470 | C42: -320 | D42: -560 | E42: -50 | F42: -320 | G42: -330 | H42: -210 | I42: 50 | J42: -410 | K42: -490 | L42: -320 | M42: -260 | N42: -200 | O42: -130 | P42: -680 | Q42: -130 | R42: -480 | S42: -440 | T42: -170
A43: Borders | B43: -60 | C43: 110 | D43: 10 | E43: 260 | F43: 90 | G43: 20 | H43: -100 | I43: 70 | J43: 180 | K43: 110 | L43: 100 | M43: 140 | N43: 110 | O43: 100 | P43: -70 | Q43: 80 | R43: -30 | S43: 30 | T43: 90
A44: Dumfries and Galloway | B44: -260 | C44: -80 | D44: -120 | E44: 30 | F44: -180 | G44: -170 | H44: -160 | I44: 20 | J44: -340 | K44: -350 | L44: -300 | M44: -300 | N44: -160 | O44: -230 | P44: -450 | Q44: -250 | R44: -340 | S44: -270 | T44: -210
A45: Fife | B45: 90 | C45: 790 | D45: 270 | E45: 1010 | F45: 380 | G45: 1060 | H45: 1250 | I45: 1300 | J45: 410 | K45: -120 | L45: 60 | M45: 900 | N45: 950 | O45: 470 | P45: -10 | Q45: 790 | R45: 130 | S45: 570 | T45: 1260
A46: Forth Valley | B46: 90 | C46: 400 | D46: 260 | E46: 1040 | F46: 360 | G46: 510 | H46: 820 | I46: 1270 | J46: -120 | K46: -430 | L46: -290 | M46: 290 | N46: 530 | O46: 170 | P46: -120 | Q46: 760 | R46: 140 | S46: 210 | T46: 890
A47: Grampian | B47: 920 | C47: 2840 | D47: 2820 | E47: 4830 | F47: 3430 | G47: 4320 | H47: 4510 | I47: 4760 | J47: 1340 | K47: 340 | L47: 1450 | M47: 2860 | N47: 1840 | O47: 1000 | P47: -10 | Q47: 1610 | R47: 680 | S47: 1300 | T47: 4320
A48: Greater Glasgow and Clyde | B48: 620 | C48: 1510 | D48: 670 | E48: 5340 | F48: 4000 | G48: 5440 | H48: 5770 | I48: 7380 | J48: 3040 | K48: 1090 | L48: 2820 | M48: 5260 | N48: 6850 | O48: 5070 | P48: 5020 | Q48: 7610 | R48: 3890 | S48: 7040 | T48: 16680
A49: Highland | B49: -100 | C49: 520 | D49: 350 | E49: 1110 | F49: 90 | G49: 130 | H49: 440 | I49: 480 | J49: 90 | K49: -110 | L49: 90 | M49: 410 | N49: 480 | O49: 220 | P49: -530 | Q49: 60 | R49: -400 | S49: -240 | T49: 10
A50: Lanarkshire | B50: -640 | C50: -210 | D50: -180 | E50: 630 | F50: -60 | G50: 0 | H50: -80 | I50: 130 | J50: 260 | K50: 170 | L50: 360 | M50: 660 | N50: 730 | O50: 670 | P50: -120 | Q50: 690 | R50: -10 | S50: 390 | T50: 1000
A51: Lothian | B51: 2880 | C51: 5380 | D51: 4670 | E51: 7300 | F51: 4710 | G51: 6940 | H51: 7900 | I51: 8860 | J51: 2470 | K51: -170 | L51: 1640 | M51: 5830 | N51: 5450 | O51: 3860 | P51: 2660 | Q51: 5700 | R51: 3240 | S51: 4230 | T51: 10010
A52: Orkney | B52: -20 | C52: -30 | D52: -30 | E52: 0 | F52: -30 | G52: -20 | H52: 0 | I52: 20 | J52: -30 | K52: -30 | L52: -10 | M52: -40 | N52: -40 | O52: -30 | P52: -60 | Q52: -10 | R52: -50 | S52: -30 | T52: -20
A53: Shetland | B53: -20 | C53: 0 | D53: -40 | E53: 10 | F53: 0 | G53: 80 | H53: 20 | I53: 40 | J53: 0 | K53: -10 | L53: 80 | M53: 110 | N53: -70 | O53: -20 | P53: -20 | Q53: 10 | R53: -20 | S53: 0 | T53: 100
A54: Tayside | B54: 110 | C54: 1910 | D54: 1790 | E54: 2660 | F54: 2440 | G54: 2350 | H54: 2640 | I54: 2930 | J54: 510 | K54: -150 | L54: 330 | M54: 1170 | N54: 1350 | O54: 930 | P54: 360 | Q54: 1180 | R54: 450 | S54: 540 | T54: 2350
A55: Western Isles | B55: -40 | C55: -10 | D55: -10 | E55: 30 | F55: -30 | G55: -10 | H55: -10 | I55: 0 | J55: -40 | K55: -50 | L55: -40 | M55: -30 | N55: -10 | O55: -10 | P55: -60 | Q55: -30 | R55: -40 | S55: -30 | T55: -20

Sheet International in-migration
A1: International in-migration
A2: This worksheet contains two tables, presented next to each other vertically with one blank row between the tables.
A3: See notes [1], [3], [4], [5] which are explained in the Notes worksheet.
A4: Return to front page
A5: Council Area | B5: 2003-04 | C5: 2004-05 | D5: 2005-06 | E5: 2006-07 | F5: 2007-08 | G5: 2008-09 | H5: 2009-10 | I5: 2010-11 | J5: 2011-12 | K5: 2012-13 | L5: 2013-14 | M5: 2014-15 | N5: 2015-16 | O5: 2016-17 | P5: 2017-18 | Q5: 2018-19 | R5: 2019-20 | S5: 2020-21 | T5: 2021-22
A6: Scotland | B6: 28500 | C6: 41800 | D6: 41300 | E6: 45100 | F6: 45200 | G6: 45100 | H6: 47400 | I6: 44200 | J6: 43800 | K6: 35900 | L6: 39600 | M6: 44200 | N6: 57900 | O6: 54600 | P6: 54200 | Q6: 65100 | R6: 58100 | S6: 56500 | T6: 76900
A7: Aberdeen City | B7: 2890 | C7: 4320 | D7: 4460 | E7: 5350 | F7: 5410 | G7: 5860 | H7: 5850 | I7: 5280 | J7: 5140 | K7: 4330 | L7: 4610 | M7: 5000 | N7: 5850 | O7: 5090 | P7: 4860 | Q7: 5740 | R7: 5350 | S7: 5190 | T7: 7250
A8: Aberdeenshire | B8: 780 | C8: 1390 | D8: 1560 | E8: 1510 | F8: 1510 | G8: 1510 | H8: 1560 | I8: 1440 | J8: 1290 | K8: 1180 | L8: 1340 | M8: 1380 | N8: 1600 | O8: 1490 | P8: 1190 | Q8: 1440 | R8: 1240 | S8: 1140 | T8: 1550
A9: Angus | B9: 140 | C9: 370 | D9: 450 | E9: 420 | F9: 520 | G9: 460 | H9: 550 | I9: 510 | J9: 440 | K9: 380 | L9: 450 | M9: 490 | N9: 610 | O9: 520 | P9: 480 | Q9: 490 | R9: 460 | S9: 500 | T9: 470
A10: Argyll and Bute | B10: 300 | C10: 470 | D10: 460 | E10: 540 | F10: 410 | G10: 430 | H10: 480 | I10: 360 | J10: 410 | K10: 340 | L10: 360 | M10: 380 | N10: 540 | O10: 530 | P10: 460 | Q10: 500 | R10: 420 | S10: 390 | T10: 430
A11: City of Edinburgh | B11: 7810 | C11: 11010 | D11: 10460 | E11: 10190 | F11: 9990 | G11: 10650 | H11: 11840 | I11: 11220 | J11: 11660 | K11: 9310 | L11: 10370 | M11: 11680 | N11: 15030 | O11: 14350 | P11: 14700 | Q11: 17470 | R11: 15930 | S11: 14960 | T11: 18740
A12: Clackmannanshire | B12: 90 | C12: 150 | D12: 170 | E12: 250 | F12: 190 | G12: 180 | H12: 150 | I12: 100 | J12: 170 | K12: 160 | L12: 160 | M12: 140 | N12: 220 | O12: 270 | P12: 180 | Q12: 210 | R12: 200 | S12: 190 | T12: 270
A13: Dumfries and Galloway | B13: 240 | C13: 500 | D13: 520 | E13: 490 | F13: 520 | G13: 390 | H13: 380 | I13: 360 | J13: 280 | K13: 240 | L13: 230 | M13: 220 | N13: 420 | O13: 370 | P13: 310 | Q13: 360 | R13: 320 | S13: 330 | T13: 400
A14: Dundee City | B14: 810 | C14: 1730 | D14: 1630 | E14: 1850 | F14: 2070 | G14: 1920 | H14: 2200 | I14: 2250 | J14: 2010 | K14: 1650 | L14: 1520 | M14: 1690 | N14: 2030 | O14: 2030 | P14: 2250 | Q14: 2740 | R14: 2750 | S14: 2380 | T14: 3600
A15: East Ayrshire | B15: 130 | C15: 200 | D15: 120 | E15: 160 | F15: 220 | G15: 120 | H15: 150 | I15: 120 | J15: 160 | K15: 120 | L15: 130 | M15: 130 | N15: 190 | O15: 250 | P15: 200 | Q15: 250 | R15: 200 | S15: 200 | T15: 260
A16: East Dunbartonshire | B16: 190 | C16: 300 | D16: 210 | E16: 220 | F16: 140 | G16: 180 | H16: 150 | I16: 160 | J16: 330 | K16: 310 | L16: 300 | M16: 290 | N16: 430 | O16: 450 | P16: 380 | Q16: 450 | R16: 450 | S16: 410 | T16: 520
A17: East Lothian | B17: 210 | C17: 260 | D17: 360 | E17: 380 | F17: 550 | G17: 450 | H17: 430 | I17: 430 | J17: 650 | K17: 550 | L17: 530 | M17: 610 | N17: 720 | O17: 740 | P17: 760 | Q17: 810 | R17: 760 | S17: 710 | T17: 810
A18: East Renfrewshire | B18: 140 | C18: 180 | D18: 160 | E18: 140 | F18: 140 | G18: 160 | H18: 190 | I18: 130 | J18: 280 | K18: 260 | L18: 250 | M18: 280 | N18: 380 | O18: 390 | P18: 340 | Q18: 440 | R18: 400 | S18: 470 | T18: 520
A19: Falkirk | B19: 390 | C19: 670 | D19: 570 | E19: 660 | F19: 560 | G19: 510 | H19: 460 | I19: 500 | J19: 340 | K19: 270 | L19: 330 | M19: 350 | N19: 580 | O19: 520 | P19: 400 | Q19: 510 | R19: 420 | S19: 400 | T19: 540
A20: Fife | B20: 1640 | C20: 2490 | D20: 2170 | E20: 2290 | F20: 2210 | G20: 2400 | H20: 2680 | I20: 2300 | J20: 2430 | K20: 1950 | L20: 2110 | M20: 2560 | N20: 3420 | O20: 3180 | P20: 2900 | Q20: 3690 | R20: 3100 | S20: 3210 | T20: 3380
A21: Glasgow City | B21: 7200 | C21: 8420 | D21: 7990 | E21: 9120 | F21: 9770 | G21: 10020 | H21: 10170 | I21: 10260 | J21: 9420 | K21: 7550 | L21: 8970 | M21: 10620 | N21: 13980 | O21: 13210 | P21: 14730 | Q21: 18070 | R21: 15980 | S21: 16020 | T21: 25230
A22: Highland | B22: 740 | C22: 1500 | D22: 1530 | E22: 1770 | F22: 1560 | G22: 1290 | H22: 1310 | I22: 1020 | J22: 970 | K22: 820 | L22: 850 | M22: 1000 | N22: 1400 | O22: 1260 | P22: 1050 | Q22: 1220 | R22: 900 | S22: 950 | T22: 1080
A23: Inverclyde | B23: 210 | C23: 430 | D23: 270 | E23: 220 | F23: 190 | G23: 180 | H23: 200 | I23: 100 | J23: 300 | K23: 260 | L23: 210 | M23: 220 | N23: 260 | O23: 290 | P23: 260 | Q23: 290 | R23: 270 | S23: 270 | T23: 400
A24: Midlothian | B24: 130 | C24: 170 | D24: 200 | E24: 210 | F24: 200 | G24: 180 | H24: 210 | I24: 180 | J24: 350 | K24: 310 | L24: 320 | M24: 320 | N24: 430 | O24: 450 | P24: 410 | Q24: 450 | R24: 410 | S24: 420 | T24: 500
A25: Moray | B25: 240 | C25: 510 | D25: 530 | E25: 520 | F25: 500 | G25: 390 | H25: 450 | I25: 410 | J25: 360 | K25: 310 | L25: 340 | M25: 300 | N25: 470 | O25: 410 | P25: 380 | Q25: 480 | R25: 440 | S25: 370 | T25: 510
A26: Na h-Eileanan Siar | B26: 50 | C26: 80 | D26: 90 | E26: 100 | F26: 80 | G26: 80 | H26: 70 | I26: 60 | J26: 60 | K26: 50 | L26: 60 | M26: 60 | N26: 100 | O26: 100 | P26: 80 | Q26: 70 | R26: 60 | S26: 70 | T26: 80
A27: North Ayrshire | B27: 230 | C27: 260 | D27: 220 | E27: 260 | F27: 260 | G27: 230 | H27: 240 | I27: 220 | J27: 260 | K27: 220 | L27: 230 | M27: 210 | N27: 340 | O27: 350 | P27: 260 | Q27: 340 | R27: 300 | S27: 260 | T27: 330
A28: North Lanarkshire | B28: 420 | C28: 730 | D28: 840 | E28: 1180 | F28: 1080 | G28: 900 | H28: 780 | I28: 630 | J28: 770 | K28: 640 | L28: 700 | M28: 800 | N28: 1140 | O28: 1110 | P28: 910 | Q28: 1050 | R28: 940 | S28: 970 | T28: 1260
A29: Orkney Islands | B29: 40 | C29: 50 | D29: 50 | E29: 50 | F29: 50 | G29: 50 | H29: 60 | I29: 70 | J29: 60 | K29: 60 | L29: 70 | M29: 50 | N29: 70 | O29: 60 | P29: 60 | Q29: 80 | R29: 50 | S29: 60 | T29: 90
A30: Perth and Kinross | B30: 650 | C30: 1640 | D30: 1730 | E30: 2040 | F30: 2340 | G30: 2160 | H30: 2130 | I30: 1630 | J30: 1020 | K30: 800 | L30: 950 | M30: 1050 | N30: 1450 | O30: 1260 | P30: 1130 | Q30: 1300 | R30: 960 | S30: 930 | T30: 1250
A31: Renfrewshire | B31: 650 | C31: 700 | D31: 810 | E31: 910 | F31: 690 | G31: 660 | H31: 850 | I31: 730 | J31: 780 | K31: 660 | L31: 850 | M31: 880 | N31: 1390 | O31: 1310 | P31: 1170 | Q31: 1450 | R31: 1250 | S31: 1350 | T31: 1850
A32: Scottish Borders | B32: 360 | C32: 550 | D32: 580 | E32: 640 | F32: 690 | G32: 520 | H32: 390 | I32: 370 | J32: 490 | K32: 440 | L32: 410 | M32: 380 | N32: 520 | O32: 520 | P32: 470 | Q32: 540 | R32: 470 | S32: 460 | T32: 510
A33: Shetland Islands | B33: 60 | C33: 70 | D33: 70 | E33: 80 | F33: 90 | G33: 150 | H33: 100 | I33: 100 | J33: 120 | K33: 100 | L33: 180 | M33: 210 | N33: 110 | O33: 120 | P33: 100 | Q33: 130 | R33: 120 | S33: 110 | T33: 240
A34: South Ayrshire | B34: 160 | C34: 350 | D34: 330 | E34: 330 | F34: 330 | G34: 280 | H34: 330 | I34: 310 | J34: 310 | K34: 250 | L34: 270 | M34: 290 | N34: 410 | O34: 470 | P34: 350 | Q34: 430 | R34: 380 | S34: 340 | T34: 410
A35: South Lanarkshire | B35: 430 | C35: 770 | D35: 740 | E35: 720 | F35: 710 | G35: 720 | H35: 690 | I35: 560 | J35: 740 | K35: 620 | L35: 680 | M35: 760 | N35: 1130 | O35: 1150 | P35: 970 | Q35: 1230 | R35: 1050 | S35: 1080 | T35: 1500
A36: Stirling | B36: 690 | C36: 820 | D36: 890 | E36: 1010 | F36: 930 | G36: 960 | H36: 1250 | I36: 1360 | J36: 1320 | K36: 1070 | L36: 1020 | M36: 1060 | N36: 1400 | O36: 1310 | P36: 1480 | Q36: 1740 | R36: 1590 | S36: 1430 | T36: 1730
A37: West Dunbartonshire | B37: 160 | C37: 200 | D37: 190 | E37: 230 | F37: 160 | G37: 170 | H37: 200 | I37: 160 | J37: 200 | K37: 180 | L37: 190 | M37: 180 | N37: 300 | O37: 260 | P37: 200 | Q37: 260 | R37: 240 | S37: 250 | T37: 330
A38: West Lothian | B38: 330 | C38: 560 | D38: 970 | E38: 1250 | F38: 1140 | G38: 960 | H38: 930 | I38: 870 | J38: 730 | K38: 560 | L38: 580 | M38: 600 | N38: 960 | O38: 800 | P38: 720 | Q38: 900 | R38: 690 | S38: 720 | T38: 840
A40: NHS Board Area | B40: 2003-04 | C40: 2004-05 | D40: 2005-06 | E40: 2006-07 | F40: 2007-08 | G40: 2008-09 | H40: 2009-10 | I40: 2010-11 | J40: 2011-12 | K40: 2012-13 | L40: 2013-14 | M40: 2014-15 | N40: 2015-16 | O40: 2016-17 | P40: 2017-18 | Q40: 2018-19 | R40: 2019-20 | S40: 2020-21 | T40: 2021-22
A41: Scotland | B41: 28500 | C41: 41800 | D41: 41300 | E41: 45100 | F41: 45200 | G41: 45100 | H41: 47400 | I41: 44200 | J41: 43800 | K41: 35900 | L41: 39600 | M41: 44200 | N41: 57900 | O41: 54600 | P41: 54200 | Q41: 65100 | R41: 58100 | S41: 56500 | T41: 76900
A42: Ayrshire and Arran | B42: 520 | C42: 800 | D42: 670 | E42: 760 | F42: 810 | G42: 620 | H42: 710 | I42: 640 | J42: 730 | K42: 590 | L42: 620 | M42: 630 | N42: 940 | O42: 1070 | P42: 810 | Q42: 1030 | R42: 880 | S42: 800 | T42: 1000
A43: Borders | B43: 360 | C43: 550 | D43: 580 | E43: 640 | F43: 690 | G43: 520 | H43: 390 | I43: 370 | J43: 490 | K43: 440 | L43: 410 | M43: 380 | N43: 520 | O43: 520 | P43: 470 | Q43: 540 | R43: 470 | S43: 460 | T43: 510
A44: Dumfries and Galloway | B44: 240 | C44: 500 | D44: 520 | E44: 490 | F44: 520 | G44: 390 | H44: 380 | I44: 360 | J44: 280 | K44: 240 | L44: 230 | M44: 220 | N44: 420 | O44: 370 | P44: 310 | Q44: 360 | R44: 320 | S44: 330 | T44: 400
A45: Fife | B45: 1640 | C45: 2490 | D45: 2170 | E45: 2290 | F45: 2210 | G45: 2400 | H45: 2680 | I45: 2300 | J45: 2430 | K45: 1950 | L45: 2110 | M45: 2560 | N45: 3420 | O45: 3180 | P45: 2900 | Q45: 3690 | R45: 3100 | S45: 3210 | T45: 3380
A46: Forth Valley | B46: 1170 | C46: 1640 | D46: 1630 | E46: 1920 | F46: 1680 | G46: 1640 | H46: 1860 | I46: 1970 | J46: 1830 | K46: 1500 | L46: 1510 | M46: 1550 | N46: 2200 | O46: 2100 | P46: 2070 | Q46: 2470 | R46: 2210 | S46: 2020 | T46: 2550
A47: Grampian | B47: 3910 | C47: 6220 | D47: 6550 | E47: 7380 | F47: 7420 | G47: 7770 | H47: 7860 | I47: 7130 | J47: 6790 | K47: 5810 | L47: 6300 | M47: 6690 | N47: 7910 | O47: 6990 | P47: 6430 | Q47: 7660 | R47: 7030 | S47: 6710 | T47: 9300
A48: Greater Glasgow and Clyde | B48: 8670 | C48: 10410 | D48: 9750 | E48: 10980 | F48: 11200 | G48: 11480 | H48: 11880 | I48: 11670 | J48: 11300 | K48: 9210 | L48: 10770 | M48: 12480 | N48: 16750 | O48: 15920 | P48: 17080 | Q48: 20960 | R48: 18590 | S48: 18770 | T48: 28860
A49: Highland | B49: 1040 | C49: 1960 | D49: 1990 | E49: 2310 | F49: 1970 | G49: 1720 | H49: 1780 | I49: 1380 | J49: 1370 | K49: 1160 | L49: 1210 | M49: 1370 | N49: 1940 | O49: 1790 | P49: 1510 | Q49: 1720 | R49: 1320 | S49: 1340 | T49: 1510
A50: Lanarkshire | B50: 720 | C50: 1300 | D50: 1450 | E50: 1760 | F50: 1660 | G50: 1500 | H50: 1340 | I50: 1060 | J50: 1510 | K50: 1270 | L50: 1380 | M50: 1550 | N50: 2270 | O50: 2260 | P50: 1890 | Q50: 2280 | R50: 1990 | S50: 2050 | T50: 2760
A51: Lothian | B51: 8480 | C51: 11990 | D51: 11980 | E51: 12030 | F51: 11880 | G51: 12240 | H51: 13400 | I51: 12700 | J51: 13380 | K51: 10730 | L51: 11800 | M51: 13200 | N51: 17140 | O51: 16330 | P51: 16590 | Q51: 19640 | R51: 17780 | S51: 16800 | T51: 20890
A52: Orkney | B52: 40 | C52: 50 | D52: 50 | E52: 50 | F52: 50 | G52: 50 | H52: 60 | I52: 70 | J52: 60 | K52: 60 | L52: 70 | M52: 50 | N52: 70 | O52: 60 | P52: 60 | Q52: 80 | R52: 50 | S52: 60 | T52: 90
A53: Shetland | B53: 60 | C53: 70 | D53: 70 | E53: 80 | F53: 90 | G53: 150 | H53: 100 | I53: 100 | J53: 120 | K53: 100 | L53: 180 | M53: 210 | N53: 110 | O53: 120 | P53: 100 | Q53: 130 | R53: 120 | S53: 110 | T53: 240
A54: Tayside | B54: 1600 | C54: 3740 | D54: 3810 | E54: 4310 | F54: 4930 | G54: 4540 | H54: 4880 | I54: 4390 | J54: 3470 | K54: 2820 | L54: 2930 | M54: 3220 | N54: 4090 | O54: 3810 | P54: 3860 | Q54: 4530 | R54: 4180 | S54: 3800 | T54: 5320
A55: Western Isles | B55: 50 | C55: 80 | D55: 90 | E55: 100 | F55: 80 | G55: 80 | H55: 70 | I55: 60 | J55: 60 | K55: 50 | L55: 60 | M55: 60 | N55: 100 | O55: 100 | P55: 80 | Q55: 70 | R55: 60 | S55: 70 | T55: 80

Sheet International out-migration
A1: International out-migration
A2: This worksheet contains two tables, presented next to each other vertically with one blank row between the tables.
A3: See notes [1], [3], [4], [5] which are explained in the Notes worksheet.
A4: Return to front page
A5: Council Area | B5: 2003-04 | C5: 2004-05 | D5: 2005-06 | E5: 2006-07 | F5: 2007-08 | G5: 2008-09 | H5: 2009-10 | I5: 2010-11 | J5: 2011-12 | K5: 2012-13 | L5: 2013-14 | M5: 2014-15 | N5: 2015-16 | O5: 2016-17 | P5: 2017-18 | Q5: 2018-19 | R5: 2019-20 | S5: 2020-21 | T5: 2021-22
A6: Scotland | B6: 25400 | C6: 29000 | D6: 31400 | E6: 20900 | F6: 30300 | G6: 24800 | H6: 24600 | I6: 16900 | J6: 36500 | K6: 36100 | L6: 33600 | M6: 27200 | N6: 40000 | O6: 42600 | P6: 48300 | Q6: 47100 | R6: 51000 | S6: 43200 | T6: 40600
A7: Aberdeen City | B7: 2020 | C7: 2170 | D7: 2320 | E7: 1600 | F7: 2380 | G7: 2200 | H7: 2110 | I7: 1150 | J7: 4090 | K7: 4160 | L7: 3700 | M7: 2790 | N7: 4320 | O7: 4210 | P7: 4250 | Q7: 4320 | R7: 4580 | S7: 3790 | T7: 3490
A8: Aberdeenshire | B8: 650 | C8: 760 | D8: 900 | E8: 680 | F8: 1110 | G8: 910 | H8: 840 | I8: 720 | J8: 950 | K8: 920 | L8: 800 | M8: 710 | N8: 1280 | O8: 1270 | P8: 1540 | Q8: 1230 | R8: 1230 | S8: 1090 | T8: 1000
A9: Angus | B9: 240 | C9: 250 | D9: 310 | E9: 220 | F9: 410 | G9: 310 | H9: 340 | I9: 280 | J9: 450 | K9: 450 | L9: 390 | M9: 320 | N9: 440 | O9: 480 | P9: 610 | Q9: 500 | R9: 570 | S9: 520 | T9: 510
A10: Argyll and Bute | B10: 400 | C10: 570 | D10: 570 | E10: 400 | F10: 640 | G10: 480 | H10: 390 | I10: 310 | J10: 400 | K10: 400 | L10: 300 | M10: 300 | N10: 420 | O10: 430 | P10: 580 | Q10: 460 | R10: 490 | S10: 440 | T10: 430
A11: City of Edinburgh | B11: 4770 | C11: 5790 | D11: 6350 | E11: 4060 | F11: 6010 | G11: 4380 | H11: 4540 | I11: 3140 | J11: 9670 | K11: 9650 | L11: 9100 | M11: 6460 | N11: 10330 | O11: 11020 | P11: 12160 | Q11: 12460 | R11: 12770 | S11: 11070 | T11: 9350
A12: Clackmannanshire | B12: 130 | C12: 140 | D12: 160 | E12: 90 | F12: 200 | G12: 150 | H12: 150 | I12: 100 | J12: 160 | K12: 150 | L12: 130 | M12: 120 | N12: 160 | O12: 180 | P12: 230 | Q12: 190 | R12: 220 | S12: 200 | T12: 220
A13: Dumfries and Galloway | B13: 500 | C13: 590 | D13: 640 | E13: 460 | F13: 700 | G13: 560 | H13: 540 | I13: 340 | J13: 620 | K13: 600 | L13: 530 | M13: 530 | N13: 570 | O13: 600 | P13: 760 | Q13: 610 | R13: 670 | S13: 600 | T13: 600
A14: Dundee City | B14: 710 | C14: 1010 | D14: 940 | E14: 780 | F14: 1120 | G14: 890 | H14: 940 | I14: 670 | J14: 1640 | K14: 1640 | L14: 1530 | M14: 1140 | N14: 1460 | O14: 1500 | P14: 1820 | Q14: 1890 | R14: 2170 | S14: 1890 | T14: 1620
A15: East Ayrshire | B15: 260 | C15: 280 | D15: 310 | E15: 230 | F15: 320 | G15: 260 | H15: 250 | I15: 180 | J15: 320 | K15: 310 | L15: 270 | M15: 270 | N15: 310 | O15: 350 | P15: 430 | Q15: 340 | R15: 400 | S15: 370 | T15: 360
A16: East Dunbartonshire | B16: 380 | C16: 340 | D16: 400 | E16: 210 | F16: 260 | G16: 210 | H16: 220 | I16: 230 | J16: 380 | K16: 350 | L16: 290 | M16: 290 | N16: 440 | O16: 440 | P16: 560 | Q16: 410 | R16: 500 | S16: 430 | T16: 380
A17: East Lothian | B17: 260 | C17: 250 | D17: 320 | E17: 190 | F17: 300 | G17: 230 | H17: 280 | I17: 260 | J17: 280 | K17: 280 | L17: 260 | M17: 210 | N17: 400 | O17: 400 | P17: 520 | Q17: 400 | R17: 510 | S17: 420 | T17: 390
A18: East Renfrewshire | B18: 280 | C18: 250 | D18: 290 | E18: 150 | F18: 240 | G18: 170 | H18: 160 | I18: 160 | J18: 330 | K18: 320 | L18: 270 | M18: 260 | N18: 380 | O18: 410 | P18: 510 | Q18: 380 | R18: 500 | S18: 420 | T18: 360
A19: Falkirk | B19: 330 | C19: 420 | D19: 500 | E19: 350 | F19: 460 | G19: 380 | H19: 300 | I19: 220 | J19: 380 | K19: 370 | L19: 320 | M19: 290 | N19: 410 | O19: 490 | P19: 550 | Q19: 460 | R19: 550 | S19: 490 | T19: 530
A20: Fife | B20: 1550 | C20: 1710 | D20: 1900 | E20: 1280 | F20: 1830 | G20: 1340 | H20: 1430 | I20: 1000 | J20: 2030 | K20: 2080 | L20: 2060 | M20: 1660 | N20: 2460 | O20: 2720 | P20: 2900 | Q20: 2900 | R20: 2980 | S20: 2640 | T20: 2120
A21: Glasgow City | B21: 6100 | C21: 6920 | D21: 6930 | E21: 4380 | F21: 5520 | G21: 4570 | H21: 4780 | I21: 3200 | J21: 6770 | K21: 6710 | L21: 6690 | M21: 6140 | N21: 8090 | O21: 8920 | P21: 9670 | Q21: 11430 | R21: 12300 | S21: 9770 | T21: 10260
A22: Highland | B22: 730 | C22: 870 | D22: 1070 | E22: 800 | F22: 1250 | G22: 1110 | H22: 950 | I22: 600 | J22: 880 | K22: 860 | L22: 820 | M22: 670 | N22: 1050 | O22: 1150 | P22: 1460 | Q22: 1200 | R22: 1230 | S22: 1130 | T22: 1070
A23: Inverclyde | B23: 380 | C23: 310 | D23: 270 | E23: 200 | F23: 240 | G23: 180 | H23: 180 | I23: 120 | J23: 150 | K23: 160 | L23: 150 | M23: 130 | N23: 190 | O23: 220 | P23: 250 | Q23: 180 | R23: 230 | S23: 200 | T23: 200
A24: Midlothian | B24: 150 | C24: 190 | D24: 200 | E24: 120 | F24: 190 | G24: 160 | H24: 170 | I24: 110 | J24: 150 | K24: 130 | L24: 120 | M24: 110 | N24: 220 | O24: 220 | P24: 330 | Q24: 240 | R24: 320 | S24: 280 | T24: 240
A25: Moray | B25: 320 | C25: 440 | D25: 510 | E25: 280 | F25: 510 | G25: 350 | H25: 400 | I25: 500 | J25: 410 | K25: 390 | L25: 350 | M25: 320 | N25: 480 | O25: 510 | P25: 640 | Q25: 490 | R25: 550 | S25: 520 | T25: 490
A26: Na h-Eileanan Siar | B26: 80 | C26: 90 | D26: 100 | E26: 70 | F26: 110 | G26: 90 | H26: 70 | I26: 60 | J26: 110 | K26: 110 | L26: 100 | M26: 90 | N26: 100 | O26: 110 | P26: 140 | Q26: 110 | R26: 110 | S26: 100 | T26: 100
A27: North Ayrshire | B27: 370 | C27: 450 | D27: 500 | E27: 310 | F27: 410 | G27: 310 | H27: 330 | I27: 190 | J27: 440 | K27: 400 | L27: 340 | M27: 320 | N27: 410 | O27: 400 | P27: 500 | Q27: 390 | R27: 470 | S27: 410 | T27: 390
A28: North Lanarkshire | B28: 750 | C28: 750 | D28: 880 | E28: 610 | F28: 980 | G28: 880 | H28: 800 | I28: 520 | J28: 790 | K28: 700 | L28: 650 | M28: 580 | N28: 860 | O28: 920 | P28: 1100 | Q28: 940 | R28: 1130 | S28: 940 | T28: 1030
A29: Orkney Islands | B29: 60 | C29: 80 | D29: 80 | E29: 50 | F29: 70 | G29: 60 | H29: 60 | I29: 40 | J29: 90 | K29: 90 | L29: 80 | M29: 90 | N29: 110 | O29: 90 | P29: 120 | Q29: 90 | R29: 100 | S29: 90 | T29: 100
A30: Perth and Kinross | B30: 550 | C30: 570 | D30: 760 | E30: 650 | F30: 960 | G30: 990 | H30: 960 | I30: 510 | J30: 880 | K30: 880 | L30: 680 | M30: 600 | N30: 840 | O30: 900 | P30: 1080 | Q30: 950 | R30: 980 | S30: 860 | T30: 840
A31: Renfrewshire | B31: 470 | C31: 540 | D31: 730 | E31: 410 | F31: 560 | G31: 560 | H31: 500 | I31: 270 | J31: 420 | K31: 390 | L31: 360 | M31: 220 | N31: 570 | O31: 640 | P31: 780 | Q31: 730 | R31: 860 | S31: 670 | T31: 700
A32: Scottish Borders | B32: 430 | C32: 450 | D32: 570 | E32: 380 | F32: 600 | G32: 510 | H32: 500 | I32: 310 | J32: 310 | K32: 330 | L32: 310 | M32: 250 | N32: 400 | O32: 420 | P32: 540 | Q32: 450 | R32: 500 | S32: 430 | T32: 430
A33: Shetland Islands | B33: 80 | C33: 80 | D33: 110 | E33: 60 | F33: 90 | G33: 70 | H33: 80 | I33: 70 | J33: 110 | K33: 110 | L33: 100 | M33: 110 | N33: 180 | O33: 140 | P33: 120 | Q33: 120 | R33: 140 | S33: 110 | T33: 140
A34: South Ayrshire | B34: 350 | C34: 390 | D34: 410 | E34: 270 | F34: 410 | G34: 380 | H34: 350 | I34: 230 | J34: 370 | K34: 380 | L34: 330 | M34: 300 | N34: 420 | O34: 450 | P34: 560 | Q34: 430 | R34: 500 | S34: 450 | T34: 420
A35: South Lanarkshire | B35: 800 | C35: 1020 | D35: 940 | E35: 650 | F35: 890 | G35: 770 | H35: 740 | I35: 560 | J35: 460 | K35: 400 | L35: 360 | M35: 310 | N35: 670 | O35: 670 | P35: 900 | Q35: 650 | R35: 870 | S35: 720 | T35: 730
A36: Stirling | B36: 620 | C36: 670 | D36: 710 | E36: 450 | F36: 670 | G36: 600 | H36: 590 | I36: 380 | J36: 1420 | K36: 1410 | L36: 1360 | M36: 850 | N36: 1100 | O36: 1250 | P36: 1400 | Q36: 1050 | R36: 1290 | S36: 1120 | T36: 920
A37: West Dunbartonshire | B37: 260 | C37: 280 | D37: 290 | E37: 160 | F37: 230 | G37: 200 | H37: 150 | I37: 150 | J37: 220 | K37: 200 | L37: 180 | M37: 180 | N37: 220 | O37: 230 | P37: 310 | Q37: 230 | R37: 310 | S37: 250 | T37: 280
A38: West Lothian | B38: 420 | C38: 380 | D38: 450 | E38: 360 | F38: 680 | G38: 530 | H38: 520 | I38: 330 | J38: 820 | K38: 830 | L38: 670 | M38: 600 | N38: 740 | O38: 830 | P38: 940 | Q38: 840 | R38: 930 | S38: 800 | T38: 900
A40: NHS Board Areas | B40: 2003-04 | C40: 2004-05 | D40: 2005-06 | E40: 2006-07 | F40: 2007-08 | G40: 2008-09 | H40: 2009-10 | I40: 2010-11 | J40: 2011-12 | K40: 2012-13 | L40: 2013-14 | M40: 2014-15 | N40: 2015-16 | O40: 2016-17 | P40: 2017-18 | Q40: 2018-19 | R40: 2019-20 | S40: 2020-21 | T40: 2021-22
A41: Scotland | B41: 25400 | C41: 29000 | D41: 31400 | E41: 20900 | F41: 30300 | G41: 24800 | H41: 24600 | I41: 16900 | J41: 36500 | K41: 36100 | L41: 33600 | M41: 27200 | N41: 40000 | O41: 42600 | P41: 48300 | Q41: 47100 | R41: 51000 | S41: 43200 | T41: 40600
A42: Ayrshire and Arran | B42: 990 | C42: 1120 | D42: 1220 | E42: 810 | F42: 1130 | G42: 950 | H42: 930 | I42: 600 | J42: 1130 | K42: 1090 | L42: 950 | M42: 880 | N42: 1140 | O42: 1200 | P42: 1480 | Q42: 1150 | R42: 1360 | S42: 1240 | T42: 1170
A43: Borders | B43: 430 | C43: 450 | D43: 570 | E43: 380 | F43: 600 | G43: 510 | H43: 500 | I43: 310 | J43: 310 | K43: 330 | L43: 310 | M43: 250 | N43: 400 | O43: 420 | P43: 540 | Q43: 450 | R43: 500 | S43: 430 | T43: 430
A44: Dumfries and Galloway | B44: 500 | C44: 590 | D44: 640 | E44: 460 | F44: 700 | G44: 560 | H44: 540 | I44: 340 | J44: 620 | K44: 600 | L44: 530 | M44: 530 | N44: 570 | O44: 600 | P44: 760 | Q44: 610 | R44: 670 | S44: 600 | T44: 600
A45: Fife | B45: 1550 | C45: 1710 | D45: 1900 | E45: 1280 | F45: 1830 | G45: 1340 | H45: 1430 | I45: 1000 | J45: 2030 | K45: 2080 | L45: 2060 | M45: 1660 | N45: 2460 | O45: 2720 | P45: 2900 | Q45: 2900 | R45: 2980 | S45: 2640 | T45: 2120
A46: Forth Valley | B46: 1080 | C46: 1240 | D46: 1370 | E46: 880 | F46: 1320 | G46: 1130 | H46: 1030 | I46: 700 | J46: 1960 | K46: 1940 | L46: 1800 | M46: 1270 | N46: 1670 | O46: 1930 | P46: 2190 | Q46: 1700 | R46: 2070 | S46: 1810 | T46: 1660
A47: Grampian | B47: 2990 | C47: 3370 | D47: 3730 | E47: 2550 | F47: 4000 | G47: 3450 | H47: 3350 | I47: 2370 | J47: 5450 | K47: 5470 | L47: 4850 | M47: 3820 | N47: 6070 | O47: 5990 | P47: 6430 | Q47: 6050 | R47: 6350 | S47: 5410 | T47: 4980
A48: Greater Glasgow and Clyde | B48: 8060 | C48: 8900 | D48: 9080 | E48: 5640 | F48: 7200 | G48: 6050 | H48: 6110 | I48: 4290 | J48: 8270 | K48: 8120 | L48: 7950 | M48: 7220 | N48: 9890 | O48: 10850 | P48: 12060 | Q48: 13360 | R48: 14700 | S48: 11740 | T48: 12180
A49: Highland | B49: 1140 | C49: 1440 | D49: 1640 | E49: 1210 | F49: 1890 | G49: 1590 | H49: 1340 | I49: 900 | J49: 1280 | K49: 1270 | L49: 1120 | M49: 970 | N49: 1460 | O49: 1570 | P49: 2040 | Q49: 1660 | R49: 1720 | S49: 1580 | T49: 1500
A50: Lanarkshire | B50: 1360 | C50: 1520 | D50: 1640 | E50: 1130 | F50: 1720 | G50: 1500 | H50: 1420 | I50: 930 | J50: 1240 | K50: 1100 | L50: 1020 | M50: 890 | N50: 1540 | O50: 1590 | P50: 2010 | Q50: 1590 | R50: 2000 | S50: 1660 | T50: 1760
A51: Lothian | B51: 5600 | C51: 6610 | D51: 7310 | E51: 4730 | F51: 7170 | G51: 5300 | H51: 5500 | I51: 3840 | J51: 10920 | K51: 10890 | L51: 10160 | M51: 7370 | N51: 11680 | O51: 12470 | P51: 13940 | Q51: 13940 | R51: 14540 | S51: 12570 | T51: 10880
A52: Orkney | B52: 60 | C52: 80 | D52: 80 | E52: 50 | F52: 70 | G52: 60 | H52: 60 | I52: 40 | J52: 90 | K52: 90 | L52: 80 | M52: 90 | N52: 110 | O52: 90 | P52: 120 | Q52: 90 | R52: 100 | S52: 90 | T52: 100
A53: Shetland | B53: 80 | C53: 80 | D53: 110 | E53: 60 | F53: 90 | G53: 70 | H53: 80 | I53: 70 | J53: 110 | K53: 110 | L53: 100 | M53: 110 | N53: 180 | O53: 140 | P53: 120 | Q53: 120 | R53: 140 | S53: 110 | T53: 140
A54: Tayside | B54: 1500 | C54: 1830 | D54: 2020 | E54: 1650 | F54: 2490 | G54: 2190 | H54: 2240 | I54: 1460 | J54: 2960 | K54: 2970 | L54: 2590 | M54: 2060 | N54: 2740 | O54: 2880 | P54: 3500 | Q54: 3340 | R54: 3720 | S54: 3260 | T54: 2970
A55: Western Isles | B55: 80 | C55: 90 | D55: 100 | E55: 70 | F55: 110 | G55: 90 | H55: 70 | I55: 60 | J55: 110 | K55: 110 | L55: 100 | M55: 90 | N55: 100 | O55: 110 | P55: 140 | Q55: 110 | R55: 110 | S55: 100 | T55: 100

Sheet 2011 Census country of birth
A1: 2011 Census - country of birth
A2: This worksheet contains two tables, presented next to each other vertically with one blank row between the tables.
A3: See notes [7], [8], [9], [10] which are explained in the Notes worksheet.
A4: Return to front page
A5: Council Area | B5: All people | C5: England | D5: Northern Ireland | E5: Scotland | F5: Wales | G5: Republic of Ireland | H5: Other EU: Member countries in March 2001 [Note 10] | I5: Other EU: Accession countries April 2001 to March 2011 | J5: Other countries
A6: Scotland | B6: 5295403 | C6: 459486 | D6: 36655 | E6: 4411884 | F6: 17381 | G6: 22952 | H6: 59031 | I6: 78254 | J6: 209760
A7: Aberdeen City | B7: 222793 | C7: 18008 | D7: 1374 | E7: 167180 | F7: 764 | G7: 1378 | H7: 4840 | I7: 9523 | J7: 19726
A8: Aberdeenshire | B8: 252973 | C8: 31561 | D8: 1366 | E8: 203656 | F8: 1285 | G8: 572 | H8: 2484 | I8: 5040 | J8: 7009
A9: Angus | B9: 115978 | C9: 10087 | D9: 649 | E9: 99596 | F9: 397 | G9: 250 | H9: 863 | I9: 1645 | J9: 2491
A10: Argyll and Bute | B10: 88166 | C10: 15613 | D10: 644 | E10: 67060 | F10: 529 | G10: 327 | H10: 879 | I10: 896 | J10: 2218
A11: City of Edinburgh | B11: 476626 | C11: 57725 | D11: 6363 | E11: 334626 | F11: 2118 | G11: 4743 | H11: 13461 | I11: 14803 | J11: 42787
A12: Clackmannanshire | B12: 51442 | C12: 4356 | D12: 318 | E12: 44431 | F12: 192 | G12: 154 | H12: 407 | I12: 587 | J12: 997
A13: Dumfries and Galloway | B13: 151324 | C13: 27186 | D13: 1547 | E13: 116687 | F13: 642 | G13: 456 | H13: 1084 | I13: 1183 | J13: 2539
A14: Dundee City | B14: 147268 | C14: 8882 | D14: 1539 | E14: 123242 | F14: 340 | G14: 572 | H14: 2203 | I14: 2785 | J14: 7705
A15: East Ayrshire | B15: 122767 | C15: 6602 | D15: 742 | E15: 112379 | F15: 260 | G15: 251 | H15: 605 | I15: 331 | J15: 1597
A16: East Dunbartonshire | B16: 105026 | C16: 5945 | D16: 593 | E16: 93728 | F16: 236 | G16: 428 | H16: 642 | I16: 218 | J16: 3236
A17: East Lothian | B17: 99717 | C17: 9877 | D17: 645 | E17: 83463 | F17: 414 | G17: 490 | H17: 1033 | I17: 1133 | J17: 2662
A18: East Renfrewshire | B18: 90574 | C18: 4618 | D18: 481 | E18: 80890 | F18: 211 | G18: 406 | H18: 549 | I18: 261 | J18: 3158
A19: Falkirk | B19: 155990 | C19: 8317 | D19: 718 | E19: 140890 | F19: 403 | G19: 394 | H19: 893 | I19: 1450 | J19: 2925
A20: Fife | B20: 365198 | C20: 35531 | D20: 2233 | E20: 305206 | F20: 1499 | G20: 1032 | H20: 4264 | I20: 3919 | J20: 11514
A21: Glasgow City | B21: 593245 | C21: 28263 | D21: 5040 | E21: 486243 | F21: 1015 | G21: 4339 | H21: 7219 | I21: 10475 | J21: 50651
A22: Highland | B22: 232132 | C22: 37058 | D22: 1318 | E22: 179271 | F22: 1267 | G22: 681 | H22: 2544 | I22: 4361 | J22: 5632
A23: Inverclyde | B23: 81485 | C23: 3189 | D23: 338 | E23: 75679 | F23: 149 | G23: 212 | H23: 484 | I23: 167 | J23: 1267
A24: Midlothian | B24: 83187 | C24: 5560 | D24: 456 | E24: 73594 | F24: 213 | G24: 277 | H24: 755 | I24: 571 | J24: 1761
A25: Moray | B25: 93295 | C25: 16580 | D25: 632 | E25: 70332 | F25: 853 | G25: 217 | H25: 1497 | I25: 1205 | J25: 1979
A26: Na h-Eileanan Siar | B26: 27684 | C26: 3099 | D26: 75 | E26: 23556 | F26: 141 | G26: 50 | H26: 186 | I26: 118 | J26: 459
A27: North Ayrshire | B27: 138146 | C27: 8562 | D27: 866 | E27: 124918 | F27: 337 | G27: 361 | H27: 852 | I27: 348 | J27: 1902
A28: North Lanarkshire | B28: 337727 | C28: 10286 | D28: 1131 | E28: 315754 | F28: 408 | G28: 746 | H28: 1200 | I28: 3122 | J28: 5080
A29: Orkney Islands | B29: 21349 | C29: 3757 | D29: 105 | E29: 16654 | F29: 111 | G29: 34 | H29: 197 | I29: 109 | J29: 382
A30: Perth and Kinross | B30: 146652 | C30: 18519 | D30: 1006 | E30: 116268 | F30: 624 | G30: 576 | H30: 1709 | I30: 3305 | J30: 4645
A31: Renfrewshire | B31: 174908 | C31: 6824 | D31: 886 | E31: 159373 | F31: 310 | G31: 685 | H31: 1139 | I31: 1418 | J31: 4273
A32: Scottish Borders | B32: 113870 | C32: 21161 | D32: 777 | E32: 85392 | F32: 560 | G32: 410 | H32: 1288 | I32: 1580 | J32: 2702
A33: Shetland Islands | B33: 23167 | C33: 3057 | D33: 72 | E33: 18691 | F33: 151 | G33: 158 | H33: 181 | I33: 357 | J33: 500
A34: South Ayrshire | B34: 112799 | C34: 8888 | D34: 1131 | E34: 98603 | F34: 334 | G34: 383 | H34: 898 | I34: 541 | J34: 2021
A35: South Lanarkshire | B35: 313830 | C35: 14274 | D35: 1323 | E35: 286940 | F35: 609 | G35: 991 | H35: 1682 | I35: 1584 | J35: 6427
A36: Stirling | B36: 90247 | C36: 10588 | D36: 872 | E36: 71994 | F36: 389 | G36: 360 | H36: 1216 | I36: 1002 | J36: 3826
A37: West Dunbartonshire | B37: 90720 | C37: 3590 | D37: 426 | E37: 83699 | F37: 156 | G37: 509 | H37: 382 | I37: 444 | J37: 1514
A38: West Lothian | B38: 175118 | C38: 11923 | D38: 989 | E38: 151889 | F38: 464 | G38: 510 | H38: 1395 | I38: 3773 | J38: 4175
A40: NHS Board Areas | B40: All people | C40: England | D40: Northern Ireland | E40: Scotland | F40: Wales | G40: Republic of Ireland | H40: Other EU: Member countries in March 2001 [Note 10] | I40: Other EU: Accession countries April 2001 to March 2011 | J40: Other countries
A41: Scotland | B41: 5295403 | C41: 459486 | D41: 36655 | E41: 4411884 | F41: 17381 | G41: 22952 | H41: 59031 | I41: 78254 | J41: 209760
A42: Ayrshire and Arran | B42: 373712 | C42: 24052 | D42: 2739 | E42: 335900 | F42: 931 | G42: 995 | H42: 2355 | I42: 1220 | J42: 5520
A43: Borders | B43: 113870 | C43: 21161 | D43: 777 | E43: 85392 | F43: 560 | G43: 410 | H43: 1288 | I43: 1580 | J43: 2702
A44: Dumfries and Galloway | B44: 151324 | C44: 27186 | D44: 1547 | E44: 116687 | F44: 642 | G44: 456 | H44: 1084 | I44: 1183 | J44: 2539
A45: Fife | B45: 365198 | C45: 35531 | D45: 2233 | E45: 305206 | F45: 1499 | G45: 1032 | H45: 4264 | I45: 3919 | J45: 11514
A46: Forth Valley | B46: 297636 | C46: 23278 | D46: 1910 | E46: 257245 | F46: 986 | G46: 909 | H46: 2519 | I46: 3041 | J46: 7748
A47: Grampian | B47: 569061 | C47: 66149 | D47: 3372 | E47: 441168 | F47: 2902 | G47: 2167 | H47: 8821 | I47: 15768 | J47: 28714
A48: Greater Glasgow and Clyde | B48: 1213408 | C48: 55024 | D48: 8072 | E48: 1051125 | F48: 2181 | G48: 6938 | H48: 10784 | I48: 13317 | J48: 65967
A49: Highland | B49: 320298 | C49: 52671 | D49: 1962 | E49: 246331 | F49: 1796 | G49: 1008 | H49: 3423 | I49: 5257 | J49: 7850
A50: Lanarkshire | B50: 574637 | C50: 21997 | D50: 2148 | E50: 531661 | F50: 914 | G50: 1379 | H50: 2520 | I50: 4374 | J50: 9644
A51: Lothian | B51: 834350 | C51: 85080 | D51: 8453 | E51: 643292 | F51: 3208 | G51: 6020 | H51: 16638 | I51: 20278 | J51: 51381
A52: Orkney | B52: 21349 | C52: 3757 | D52: 105 | E52: 16654 | F52: 111 | G52: 34 | H52: 197 | I52: 109 | J52: 382
A53: Shetland | B53: 23167 | C53: 3057 | D53: 72 | E53: 18691 | F53: 151 | G53: 158 | H53: 181 | I53: 357 | J53: 500
A54: Tayside | B54: 409709 | C54: 37444 | D54: 3190 | E54: 338976 | F54: 1359 | G54: 1396 | H54: 4771 | I54: 7733 | J54: 14840
A55: Western Isles | B55: 27684 | C55: 3099 | D55: 75 | E55: 23556 | F55: 141 | G55: 50 | H55: 186 | I55: 118 | J55: 459

Sheet 2022 Census country of birth
A1: 2022 Census - country of birth
A2: This worksheet contains two tables, presented next to each other vertically with one blank row between the tables.
A3: See notes [9], [11] which are explained in the Notes worksheet.
A4: Return to front page
A5: Council Area | B5: All people | C5: England | D5: Northern Ireland | E5: Scotland | F5: Wales | G5: Republic of Ireland | H5: Europe: Other Europe: EU Member countries in March 2022: Total | I5: Europe: Other Europe: Accession countries March 2022 | J5: Other countries
A6: Scotland | B6: 5439842 | C6: 506207 | D6: 37260 | E6: 4321512 | F6: 18219 | G6: 22083 | H6: 234363 | I6: 3684 | J6: 296514
A7: Aberdeen City | B7: 224021 | C7: 16546 | D7: 1178 | E7: 158412 | F7: 632 | G7: 1059 | H7: 20720 | I7: 241 | J7: 25233
A8: Aberdeenshire | B8: 263723 | C8: 30692 | D8: 1479 | E8: 210926 | F8: 1231 | G8: 684 | H8: 10096 | I8: 103 | J8: 8512
A9: Angus | B9: 114342 | C9: 10260 | D9: 662 | E9: 96457 | F9: 370 | G9: 244 | H9: 3639 | I9: 45 | J9: 2665
A10: Argyll and Bute | B10: 85970 | C10: 16735 | D10: 634 | E10: 62431 | F10: 617 | G10: 320 | H10: 2597 | I10: 20 | J10: 2616
A11: City of Edinburgh | B11: 514543 | C11: 68412 | D11: 6301 | E11: 316306 | F11: 2346 | G11: 4774 | H11: 50336 | I11: 942 | J11: 65126
A12: Clackmannanshire | B12: 51778 | C12: 4522 | D12: 302 | E12: 43633 | F12: 186 | G12: 135 | H12: 1547 | I12: 16 | J12: 1437
A13: Dumfries and Galloway | B13: 145895 | C13: 29050 | D13: 1344 | E13: 108819 | F13: 634 | G13: 422 | H13: 2925 | I13: 58 | J13: 2643
A14: Dundee City | B14: 148697 | C14: 9685 | D14: 1296 | E14: 118146 | F14: 352 | G14: 529 | H14: 7812 | I14: 101 | J14: 10776
A15: East Ayrshire | B15: 120324 | C15: 7477 | D15: 699 | E15: 108022 | F15: 279 | G15: 244 | H15: 1651 | I15: 22 | J15: 1930
A16: East Dunbartonshire | B16: 108937 | C16: 6760 | D16: 795 | E16: 94324 | F16: 284 | G16: 456 | H16: 1840 | I16: 60 | J16: 4418
A17: East Lothian | B17: 112284 | C17: 12622 | D17: 936 | E17: 89926 | F17: 481 | G17: 544 | H17: 4418 | I17: 73 | J17: 3284
A18: East Renfrewshire | B18: 96817 | C18: 5298 | D18: 606 | E18: 82850 | F18: 204 | G18: 445 | H18: 1762 | I18: 33 | J18: 5619
A19: Falkirk | B19: 158404 | C19: 9164 | D19: 788 | E19: 138908 | F19: 405 | G19: 404 | H19: 4714 | I19: 65 | J19: 3956
A20: Fife | B20: 371781 | C20: 36858 | D20: 2262 | E20: 301485 | F20: 1411 | G20: 1109 | H20: 13754 | I20: 185 | J20: 14717
A21: Glasgow City | B21: 620756 | C21: 37680 | D21: 4775 | E21: 458096 | F21: 1232 | G21: 3643 | H21: 36087 | I21: 853 | J21: 78390
A22: Highland | B22: 235351 | C22: 39571 | D22: 1324 | E22: 175551 | F22: 1307 | G22: 713 | H22: 9797 | I22: 70 | J22: 7018
A23: Inverclyde | B23: 78426 | C23: 3380 | D23: 352 | E23: 71766 | F23: 144 | G23: 176 | H23: 951 | I23: 33 | J23: 1624
A24: Midlothian | B24: 96527 | C24: 7233 | D24: 667 | E24: 80862 | F24: 289 | G24: 366 | H24: 3797 | I24: 60 | J24: 3253
A25: Moray | B25: 93293 | C25: 17942 | D25: 611 | E25: 67800 | F25: 836 | G25: 217 | H25: 3216 | I25: 47 | J25: 2624
A26: Na h-Eileanan Siar | B26: 26140 | C26: 3350 | D26: 63 | E26: 21587 | F26: 129 | G26: 65 | H26: 457 | I26: 5 | J26: 484
A27: North Ayrshire | B27: 133413 | C27: 9079 | D27: 768 | E27: 118644 | F27: 349 | G27: 310 | H27: 1817 | I27: 32 | J27: 2414
A28: North Lanarkshire | B28: 340973 | C28: 11590 | D28: 1176 | E28: 310372 | F28: 479 | G28: 716 | H28: 8636 | I28: 102 | J28: 7902
A29: Orkney Islands | B29: 21958 | C29: 4449 | D29: 88 | E29: 16314 | F29: 137 | G29: 44 | H29: 407 | I29: 3 | J29: 516
A30: Perth and Kinross | B30: 150953 | C30: 19720 | D30: 1139 | E30: 115744 | F30: 698 | G30: 545 | H30: 7650 | I30: 77 | J30: 5380
A31: Renfrewshire | B31: 183874 | C31: 8203 | D31: 921 | E31: 161312 | F31: 351 | G31: 682 | H31: 5753 | I31: 79 | J31: 6573
A32: Scottish Borders | B32: 116821 | C32: 23249 | D32: 839 | E32: 85082 | F32: 633 | G32: 378 | H32: 3741 | I32: 33 | J32: 2866
A33: Shetland Islands | B33: 22986 | C33: 3101 | D33: 65 | E33: 18470 | F33: 149 | G33: 57 | H33: 583 | I33: 6 | J33: 555
A34: South Ayrshire | B34: 111519 | C34: 9277 | D34: 1157 | E34: 95898 | F34: 355 | G34: 360 | H34: 2041 | I34: 63 | J34: 2368
A35: South Lanarkshire | B35: 327056 | C35: 16502 | D35: 1426 | E35: 291985 | F35: 679 | G35: 990 | H35: 6544 | I35: 137 | J35: 8793
A36: Stirling | B36: 92604 | C36: 11099 | D36: 1164 | E36: 71076 | F36: 393 | G36: 541 | H36: 3979 | I36: 36 | J36: 4316
A37: West Dunbartonshire | B37: 88399 | C37: 4054 | D37: 342 | E37: 79907 | F37: 145 | G37: 359 | H37: 1694 | I37: 16 | J37: 1882
A38: West Lothian | B38: 181278 | C38: 12648 | D38: 1110 | E38: 150402 | F38: 481 | G38: 545 | H38: 9404 | I38: 71 | J38: 6617
A40: NHS Board Areas | B40: All people | C40: England | D40: Northern Ireland | E40: Scotland | F40: Wales | G40: Republic of Ireland | H40: Europe: Other Europe: EU Member countries in March 2022: Total | I40: Europe: Other Europe: Accession countries March 2022 | J40: Other countries
A41: Scotland | B41: 5439842 | C41: 506207 | D41: 37260 | E41: 4321512 | F41: 18219 | G41: 22083 | H41: 234363 | I41: 3684 | J41: 296514
A42: Ayrshire and Arran | B42: 365256 | C42: 25833 | D42: 2624 | E42: 322560 | F42: 986 | G42: 916 | H42: 5506 | I42: 122 | J42: 6709
A43: Borders | B43: 116821 | C43: 23249 | D43: 839 | E43: 85082 | F43: 633 | G43: 378 | H43: 3741 | I43: 33 | J43: 2866
A44: Dumfries and Galloway | B44: 145895 | C44: 29050 | D44: 1344 | E44: 108819 | F44: 634 | G44: 422 | H44: 2925 | I44: 58 | J44: 2643
A45: Fife | B45: 371781 | C45: 36858 | D45: 2262 | E45: 301485 | F45: 1411 | G45: 1109 | H45: 13754 | I45: 185 | J45: 14717
A46: Forth Valley | B46: 302784 | C46: 24785 | D46: 2251 | E46: 253617 | F46: 984 | G46: 1080 | H46: 10241 | I46: 121 | J46: 9705
A47: Grampian | B47: 581040 | C47: 65180 | D47: 3265 | E47: 437138 | F47: 2699 | G47: 1960 | H47: 34036 | I47: 388 | J47: 36374
A48: Greater Glasgow and Clyde | B48: 1177213 | C48: 65378 | D48: 7790 | E48: 948255 | F48: 2361 | G48: 5761 | H48: 48086 | I48: 1078 | J48: 98504
A49: Highland | B49: 321321 | C49: 56304 | D49: 1958 | E49: 237982 | F49: 1922 | G49: 1030 | H49: 12398 | I49: 86 | J49: 9641
A50: Lanarkshire | B50: 668027 | C50: 28089 | D50: 2600 | E50: 602357 | F50: 1158 | G50: 1706 | H50: 15180 | I50: 237 | J50: 16700
A51: Lothian | B51: 904628 | C51: 100912 | D51: 9014 | E51: 637495 | F51: 3597 | G51: 6228 | H51: 67953 | I51: 1146 | J51: 78283
A52: Orkney | B52: 21958 | C52: 4449 | D52: 88 | E52: 16314 | F52: 137 | G52: 44 | H52: 407 | I52: 3 | J52: 516
A53: Shetland | B53: 22986 | C53: 3101 | D53: 65 | E53: 18470 | F53: 149 | G53: 57 | H53: 583 | I53: 6 | J53: 555
A54: Tayside | B54: 413992 | C54: 39666 | D54: 3097 | E54: 330347 | F54: 1420 | G54: 1322 | H54: 19101 | I54: 217 | J54: 18822
A55: Western Isles | B55: 26140 | C55: 3350 | D55: 63 | E55: 21587 | F55: 129 | G55: 65 | H55: 457 | I55: 5 | J55: 484

Sheet Pop born outside UK
A1: Estimate of resident population born outside the UK, calendar year to 2004 to 2022
A2: This worksheet contains one table.
A3: See notes [12], [13], [14], [15] which are explained in the Notes worksheet. Some shorthand is used in this table, [x] = not available, [c] = confidential, [low] = zero due to rounding.
A4: Return to front page
A5: Council Area | B5: 2004 | C5: 2005 | D5: 2006 | E5: 2007 | F5: 2008 | G5: 2009 | H5: 2010 | I5: 2011 | J5: 2012 | K5: 2013 | L5: 2014 | M5: 2015 | N5: 2016 | O5: 2017 | P5: 2018 | Q5: 2019 | R5: 2020 | S5: 2021 | T5: 2022
A6: Scotland | B6: 203000 | C6: 221000 | D6: 227000 | E6: 254000 | F6: 288000 | G6: 319000 | H6: 323000 | I6: 339000 | J6: 374000 | K6: 353000 | L6: 381000 | M6: 393000 | N6: 457000 | O6: 477000 | P6: 469000 | Q6: 502000 | R6: 516000 | S6: [x] | T6: [x]
A7: Aberdeen City | B7: 12000 | C7: 12000 | D7: 14000 | E7: 20000 | F7: 25000 | G7: 32000 | H7: 30000 | I7: 32000 | J7: 32000 | K7: 42000 | L7: 42000 | M7: 39000 | N7: 48000 | O7: 55000 | P7: 44000 | Q7: 50000 | R7: 56000 | S7: [x] | T7: [x]
A8: Aberdeenshire | B8: 7000 | C8: 6000 | D8: 8000 | E8: 10000 | F8: 14000 | G8: 15000 | H8: 14000 | I8: 17000 | J8: 15000 | K8: 11000 | L8: 13000 | M8: 13000 | N8: 23000 | O8: 21000 | P8: 17000 | Q8: 22000 | R8: 24000 | S8: [x] | T8: [x]
A9: Angus | B9: 3000 | C9: 3000 | D9: 3000 | E9: 4000 | F9: 5000 | G9: 5000 | H9: 4000 | I9: 4000 | J9: 4000 | K9: 6000 | L9: 5000 | M9: 6000 | N9: 6000 | O9: 7000 | P9: 8000 | Q9: 7000 | R9: 5000 | S9: [x] | T9: [x]
A10: Argyll and Bute | B10: 2000 | C10: 3000 | D10: 3000 | E10: 3000 | F10: 4000 | G10: 3000 | H10: 4000 | I10: 4000 | J10: 4000 | K10: 4000 | L10: 4000 | M10: 3000 | N10: 5000 | O10: 4000 | P10: 5000 | Q10: 6000 | R10: 5000 | S10: [x] | T10: [x]
A11: City of Edinburgh | B11: 39000 | C11: 46000 | D11: 48000 | E11: 46000 | F11: 57000 | G11: 62000 | H11: 62000 | I11: 66000 | J11: 69000 | K11: 67000 | L11: 65000 | M11: 77000 | N11: 90000 | O11: 102000 | P11: 108000 | Q11: 103000 | R11: 116000 | S11: [x] | T11: [x]
A12: Clackmannanshire | B12: 1000 | C12: 1000 | D12: 1000 | E12: 1000 | F12: 1000 | G12: 2000 | H12: 2000 | I12: 2000 | J12: 2000 | K12: 2000 | L12: 3000 | M12: 3000 | N12: 4000 | O12: 3000 | P12: 4000 | Q12: 3000 | R12: 3000 | S12: [x] | T12: [x]
A13: Dumfries and Galloway | B13: 4000 | C13: 4000 | D13: 3000 | E13: 4000 | F13: 6000 | G13: 5000 | H13: 6000 | I13: 5000 | J13: 6000 | K13: 4000 | L13: 5000 | M13: 5000 | N13: 6000 | O13: 7000 | P13: 7000 | Q13: 6000 | R13: 8000 | S13: [x] | T13: [x]
A14: Dundee City | B14: 6000 | C14: 7000 | D14: 9000 | E14: 8000 | F14: 9000 | G14: 11000 | H14: 12000 | I14: 14000 | J14: 14000 | K14: 15000 | L14: 18000 | M14: 17000 | N14: 12000 | O14: 15000 | P14: 12000 | Q14: 16000 | R14: 18000 | S14: [x] | T14: [x]
A15: East Ayrshire | B15: 3000 | C15: 2000 | D15: 3000 | E15: 2000 | F15: 3000 | G15: 3000 | H15: 2000 | I15: 2000 | J15: 2000 | K15: 2000 | L15: 3000 | M15: 2000 | N15: 4000 | O15: 4000 | P15: 5000 | Q15: 5000 | R15: 5000 | S15: [x] | T15: [x]
A16: East Dunbartonshire | B16: 3000 | C16: 4000 | D16: 4000 | E16: 4000 | F16: 5000 | G16: 4000 | H16: 4000 | I16: 4000 | J16: 5000 | K16: 5000 | L16: 6000 | M16: 5000 | N16: 5000 | O16: 6000 | P16: 6000 | Q16: 6000 | R16: 6000 | S16: [x] | T16: [x]
A17: East Lothian | B17: 3000 | C17: 3000 | D17: 4000 | E17: 4000 | F17: 4000 | G17: 4000 | H17: 5000 | I17: 6000 | J17: 6000 | K17: 6000 | L17: 5000 | M17: 5000 | N17: 5000 | O17: 6000 | P17: 6000 | Q17: 7000 | R17: 9000 | S17: [x] | T17: [x]
A18: East Renfrewshire | B18: 3000 | C18: 3000 | D18: 4000 | E18: 4000 | F18: 3000 | G18: 4000 | H18: 5000 | I18: 4000 | J18: 4000 | K18: 3000 | L18: 4000 | M18: 6000 | N18: 7000 | O18: 7000 | P18: 7000 | Q18: 7000 | R18: 6000 | S18: [x] | T18: [x]
A19: Falkirk | B19: 4000 | C19: 3000 | D19: 2000 | E19: 4000 | F19: 3000 | G19: 5000 | H19: 6000 | I19: 7000 | J19: 7000 | K19: 7000 | L19: 7000 | M19: 8000 | N19: 9000 | O19: 8000 | P19: 8000 | Q19: 9000 | R19: 8000 | S19: [x] | T19: [x]
A20: Fife | B20: 13000 | C20: 16000 | D20: 12000 | E20: 10000 | F20: 10000 | G20: 14000 | H20: 21000 | I20: 16000 | J20: 20000 | K20: 20000 | L20: 18000 | M20: 20000 | N20: 30000 | O20: 19000 | P20: 23000 | Q20: 26000 | R20: 30000 | S20: [x] | T20: [x]
A21: Glasgow City | B21: 42000 | C21: 46000 | D21: 44000 | E21: 55000 | F21: 60000 | G21: 70000 | H21: 63000 | I21: 64000 | J21: 86000 | K21: 66000 | L21: 80000 | M21: 83000 | N21: 91000 | O21: 91000 | P21: 96000 | Q21: 103000 | R21: 90000 | S21: [x] | T21: [x]
A22: Highland | B22: 6000 | C22: 7000 | D22: 7000 | E22: 8000 | F22: 9000 | G22: 8000 | H22: 9000 | I22: 11000 | J22: 12000 | K22: 11000 | L22: 15000 | M22: 10000 | N22: 13000 | O22: 14000 | P22: 14000 | Q22: 14000 | R22: 17000 | S22: [x] | T22: [x]
A23: Inverclyde | B23: 3000 | C23: 2000 | D23: 2000 | E23: 2000 | F23: 2000 | G23: 2000 | H23: 2000 | I23: 2000 | J23: 3000 | K23: 2000 | L23: 2000 | M23: 2000 | N23: 2000 | O23: 1000 | P23: 2000 | Q23: 2000 | R23: 3000 | S23: [x] | T23: [x]
A24: Midlothian | B24: 1000 | C24: 2000 | D24: 2000 | E24: 2000 | F24: 3000 | G24: 4000 | H24: 3000 | I24: 3000 | J24: 3000 | K24: 3000 | L24: 4000 | M24: 4000 | N24: 4000 | O24: 6000 | P24: 7000 | Q24: 8000 | R24: 6000 | S24: [x] | T24: [x]
A25: Moray | B25: 3000 | C25: 4000 | D25: 4000 | E25: 4000 | F25: 4000 | G25: 5000 | H25: 5000 | I25: 6000 | J25: 5000 | K25: 5000 | L25: 4000 | M25: 4000 | N25: 5000 | O25: 4000 | P25: 5000 | Q25: 5000 | R25: 5000 | S25: [x] | T25: [x]
A26: Na h-Eileanan Siar | B26: [low] | C26: [low] | D26: 1000 | E26: [low] | F26: [low] | G26: 1000 | H26: [c] | I26: [c] | J26: 1000 | K26: 1000 | L26: 1000 | M26: [low] | N26: 1000 | O26: 1000 | P26: 1000 | Q26: [low] | R26: 1000 | S26: [x] | T26: [x]
A27: North Ayrshire | B27: 2000 | C27: 3000 | D27: 3000 | E27: 3000 | F27: 2000 | G27: 2000 | H27: 2000 | I27: 4000 | J27: 3000 | K27: 4000 | L27: 3000 | M27: 2000 | N27: 4000 | O27: 4000 | P27: 3000 | Q27: 3000 | R27: 3000 | S27: [x] | T27: [x]
A28: North Lanarkshire | B28: 8000 | C28: 7000 | D28: 6000 | E28: 5000 | F28: 12000 | G28: 10000 | H28: 8000 | I28: 7000 | J28: 8000 | K28: 7000 | L28: 11000 | M28: 14000 | N28: 15000 | O28: 15000 | P28: 13000 | Q28: 16000 | R28: 16000 | S28: [x] | T28: [x]
A29: Orkney Islands | B29: [low] | C29: 1000 | D29: 1000 | E29: 1000 | F29: [low] | G29: [low] | H29: [low] | I29: [low] | J29: [low] | K29: [low] | L29: [low] | M29: [low] | N29: 1000 | O29: 1000 | P29: 1000 | Q29: 1000 | R29: 1000 | S29: [x] | T29: [x]
A30: Perth and Kinross | B30: 5000 | C30: 6000 | D30: 5000 | E30: 7000 | F30: 7000 | G30: 7000 | H30: 9000 | I30: 8000 | J30: 10000 | K30: 11000 | L30: 11000 | M30: 14000 | N30: 10000 | O30: 12000 | P30: 12000 | Q30: 14000 | R30: 13000 | S30: [x] | T30: [x]
A31: Renfrewshire | B31: 5000 | C31: 4000 | D31: 5000 | E31: 7000 | F31: 9000 | G31: 7000 | H31: 7000 | I31: 11000 | J31: 10000 | K31: 9000 | L31: 11000 | M31: 9000 | N31: 12000 | O31: 11000 | P31: 10000 | Q31: 10000 | R31: 8000 | S31: [x] | T31: [x]
A32: Scottish Borders | B32: 4000 | C32: 3000 | D32: 4000 | E32: 5000 | F32: 5000 | G32: 6000 | H32: 7000 | I32: 5000 | J32: 5000 | K32: 6000 | L32: 6000 | M32: 6000 | N32: 6000 | O32: 9000 | P32: 8000 | Q32: 7000 | R32: 4000 | S32: [x] | T32: [x]
A33: Shetland Islands | B33: 1000 | C33: [low] | D33: [low] | E33: [low] | F33: [low] | G33: [low] | H33: 1000 | I33: [low] | J33: [low] | K33: 1000 | L33: 1000 | M33: [low] | N33: [low] | O33: 1000 | P33: 1000 | Q33: [low] | R33: 1000 | S33: [x] | T33: [x]
A34: South Ayrshire | B34: 3000 | C34: 2000 | D34: 3000 | E34: 3000 | F34: 3000 | G34: 4000 | H34: 4000 | I34: 3000 | J34: 4000 | K34: 3000 | L34: 4000 | M34: 4000 | N34: 4000 | O34: 5000 | P34: 4000 | Q34: 5000 | R34: 5000 | S34: [x] | T34: [x]
A35: South Lanarkshire | B35: 6000 | C35: 7000 | D35: 8000 | E35: 11000 | F35: 9000 | G35: 8000 | H35: 11000 | I35: 11000 | J35: 12000 | K35: 11000 | L35: 9000 | M35: 11000 | N35: 12000 | O35: 10000 | P35: 9000 | Q35: 13000 | R35: 14000 | S35: [x] | T35: [x]
A36: Stirling | B36: 4000 | C36: 4000 | D36: 6000 | E36: 5000 | F36: 3000 | G36: 4000 | H36: 6000 | I36: 7000 | J36: 7000 | K36: 6000 | L36: 7000 | M36: 8000 | N36: 6000 | O36: 7000 | P36: 7000 | Q36: 6000 | R36: 5000 | S36: [x] | T36: [x]
A37: West Dunbartonshire | B37: 2000 | C37: 2000 | D37: 3000 | E37: 3000 | F37: 3000 | G37: 4000 | H37: 3000 | I37: 3000 | J37: 3000 | K37: 3000 | L37: 3000 | M37: 2000 | N37: 4000 | O37: 4000 | P37: 3000 | Q37: 5000 | R37: 3000 | S37: [x] | T37: [x]
